Workbook

Sheet Sheet1
A1: UNITED BROTHERS
A2: CONSIGNMENT STOCKIST OF GAIL (INDIA) LTD
A3: 301,HERITAGE PLAZA, R.S.MAHARAJ MARG,( TELI GALLI CROSS LANE), ANDHERI (E), MUMBAI - 400 069
A4: TEL: 26844612(4 LINES) FAX: 26822914 E-MAIL:,info@unibrothers.com , prashant@unibrothers.com , jyoti@unibrothers.com
A5: EX-WORKS PRICE OF HDPE "G-LEX / G-LENE " W.E.F. 1ST MAY 2014
B7: Freight | D7: 2048.77 | G7: Freight | I7: 2061.17 | L7: Freight | N7: 2537.23 | Q7: Freight | S7: 1959.23 | V7: Freight | X7: 1624.98 | AA7: Freight | AC7: 2247.23 | AF7: Freight 3069.18
B8: DAMAN | G8: SILVASSA | L8: MUMBAI/BHIWANDI/THANE | Q8: JALGAON | V8: NAGPUR | AA8: AURANGABAD | AF8: SANGLI
B9: BASIC | C9: DISC | D9: LOC | E9: EXCISE | F9: EX-WKS | G9: BASIC | H9: DISC | I9: LOC | J9: EXCISE | K9: EX-WKS | L9: BASIC | M9: DISC | N9: LOC | O9: EXCISE | P9: EX-WKS | Q9: BASIC | R9: DISC | S9: LOC | T9: EXCISE | U9: EX-WKS | V9: BASIC | W9: DISC | X9: LOC | Y9: EXCISE | Z9: EX-WKS | AA9: BASIC | AB9: DISC | AC9: LOC | AD9: EXCISE | AE9: EX-WKS | AF9: BASIC | AG9: DISC | AH9: LOC | AI9: EXCISE | AJ9: EX-WKS
A10: BM
A11: B52A003A | B11: =IF(B$8="Daman",HLOOKUP($A11,'[1]PROPOSED GAIL EX WORKS'!$D$2:$AE$90,3,0)) -> 106400 | C11: 1000 | D11: 0 | E11: =(B11-C11-D11)*12.36% -> 13027.44 | F11: =B11-C11-D11+E11 -> 118427.44 | G11: =IF(G$8="SILVASSA",HLOOKUP($A11,'[1]PROPOSED GAIL EX WORKS'!$D$2:$AE$90,4,0)) -> 106400 | H11: 1000 | I11: 0 | J11: =(G11-H11-I11)*12.36% -> 13027.44 | K11: =G11-H11-I11+J11 -> 118427.44 | L11: =IF(L$8="MUMBAI/BHIWANDI/THANE",HLOOKUP($A11,'[1]PROPOSED GAIL EX WORKS'!$D$2:$AE$90,5,0)) -> 105760 | M11: 1000 | N11: 0 | O11: =(L11-M11-N11)*12.36% -> 12948.336 | P11: =L11-M11-N11+O11 -> 117708.336 | Q11: =IF(Q$8="JALGAON",HLOOKUP($A11,'[1]PROPOSED GAIL EX WORKS'!$D$2:$AE$90,6,0)) -> 106790 | R11: 1000 | S11: 0 | T11: =(Q11-R11-S11)*12.36% -> 13075.644 | U11: =Q11-R11-S11+T11 -> 118865.644 | V11: =IF(V$8="NAGPUR",HLOOKUP($A11,'[1]PROPOSED GAIL EX WORKS'!$D$2:$AE$90,7,0)) -> 107840 | W11: 1000 | X11: 0 | Y11: =(V11-W11-X11)*12.36% -> 13205.424 | Z11: =V11-W11-X11+Y11 -> 120045.424 | AA11: =IF(AA$8="AURANGABAD",HLOOKUP($A11,'[1]PROPOSED GAIL EX WORKS'!$D$2:$AE$90,8,0)) -> 106410 | AB11: 1000 | AC11: 0 | AD11: =(AA11-AB11-AC11)*12.36% -> 13028.676 | AE11: =AA11-AB11-AC11+AD11 -> 118438.676 | AF11: =IF(AF$8="SANGLI",HLOOKUP($A11,'[1]PROPOSED GAIL EX WORKS'!$D$2:$AE$90,9,0)) -> 105780 | AG11: 1000 | AH11: 0 | AI11: =(AF11-AG11-AH11)*12.36% -> 12950.808 | AJ11: =AF11-AG11-AH11+AI11 -> 117730.808
A12: B63A003A | B12: =IF(B$8="Daman",HLOOKUP($A12,'[1]PROPOSED GAIL EX WORKS'!$D$2:$AE$90,3,0)) -> 106400 | C12: 1000 | D12: 0 | E12: =(B12-C12-D12)*12.36% -> 13027.44 | F12: =B12-C12-D12+E12 -> 118427.44 | G12: =IF(G$8="SILVASSA",HLOOKUP($A12,'[1]PROPOSED GAIL EX WORKS'!$D$2:$AE$90,4,0)) -> 106400 | H12: 1000 | I12: 0 | J12: =(G12-H12-I12)*12.36% -> 13027.44 | K12: =G12-H12-I12+J12 -> 118427.44 | L12: =IF(L$8="MUMBAI/BHIWANDI/THANE",HLOOKUP($A12,'[1]PROPOSED GAIL EX WORKS'!$D$2:$AE$90,5,0)) -> 105760 | M12: 1000 | N12: 0 | O12: =(L12-M12-N12)*12.36% -> 12948.336 | P12: =L12-M12-N12+O12 -> 117708.336 | Q12: =IF(Q$8="JALGAON",HLOOKUP($A12,'[1]PROPOSED GAIL EX WORKS'!$D$2:$AE$90,6,0)) -> 106790 | R12: 1000 | S12: 0 | T12: =(Q12-R12-S12)*12.36% -> 13075.644 | U12: =Q12-R12-S12+T12 -> 118865.644 | V12: =IF(V$8="NAGPUR",HLOOKUP($A12,'[1]PROPOSED GAIL EX WORKS'!$D$2:$AE$90,7,0)) -> 107840 | W12: 1000 | X12: 0 | Y12: =(V12-W12-X12)*12.36% -> 13205.424 | Z12: =V12-W12-X12+Y12 -> 120045.424 | AA12: =IF(AA$8="AURANGABAD",HLOOKUP($A12,'[1]PROPOSED GAIL EX WORKS'!$D$2:$AE$90,8,0)) -> 106410 | AB12: 1000 | AC12: 0 | AD12: =(AA12-AB12-AC12)*12.36% -> 13028.676 | AE12: =AA12-AB12-AC12+AD12 -> 118438.676 | AF12: =IF(AF$8="SANGLI",HLOOKUP($A12,'[1]PROPOSED GAIL EX WORKS'!$D$2:$AE$90,9,0)) -> 105780 | AG12: 1000 | AH12: 0 | AI12: =(AF12-AG12-AH12)*12.36% -> 12950.808 | AJ12: =AF12-AG12-AH12+AI12 -> 117730.808
A13: B55HM0003A | B13: =IF(B$8="Daman",HLOOKUP($A13,'[1]PROPOSED GAIL EX WORKS'!$D$2:$AE$90,3,0)) -> 110350 | C13: 1000 | D13: 0 | E13: =(B13-C13-D13)*12.36% -> 13515.66 | F13: =B13-C13-D13+E13 -> 122865.66 | G13: =IF(G$8="SILVASSA",HLOOKUP($A13,'[1]PROPOSED GAIL EX WORKS'!$D$2:$AE$90,4,0)) -> 110360 | H13: 1000 | I13: 0 | J13: =(G13-H13-I13)*12.36% -> 13516.896 | K13: =G13-H13-I13+J13 -> 122876.896 | L13: =IF(L$8="MUMBAI/BHIWANDI/THANE",HLOOKUP($A13,'[1]PROPOSED GAIL EX WORKS'!$D$2:$AE$90,5,0)) -> 109770 | M13: 1000 | N13: 0 | O13: =(L13-M13-N13)*12.36% -> 13443.972 | P13: =L13-M13-N13+O13 -> 122213.972 | Q13: =IF(Q$8="JALGAON",HLOOKUP($A13,'[1]PROPOSED GAIL EX WORKS'!$D$2:$AE$90,6,0)) -> 110800 | R13: 1000 | S13: 0 | T13: =(Q13-R13-S13)*12.36% -> 13571.28 | U13: =Q13-R13-S13+T13 -> 123371.28 | V13: =IF(V$8="NAGPUR",HLOOKUP($A13,'[1]PROPOSED GAIL EX WORKS'!$D$2:$AE$90,7,0)) -> 111940 | W13: 1000 | X13: 0 | Y13: =(V13-W13-X13)*12.36% -> 13712.184 | Z13: =V13-W13-X13+Y13 -> 124652.184 | AA13: =IF(AA$8="AURANGABAD",HLOOKUP($A13,'[1]PROPOSED GAIL EX WORKS'!$D$2:$AE$90,8,0)) -> 110410 | AB13: 1000 | AC13: 0 | AD13: =(AA13-AB13-AC13)*12.36% -> 13523.076 | AE13: =AA13-AB13-AC13+AD13 -> 122933.076 | AF13: =IF(AF$8="SANGLI",HLOOKUP($A13,'[1]PROPOSED GAIL EX WORKS'!$D$2:$AE$90,9,0)) -> 109890 | AG13: 1000 | AH13: 0 | AI13: =(AF13-AG13-AH13)*12.36% -> 13458.804 | AJ13: =AF13-AG13-AH13+AI13 -> 122348.804
A14: B53EA0035A | B14: =IF(B$8="Daman",HLOOKUP($A14,'[1]PROPOSED GAIL EX WORKS'!$D$2:$AE$90,3,0)) -> 106900 | C14: 1000 | D14: 0 | E14: =(B14-C14-D14)*12.36% -> 13089.24 | F14: =B14-C14-D14+E14 -> 118989.24 | G14: =IF(G$8="SILVASSA",HLOOKUP($A14,'[1]PROPOSED GAIL EX WORKS'!$D$2:$AE$90,4,0)) -> 106900 | H14: 1000 | I14: 0 | J14: =(G14-H14-I14)*12.36% -> 13089.24 | K14: =G14-H14-I14+J14 -> 118989.24
A15: CABLE-INSUL
A16: C43D006A | B16: =IF(B$8="Daman",HLOOKUP($A16,'[1]PROPOSED GAIL EX WORKS'!$D$2:$AE$90,3,0)) -> 103905 | C16: 1000 | D16: 0 | E16: =(B16-C16-D16)*12.36% -> 12719.058 | F16: =B16-C16-D16+E16 -> 115624.058 | G16: =IF(G$8="SILVASSA",HLOOKUP($A16,'[1]PROPOSED GAIL EX WORKS'!$D$2:$AE$90,4,0)) -> 103905 | H16: 1000 | I16: 0 | J16: =(G16-H16-I16)*12.36% -> 12719.058 | K16: =G16-H16-I16+J16 -> 115624.058 | L16: =IF(L$8="MUMBAI/BHIWANDI/THANE",HLOOKUP($A16,'[1]PROPOSED GAIL EX WORKS'!$D$2:$AE$90,5,0)) -> 103287.5 | M16: 1000 | N16: 0 | O16: =(L16-M16-N16)*12.36% -> 12642.735 | P16: =L16-M16-N16+O16 -> 114930.235 | Q16: =IF(Q$8="JALGAON",HLOOKUP($A16,'[1]PROPOSED GAIL EX WORKS'!$D$2:$AE$90,6,0)) -> 104323 | R16: 1000 | S16: 0 | T16: =(Q16-R16-S16)*12.36% -> 12770.7228 | U16: =Q16-R16-S16+T16 -> 116093.7228 | V16: =IF(V$8="NAGPUR",HLOOKUP($A16,'[1]PROPOSED GAIL EX WORKS'!$D$2:$AE$90,7,0)) -> 105415.5 | W16: 1000 | X16: 0 | Y16: =(V16-W16-X16)*12.36% -> 12905.7558 | Z16: =V16-W16-X16+Y16 -> 117321.2558 | AA16: =IF(AA$8="AURANGABAD",HLOOKUP($A16,'[1]PROPOSED GAIL EX WORKS'!$D$2:$AE$90,8,0)) -> 103971.5 | AB16: 1000 | AC16: 0 | AD16: =(AA16-AB16-AC16)*12.36% -> 12727.2774 | AE16: =AA16-AB16-AC16+AD16 -> 115698.7774 | AF16: =IF(AF$8="SANGLI",HLOOKUP($A16,'[1]PROPOSED GAIL EX WORKS'!$D$2:$AE$90,9,0)) -> 103363.5 | AG16: 1000 | AH16: 0 | AI16: =(AF16-AG16-AH16)*12.36% -> 12652.1286 | AJ16: =AF16-AG16-AH16+AI16 -> 115015.6286
A18: SHETG
A19: E45A003A | B19: =IF(B$8="Daman",HLOOKUP($A19,'[1]PROPOSED GAIL EX WORKS'!$D$2:$AE$90,3,0)) -> 104950 | C19: 1000 | D19: 0 | E19: =(B19-C19-D19)*12.36% -> 12848.22 | F19: =B19-C19-D19+E19 -> 116798.22 | G19: =IF(G$8="SILVASSA",HLOOKUP($A19,'[1]PROPOSED GAIL EX WORKS'!$D$2:$AE$90,4,0)) -> 104950 | H19: 1000 | I19: 0 | J19: =(G19-H19-I19)*12.36% -> 12848.22 | K19: =G19-H19-I19+J19 -> 116798.22 | L19: =IF(L$8="MUMBAI/BHIWANDI/THANE",HLOOKUP($A19,'[1]PROPOSED GAIL EX WORKS'!$D$2:$AE$90,5,0)) -> 104290 | M19: 1000 | N19: 0 | O19: =(L19-M19-N19)*12.36% -> 12766.644 | P19: =L19-M19-N19+O19 -> 116056.644 | Q19: =IF(Q$8="JALGAON",HLOOKUP($A19,'[1]PROPOSED GAIL EX WORKS'!$D$2:$AE$90,6,0)) -> 105390 | R19: 1000 | S19: 0 | T19: =(Q19-R19-S19)*12.36% -> 12902.604 | U19: =Q19-R19-S19+T19 -> 117292.604 | V19: =IF(V$8="NAGPUR",HLOOKUP($A19,'[1]PROPOSED GAIL EX WORKS'!$D$2:$AE$90,7,0)) -> 106530 | W19: 1000 | X19: 0 | Y19: =(V19-W19-X19)*12.36% -> 13043.508 | Z19: =V19-W19-X19+Y19 -> 118573.508 | AA19: =IF(AA$8="AURANGABAD",HLOOKUP($A19,'[1]PROPOSED GAIL EX WORKS'!$D$2:$AE$90,8,0)) -> 105020 | AB19: 1000 | AC19: 0 | AD19: =(AA19-AB19-AC19)*12.36% -> 12856.872 | AE19: =AA19-AB19-AC19+AD19 -> 116876.872 | AF19: =IF(AF$8="SANGLI",HLOOKUP($A19,'[1]PROPOSED GAIL EX WORKS'!$D$2:$AE$90,9,0)) -> 104380 | AG19: 1000 | AH19: 0 | AI19: =(AF19-AG19-AH19)*12.36% -> 12777.768 | AJ19: =AF19-AG19-AH19+AI19 -> 116157.768
A20: E45A003OG
A21: EXTR
A22: E52A003A | B22: =IF(B$8="Daman",HLOOKUP($A22,'[1]PROPOSED GAIL EX WORKS'!$D$2:$AE$90,3,0)) -> 107620 | C22: 1000 | D22: 0 | E22: =(B22-C22-D22)*12.36% -> 13178.232 | F22: =B22-C22-D22+E22 -> 119798.232 | G22: =IF(G$8="SILVASSA",HLOOKUP($A22,'[1]PROPOSED GAIL EX WORKS'!$D$2:$AE$90,4,0)) -> 107620 | H22: 1000 | I22: 0 | J22: =(G22-H22-I22)*12.36% -> 13178.232 | K22: =G22-H22-I22+J22 -> 119798.232 | L22: =IF(L$8="MUMBAI/BHIWANDI/THANE",HLOOKUP($A22,'[1]PROPOSED GAIL EX WORKS'!$D$2:$AE$90,5,0)) -> 106960 | M22: 1000 | N22: 0 | O22: =(L22-M22-N22)*12.36% -> 13096.656 | P22: =L22-M22-N22+O22 -> 119056.656 | Q22: =IF(Q$8="JALGAON",HLOOKUP($A22,'[1]PROPOSED GAIL EX WORKS'!$D$2:$AE$90,6,0)) -> 108060 | R22: 1000 | S22: 0 | T22: =(Q22-R22-S22)*12.36% -> 13232.616 | U22: =Q22-R22-S22+T22 -> 120292.616 | V22: =IF(V$8="NAGPUR",HLOOKUP($A22,'[1]PROPOSED GAIL EX WORKS'!$D$2:$AE$90,7,0)) -> 109200 | W22: 1000 | X22: 0 | Y22: =(V22-W22-X22)*12.36% -> 13373.52 | Z22: =V22-W22-X22+Y22 -> 121573.52 | AA22: =IF(AA$8="AURANGABAD",HLOOKUP($A22,'[1]PROPOSED GAIL EX WORKS'!$D$2:$AE$90,8,0)) -> 107680 | AB22: 1000 | AC22: 0 | AD22: =(AA22-AB22-AC22)*12.36% -> 13185.648 | AE22: =AA22-AB22-AC22+AD22 -> 119865.648 | AF22: =IF(AF$8="SANGLI",HLOOKUP($A22,'[1]PROPOSED GAIL EX WORKS'!$D$2:$AE$90,9,0)) -> 107050 | AG22: 1000 | AH22: 0 | AI22: =(AF22-AG22-AH22)*12.36% -> 13107.78 | AJ22: =AF22-AG22-AH22+AI22 -> 119157.78
A23: E52A003OG
A24: E52U003A | B24: =IF(B$8="Daman",HLOOKUP($A24,'[1]PROPOSED GAIL EX WORKS'!$D$2:$AE$90,3,0)) -> 111400 | C24: 1000 | D24: 0 | E24: =(B24-C24-D24)*12.36% -> 13645.44 | F24: =B24-C24-D24+E24 -> 124045.44 | G24: =IF(G$8="SILVASSA",HLOOKUP($A24,'[1]PROPOSED GAIL EX WORKS'!$D$2:$AE$90,4,0)) -> 111400 | H24: 1000 | I24: 0 | J24: =(G24-H24-I24)*12.36% -> 13645.44 | K24: =G24-H24-I24+J24 -> 124045.44 | L24: =IF(L$8="MUMBAI/BHIWANDI/THANE",HLOOKUP($A24,'[1]PROPOSED GAIL EX WORKS'!$D$2:$AE$90,5,0)) -> 110740 | M24: 1000 | N24: 0 | O24: =(L24-M24-N24)*12.36% -> 13563.864 | P24: =L24-M24-N24+O24 -> 123303.864 | Q24: =IF(Q$8="JALGAON",HLOOKUP($A24,'[1]PROPOSED GAIL EX WORKS'!$D$2:$AE$90,6,0)) -> 111840 | R24: 1000 | S24: 0 | T24: =(Q24-R24-S24)*12.36% -> 13699.824 | U24: =Q24-R24-S24+T24 -> 124539.824 | V24: =IF(V$8="NAGPUR",HLOOKUP($A24,'[1]PROPOSED GAIL EX WORKS'!$D$2:$AE$90,7,0)) -> 112980 | W24: 1000 | X24: 0 | Y24: =(V24-W24-X24)*12.36% -> 13840.728 | Z24: =V24-W24-X24+Y24 -> 125820.728 | AA24: =IF(AA$8="AURANGABAD",HLOOKUP($A24,'[1]PROPOSED GAIL EX WORKS'!$D$2:$AE$90,8,0)) -> 111460 | AB24: 1000 | AC24: 0 | AD24: =(AA24-AB24-AC24)*12.36% -> 13652.856 | AE24: =AA24-AB24-AC24+AD24 -> 124112.856 | AF24: =IF(AF$8="SANGLI",HLOOKUP($A24,'[1]PROPOSED GAIL EX WORKS'!$D$2:$AE$90,9,0)) -> 110830 | AG24: 1000 | AH24: 0 | AI24: =(AF24-AG24-AH24)*12.36% -> 13574.988 | AJ24: =AF24-AG24-AH24+AI24 -> 123404.988
A25: E52U003OG
A26: HM FILM
A27: F55HM0003A | B27: =IF(B$8="Daman",HLOOKUP($A27,'[1]PROPOSED GAIL EX WORKS'!$D$2:$AE$90,3,0)) -> 105400 | C27: 1000 | D27: 0 | E27: =(B27-C27-D27)*12.36% -> 12903.84 | F27: =B27-C27-D27+E27 -> 117303.84 | G27: =IF(G$8="SILVASSA",HLOOKUP($A27,'[1]PROPOSED GAIL EX WORKS'!$D$2:$AE$90,4,0)) -> 105910 | H27: 1000 | I27: 0 | J27: =(G27-H27-I27)*12.36% -> 12966.876 | K27: =G27-H27-I27+J27 -> 117876.876 | L27: =IF(L$8="MUMBAI/BHIWANDI/THANE",HLOOKUP($A27,'[1]PROPOSED GAIL EX WORKS'!$D$2:$AE$90,5,0)) -> 105320 | M27: 1000 | N27: 0 | O27: =(L27-M27-N27)*12.36% -> 12893.952 | P27: =L27-M27-N27+O27 -> 117213.952 | Q27: =IF(Q$8="JALGAON",HLOOKUP($A27,'[1]PROPOSED GAIL EX WORKS'!$D$2:$AE$90,6,0)) -> 106350 | R27: 1000 | S27: 0 | T27: =(Q27-R27-S27)*12.36% -> 13021.26 | U27: =Q27-R27-S27+T27 -> 118371.26 | V27: =IF(V$8="NAGPUR",HLOOKUP($A27,'[1]PROPOSED GAIL EX WORKS'!$D$2:$AE$90,7,0)) -> 107490 | W27: 1000 | X27: 0 | Y27: =(V27-W27-X27)*12.36% -> 13162.164 | Z27: =V27-W27-X27+Y27 -> 119652.164 | AA27: =IF(AA$8="AURANGABAD",HLOOKUP($A27,'[1]PROPOSED GAIL EX WORKS'!$D$2:$AE$90,8,0)) -> 105960 | AB27: 1000 | AC27: 0 | AD27: =(AA27-AB27-AC27)*12.36% -> 12973.056 | AE27: =AA27-AB27-AC27+AD27 -> 117933.056 | AF27: =IF(AF$8="SANGLI",HLOOKUP($A27,'[1]PROPOSED GAIL EX WORKS'!$D$2:$AE$90,9,0)) -> 105440 | AG27: 1000 | AH27: 0 | AI27: =(AF27-AG27-AH27)*12.36% -> 12908.784 | AJ27: =AF27-AG27-AH27+AI27 -> 117348.784
A28: F55HM0003OG
A29: IM HIGH
A30: I50A180A | B30: =IF(B$8="Daman",HLOOKUP($A30,'[1]PROPOSED GAIL EX WORKS'!$D$2:$AE$90,3,0)) -> 102220 | C30: 1000 | D30: 0 | E30: =(B30-C30-D30)*12.36% -> 12510.792 | F30: =B30-C30-D30+E30 -> 113730.792 | G30: =IF(G$8="SILVASSA",HLOOKUP($A30,'[1]PROPOSED GAIL EX WORKS'!$D$2:$AE$90,4,0)) -> 102230 | H30: 1000 | I30: 0 | J30: =(G30-H30-I30)*12.36% -> 12512.028 | K30: =G30-H30-I30+J30 -> 113742.028 | L30: =IF(L$8="MUMBAI/BHIWANDI/THANE",HLOOKUP($A30,'[1]PROPOSED GAIL EX WORKS'!$D$2:$AE$90,5,0)) -> 101700 | M30: 1000 | N30: 0 | O30: =(L30-M30-N30)*12.36% -> 12446.52 | P30: =L30-M30-N30+O30 -> 113146.52 | Q30: =IF(Q$8="JALGAON",HLOOKUP($A30,'[1]PROPOSED GAIL EX WORKS'!$D$2:$AE$90,6,0)) -> 102660 | R30: 1000 | S30: 0 | T30: =(Q30-R30-S30)*12.36% -> 12565.176 | U30: =Q30-R30-S30+T30 -> 114225.176 | V30: =IF(V$8="NAGPUR",HLOOKUP($A30,'[1]PROPOSED GAIL EX WORKS'!$D$2:$AE$90,7,0)) -> 103770 | W30: 1000 | X30: 0 | Y30: =(V30-W30-X30)*12.36% -> 12702.372 | Z30: =V30-W30-X30+Y30 -> 115472.372 | AA30: =IF(AA$8="AURANGABAD",HLOOKUP($A30,'[1]PROPOSED GAIL EX WORKS'!$D$2:$AE$90,8,0)) -> 102300 | AB30: 1000 | AC30: 0 | AD30: =(AA30-AB30-AC30)*12.36% -> 12520.68 | AE30: =AA30-AB30-AC30+AD30 -> 113820.68 | AF30: =IF(AF$8="SANGLI",HLOOKUP($A30,'[1]PROPOSED GAIL EX WORKS'!$D$2:$AE$90,9,0)) -> 101840 | AG30: 1000 | AH30: 0 | AI30: =(AF30-AG30-AH30)*12.36% -> 12463.824 | AJ30: =AF30-AG30-AH30+AI30 -> 113303.824
A31: I50A180OG
A32: IM LOW
A33: I60A080A | B33: =IF(B$8="Daman",HLOOKUP($A33,'[1]PROPOSED GAIL EX WORKS'!$D$2:$AE$90,3,0)) -> 103590 | C33: 1000 | D33: 0 | E33: =(B33-C33-D33)*12.36% -> 12680.124 | F33: =B33-C33-D33+E33 -> 115270.124 | G33: =IF(G$8="SILVASSA",HLOOKUP($A33,'[1]PROPOSED GAIL EX WORKS'!$D$2:$AE$90,4,0)) -> 103590 | H33: 1000 | I33: 0 | J33: =(G33-H33-I33)*12.36% -> 12680.124 | K33: =G33-H33-I33+J33 -> 115270.124 | L33: =IF(L$8="MUMBAI/BHIWANDI/THANE",HLOOKUP($A33,'[1]PROPOSED GAIL EX WORKS'!$D$2:$AE$90,5,0)) -> 102940 | M33: 1000 | N33: 0 | O33: =(L33-M33-N33)*12.36% -> 12599.784 | P33: =L33-M33-N33+O33 -> 114539.784 | Q33: =IF(Q$8="JALGAON",HLOOKUP($A33,'[1]PROPOSED GAIL EX WORKS'!$D$2:$AE$90,6,0)) -> 104030 | R33: 1000 | S33: 0 | T33: =(Q33-R33-S33)*12.36% -> 12734.508 | U33: =Q33-R33-S33+T33 -> 115764.508 | V33: =IF(V$8="NAGPUR",HLOOKUP($A33,'[1]PROPOSED GAIL EX WORKS'!$D$2:$AE$90,7,0)) -> 105180 | W33: 1000 | X33: 0 | Y33: =(V33-W33-X33)*12.36% -> 12876.648 | Z33: =V33-W33-X33+Y33 -> 117056.648 | AA33: =IF(AA$8="AURANGABAD",HLOOKUP($A33,'[1]PROPOSED GAIL EX WORKS'!$D$2:$AE$90,8,0)) -> 103660 | AB33: 1000 | AC33: 0 | AD33: =(AA33-AB33-AC33)*12.36% -> 12688.776 | AE33: =AA33-AB33-AC33+AD33 -> 115348.776 | AF33: =IF(AF$8="SANGLI",HLOOKUP($A33,'[1]PROPOSED GAIL EX WORKS'!$D$2:$AE$90,9,0)) -> 103020 | AG33: 1000 | AH33: 0 | AI33: =(AF33-AG33-AH33)*12.36% -> 12609.672 | AJ33: =AF33-AG33-AH33+AI33 -> 114629.672
A34: I60A080OG
A35: IM-L-UV
A36: I60U080A | B36: =IF(B$8="Daman",HLOOKUP($A36,'[1]PROPOSED GAIL EX WORKS'!$D$2:$AE$90,3,0)) -> 105130 | C36: 1000 | D36: 0 | E36: =(B36-C36-D36)*12.36% -> 12870.468 | F36: =B36-C36-D36+E36 -> 117000.468 | G36: =IF(G$8="SILVASSA",HLOOKUP($A36,'[1]PROPOSED GAIL EX WORKS'!$D$2:$AE$90,4,0)) -> 105130 | H36: 1000 | I36: 0 | J36: =(G36-H36-I36)*12.36% -> 12870.468 | K36: =G36-H36-I36+J36 -> 117000.468 | L36: =IF(L$8="MUMBAI/BHIWANDI/THANE",HLOOKUP($A36,'[1]PROPOSED GAIL EX WORKS'!$D$2:$AE$90,5,0)) -> 104470 | M36: 1000 | N36: 0 | O36: =(L36-M36-N36)*12.36% -> 12788.892 | P36: =L36-M36-N36+O36 -> 116258.892 | Q36: =IF(Q$8="JALGAON",HLOOKUP($A36,'[1]PROPOSED GAIL EX WORKS'!$D$2:$AE$90,6,0)) -> 105570 | R36: 1000 | S36: 0 | T36: =(Q36-R36-S36)*12.36% -> 12924.852 | U36: =Q36-R36-S36+T36 -> 117494.852 | V36: =IF(V$8="NAGPUR",HLOOKUP($A36,'[1]PROPOSED GAIL EX WORKS'!$D$2:$AE$90,7,0)) -> 106710 | W36: 1000 | X36: 0 | Y36: =(V36-W36-X36)*12.36% -> 13065.756 | Z36: =V36-W36-X36+Y36 -> 118775.756 | AA36: =IF(AA$8="AURANGABAD",HLOOKUP($A36,'[1]PROPOSED GAIL EX WORKS'!$D$2:$AE$90,8,0)) -> 105200 | AB36: 1000 | AC36: 0 | AD36: =(AA36-AB36-AC36)*12.36% -> 12879.12 | AE36: =AA36-AB36-AC36+AD36 -> 117079.12 | AF36: =IF(AF$8="SANGLI",HLOOKUP($A36,'[1]PROPOSED GAIL EX WORKS'!$D$2:$AE$90,9,0)) -> 104560 | AG36: 1000 | AH36: 0 | AI36: =(AF36-AG36-AH36)*12.36% -> 12800.016 | AJ36: =AF36-AG36-AH36+AI36 -> 116360.016
A37: I60U080OG
A38: PIPE (PE80)
A39: P54A001A | B39: =IF(B$8="Daman",HLOOKUP($A39,'[1]PROPOSED GAIL EX WORKS'!$D$2:$AE$90,3,0)) -> 112610 | C39: 1000 | D39: 0 | E39: =(B39-C39-D39)*12.36% -> 13794.996 | F39: =B39-C39-D39+E39 -> 125404.996 | G39: =IF(G$8="SILVASSA",HLOOKUP($A39,'[1]PROPOSED GAIL EX WORKS'!$D$2:$AE$90,4,0)) -> 112620 | H39: 1000 | I39: 0 | J39: =(G39-H39-I39)*12.36% -> 13796.232 | K39: =G39-H39-I39+J39 -> 125416.232 | L39: =IF(L$8="MUMBAI/BHIWANDI/THANE",HLOOKUP($A39,'[1]PROPOSED GAIL EX WORKS'!$D$2:$AE$90,5,0)) -> 112030 | M39: 1000 | N39: 0 | O39: =(L39-M39-N39)*12.36% -> 13723.308 | P39: =L39-M39-N39+O39 -> 124753.308 | Q39: =IF(Q$8="JALGAON",HLOOKUP($A39,'[1]PROPOSED GAIL EX WORKS'!$D$2:$AE$90,6,0)) -> 113060 | R39: 1000 | S39: 0 | T39: =(Q39-R39-S39)*12.36% -> 13850.616 | U39: =Q39-R39-S39+T39 -> 125910.616 | V39: =IF(V$8="NAGPUR",HLOOKUP($A39,'[1]PROPOSED GAIL EX WORKS'!$D$2:$AE$90,7,0)) -> 114200 | W39: 1000 | X39: 0 | Y39: =(V39-W39-X39)*12.36% -> 13991.52 | Z39: =V39-W39-X39+Y39 -> 127191.52 | AA39: =IF(AA$8="AURANGABAD",HLOOKUP($A39,'[1]PROPOSED GAIL EX WORKS'!$D$2:$AE$90,8,0)) -> 112670 | AB39: 1000 | AC39: 0 | AD39: =(AA39-AB39-AC39)*12.36% -> 13802.412 | AE39: =AA39-AB39-AC39+AD39 -> 125472.412 | AF39: =IF(AF$8="SANGLI",HLOOKUP($A39,'[1]PROPOSED GAIL EX WORKS'!$D$2:$AE$90,9,0)) -> 112150 | AG39: 1000 | AH39: 0 | AI39: =(AF39-AG39-AH39)*12.36% -> 13738.14 | AJ39: =AF39-AG39-AH39+AI39 -> 124888.14
A40: PIPE (PE100)
A41: P52A003A | B41: =IF(B$8="Daman",HLOOKUP($A41,'[1]PROPOSED GAIL EX WORKS'!$D$2:$AE$90,3,0)) -> 114610 | C41: 1000 | D41: 0 | E41: =(B41-C41-D41)*12.36% -> 14042.196 | F41: =B41-C41-D41+E41 -> 127652.196 | G41: =IF(G$8="SILVASSA",HLOOKUP($A41,'[1]PROPOSED GAIL EX WORKS'!$D$2:$AE$90,4,0)) -> 114620 | H41: 1000 | I41: 0 | J41: =(G41-H41-I41)*12.36% -> 14043.432 | K41: =G41-H41-I41+J41 -> 127663.432 | L41: =IF(L$8="MUMBAI/BHIWANDI/THANE",HLOOKUP($A41,'[1]PROPOSED GAIL EX WORKS'!$D$2:$AE$90,5,0)) -> 114030 | M41: 1000 | N41: 0 | O41: =(L41-M41-N41)*12.36% -> 13970.508 | P41: =L41-M41-N41+O41 -> 127000.508 | Q41: =IF(Q$8="JALGAON",HLOOKUP($A41,'[1]PROPOSED GAIL EX WORKS'!$D$2:$AE$90,6,0)) -> 115060 | R41: 1000 | S41: 0 | T41: =(Q41-R41-S41)*12.36% -> 14097.816 | U41: =Q41-R41-S41+T41 -> 128157.816 | V41: =IF(V$8="NAGPUR",HLOOKUP($A41,'[1]PROPOSED GAIL EX WORKS'!$D$2:$AE$90,7,0)) -> 116200 | W41: 1000 | X41: 0 | Y41: =(V41-W41-X41)*12.36% -> 14238.72 | Z41: =V41-W41-X41+Y41 -> 129438.72 | AA41: =IF(AA$8="AURANGABAD",HLOOKUP($A41,'[1]PROPOSED GAIL EX WORKS'!$D$2:$AE$90,8,0)) -> 114670 | AB41: 1000 | AC41: 0 | AD41: =(AA41-AB41-AC41)*12.36% -> 14049.612 | AE41: =AA41-AB41-AC41+AD41 -> 127719.612 | AF41: =IF(AF$8="SANGLI",HLOOKUP($A41,'[1]PROPOSED GAIL EX WORKS'!$D$2:$AE$90,9,0)) -> 114150 | AG41: 1000 | AH41: 0 | AI41: =(AF41-AG41-AC41)*12.36% -> 13985.34 | AJ41: =AF41-AG41-AC41+AI41 -> 127135.34
A42: RAFFIA
A43: W50A009A | B43: =IF(B$8="Daman",HLOOKUP($A43,'[1]PROPOSED GAIL EX WORKS'!$D$2:$AE$90,3,0)) -> 106720 | C43: 1000 | D43: 0 | E43: =(B43-C43-D43)*12.36% -> 13066.992 | F43: =B43-C43-D43+E43 -> 118786.992 | G43: =IF(G$8="SILVASSA",HLOOKUP($A43,'[1]PROPOSED GAIL EX WORKS'!$D$2:$AE$90,4,0)) -> 106720 | H43: 1000 | I43: 0 | J43: =(G43-H43-I43)*12.36% -> 13066.992 | K43: =G43-H43-I43+J43 -> 118786.992 | L43: =IF(L$8="MUMBAI/BHIWANDI/THANE",HLOOKUP($A43,'[1]PROPOSED GAIL EX WORKS'!$D$2:$AE$90,5,0)) -> 106060 | M43: 1000 | N43: 0 | O43: =(L43-M43-N43)*12.36% -> 12985.416 | P43: =L43-M43-N43+O43 -> 118045.416 | Q43: =IF(Q$8="JALGAON",HLOOKUP($A43,'[1]PROPOSED GAIL EX WORKS'!$D$2:$AE$90,6,0)) -> 107160 | R43: 1000 | S43: 0 | T43: =(Q43-R43-S43)*12.36% -> 13121.376 | U43: =IF(S$8="NAGPUR",HLOOKUP($A43,[1]Sheet6!$D$2:$AE$90,7,0)) -> FALSE | V43: =IF(V$8="NAGPUR",HLOOKUP($A43,'[1]PROPOSED GAIL EX WORKS'!$D$2:$AE$90,7,0)) -> 108300 | W43: 1000 | X43: 0 | Y43: =(V43-W43-X43)*12.36% -> 13262.28 | Z43: =V43-W43-X43+Y43 -> 120562.28 | AA43: =IF(AA$8="AURANGABAD",HLOOKUP($A43,'[1]PROPOSED GAIL EX WORKS'!$D$2:$AE$90,8,0)) -> 106790 | AB43: 1000 | AC43: 0 | AD43: =(AA43-AB43-AC43)*12.36% -> 13075.644 | AE43: =AA43-AB43-AC43+AD43 -> 118865.644 | AF43: =IF(AF$8="SANGLI",HLOOKUP($A43,'[1]PROPOSED GAIL EX WORKS'!$D$2:$AE$90,9,0)) -> 106150 | AG43: 1000 | AH43: 0 | AI43: =(AF43-AG43-AH43)*12.36% -> 12996.54 | AJ43: =AF43-AG43-AH43+AI43 -> 118146.54
A44: T50A010A | B44: =IF(B$8="Daman",HLOOKUP($A44,'[1]PROPOSED GAIL EX WORKS'!$D$2:$AE$90,3,0)) -> 106720 | C44: 1000 | D44: 0 | E44: =(B44-C44-D44)*12.36% -> 13066.992 | F44: =B44-C44-D44+E44 -> 118786.992 | G44: =IF(G$8="SILVASSA",HLOOKUP($A44,'[1]PROPOSED GAIL EX WORKS'!$D$2:$AE$90,4,0)) -> 106720 | H44: 1000 | I44: 0 | J44: =(G44-H44-I44)*12.36% -> 13066.992 | K44: =G44-H44-I44+J44 -> 118786.992 | L44: =IF(L$8="MUMBAI/BHIWANDI/THANE",HLOOKUP($A44,'[1]PROPOSED GAIL EX WORKS'!$D$2:$AE$90,5,0)) -> 106060 | M44: 1000 | N44: 0 | O44: =(L44-M44-N44)*12.36% -> 12985.416 | P44: =L44-M44-N44+O44 -> 118045.416 | Q44: =IF(Q$8="JALGAON",HLOOKUP($A44,'[1]PROPOSED GAIL EX WORKS'!$D$2:$AE$90,6,0)) -> 107160 | R44: 1000 | S44: 0 | T44: =(Q44-R44-S44)*12.36% -> 13121.376 | U44: =Q44-R44-S44+T44 -> 119281.376 | V44: =IF(V$8="NAGPUR",HLOOKUP($A44,'[1]PROPOSED GAIL EX WORKS'!$D$2:$AE$90,7,0)) -> 108300 | W44: 1000 | X44: 0 | Y44: =(V44-W44-X44)*12.36% -> 13262.28 | Z44: =V44-W44-X44+Y44 -> 120562.28 | AA44: =IF(AA$8="AURANGABAD",HLOOKUP($A44,'[1]PROPOSED GAIL EX WORKS'!$D$2:$AE$90,8,0)) -> 106790 | AB44: 1000 | AC44: 0 | AD44: =(AA44-AB44-AC44)*12.36% -> 13075.644 | AE44: =AA44-AB44-AC44+AD44 -> 118865.644 | AF44: =IF(AF$8="SANGLI",HLOOKUP($A44,'[1]PROPOSED GAIL EX WORKS'!$D$2:$AE$90,9,0)) -> 106150 | AG44: 1000 | AH44: 0 | AI44: =(AF44-AG44-AH44)*12.36% -> 12996.54 | AJ44: =AF44-AG44-AH44+AI44 -> 118146.54
A45: MF
A46: W52A009A | B46: =IF(B$8="Daman",HLOOKUP($A46,'[1]PROPOSED GAIL EX WORKS'!$D$2:$AE$90,3,0)) -> 103220 | C46: 1000 | D46: 0 | E46: =(B46-C46-D46)*12.36% -> 12634.392 | F46: =B46-C46-D46+E46 -> 114854.392 | G46: =IF(G$8="SILVASSA",HLOOKUP($A46,'[1]PROPOSED GAIL EX WORKS'!$D$2:$AE$90,4,0)) -> 103220 | H46: 1000 | I46: 0 | J46: =(G46-H46-I46)*12.36% -> 12634.392 | K46: =G46-H46-I46+J46 -> 114854.392 | L46: =IF(L$8="MUMBAI/BHIWANDI/THANE",HLOOKUP($A46,'[1]PROPOSED GAIL EX WORKS'!$D$2:$AE$90,5,0)) -> 102560 | M46: 1000 | N46: 0 | O46: =(L46-M46-N46)*12.36% -> 12552.816 | P46: =L46-M46-N46+O46 -> 114112.816 | Q46: =IF(Q$8="JALGAON",HLOOKUP($A46,'[1]PROPOSED GAIL EX WORKS'!$D$2:$AE$90,6,0)) -> 103660 | R46: 1000 | S46: 0 | T46: =(Q46-R46-S46)*12.36% -> 12688.776 | U46: =Q46-R46-S46+T46 -> 115348.776 | V46: =IF(V$8="NAGPUR",HLOOKUP($A46,'[1]PROPOSED GAIL EX WORKS'!$D$2:$AE$90,7,0)) -> 104800 | W46: 1000 | X46: 0 | Y46: =(V46-W46-X46)*12.36% -> 12829.68 | Z46: =V46-W46-X48+Y46 -> 116629.68 | AA46: =IF(AA$8="AURANGABAD",HLOOKUP($A46,'[1]PROPOSED GAIL EX WORKS'!$D$2:$AE$90,8,0)) -> 103290 | AB46: 1000 | AC46: 0 | AD46: =(AA46-AB46-AC46)*12.36% -> 12643.044 | AE46: =AA46-AB46-AC48+AD46 -> 114933.044 | AF46: =IF(AF$8="SANGLI",HLOOKUP($A46,'[1]PROPOSED GAIL EX WORKS'!$D$2:$AE$90,9,0)) -> 102650 | AG46: 1000 | AH46: 0 | AI46: =(AF46-AG46-AH46)*12.36% -> 12563.94 | AJ46: =AF46-AG46-AH46+AI46 -> 114213.94
A47: W52A009OG
A48: W52ASR009A | B48: =IF(B$8="Daman",HLOOKUP($A48,'[1]PROPOSED GAIL EX WORKS'!$D$2:$AE$90,3,0)) -> 103220 | C48: 1000 | D48: 0 | E48: =(B48-C48-D48)*12.36% -> 12634.392 | F48: =B48-C48-D48+E48 -> 114854.392 | G48: =IF(G$8="SILVASSA",HLOOKUP($A48,'[1]PROPOSED GAIL EX WORKS'!$D$2:$AE$90,4,0)) -> 103220 | H48: 1000 | I48: 0 | J48: =(G48-H48-I48)*12.36% -> 12634.392 | K48: =G48-H48-I48+J48 -> 114854.392 | L48: =IF(L$8="MUMBAI/BHIWANDI/THANE",HLOOKUP($A48,'[1]PROPOSED GAIL EX WORKS'!$D$2:$AE$90,5,0)) -> 102560 | M48: 1000 | N48: 0 | O48: =(L48-M48-N48)*12.36% -> 12552.816 | P48: =L48-M48-N48+O48 -> 114112.816 | Q48: =IF(Q$8="JALGAON",HLOOKUP($A48,'[1]PROPOSED GAIL EX WORKS'!$D$2:$AE$90,6,0)) -> 103660 | R48: 1000 | S48: 0 | T48: =(Q48-R48-S48)*12.36% -> 12688.776 | U48: =Q48-R48-S48+T48 -> 115348.776 | V48: =IF(V$8="NAGPUR",HLOOKUP($A48,'[1]PROPOSED GAIL EX WORKS'!$D$2:$AE$90,7,0)) -> 104800 | W48: 1000 | X48: 0 | Y48: =(V48-W48-X48)*12.36% -> 12829.68 | Z48: =V48-W48-X50+Y48 -> 116629.68 | AA48: =IF(AA$8="AURANGABAD",HLOOKUP($A48,'[1]PROPOSED GAIL EX WORKS'!$D$2:$AE$90,8,0)) -> 103290 | AB48: 1000 | AC48: 0 | AD48: =(AA48-AB48-AC48)*12.36% -> 12643.044 | AE48: =AA48-AB48-AC50+AD48 -> 114933.044 | AF48: =IF(AF$8="SANGLI",HLOOKUP($A48,'[1]PROPOSED GAIL EX WORKS'!$D$2:$AE$90,9,0)) -> 102650 | AG48: 1000 | AH48: 0 | AI48: =(AF48-AG48-AH48)*12.36% -> 12563.94 | AJ48: =AF48-AG48-AH48+AI48 -> 114213.94
A49: W55A004A | B49: =IF(B$8="Daman",HLOOKUP($A49,'[1]PROPOSED GAIL EX WORKS'!$D$2:$AE$90,3,0)) -> 106220 | C49: 1000 | D49: 0 | E49: =(B49-C49-D49)*12.36% -> 13005.192 | F49: =B49-C49-D49+E49 -> 118225.192 | G49: =IF(G$8="SILVASSA",HLOOKUP($A49,'[1]PROPOSED GAIL EX WORKS'!$D$2:$AE$90,4,0)) -> 106220 | H49: 1000 | I49: 0 | J49: =(G49-H49-I49)*12.36% -> 13005.192 | K49: =G49-H49-I49+J49 -> 118225.192 | L49: =IF(L$8="MUMBAI/BHIWANDI/THANE",HLOOKUP($A49,'[1]PROPOSED GAIL EX WORKS'!$D$2:$AE$90,5,0)) -> 105560 | M49: 1000 | N49: 0 | O49: =(L49-M49-N49)*12.36% -> 12923.616 | P49: =L49-M49-N49+O49 -> 117483.616 | Q49: =IF(Q$8="JALGAON",HLOOKUP($A49,'[1]PROPOSED GAIL EX WORKS'!$D$2:$AE$90,6,0)) -> 106660 | R49: 1000 | S49: 0 | T49: =(Q49-R49-S49)*12.36% -> 13059.576 | U49: =Q49-R49-S49+T49 -> 118719.576 | V49: =IF(V$8="NAGPUR",HLOOKUP($A49,'[1]PROPOSED GAIL EX WORKS'!$D$2:$AE$90,7,0)) -> 107800 | W49: 1000 | X49: 0 | Y49: =(V49-W49-X49)*12.36% -> 13200.48 | Z49: =V49-W49-X49+Y49 -> 120000.48 | AA49: =IF(AA$8="AURANGABAD",HLOOKUP($A49,'[1]PROPOSED GAIL EX WORKS'!$D$2:$AE$90,8,0)) -> 106290 | AB49: 1000 | AC49: 0 | AD49: =(AA49-AB49-AC49)*12.36% -> 13013.844 | AE49: =AA49-AB49-AC51+AD49 -> 118303.844 | AF49: =IF(AF$8="SANGLI",HLOOKUP($A49,'[1]PROPOSED GAIL EX WORKS'!$D$2:$AE$90,9,0)) -> 105650 | AG49: 1000 | AH49: 0 | AI49: =(AF49-AG49-AH49)*12.36% -> 12934.74 | AJ49: =AF49-AG49-AH49+AI49 -> 117584.74
A50: LLDPE
A51: E20AN009A | B51: =IF(B$8="Daman",HLOOKUP($A51,'[1]PROPOSED GAIL EX WORKS'!$D$2:$AE$90,3,0)) -> 107980 | C51: 1000 | D51: 0 | E51: =(B51-C51-D51)*12.36% -> 13222.728 | F51: =B51-C51-D51+E51 -> 120202.728 | G51: =IF(G$8="SILVASSA",HLOOKUP($A51,'[1]PROPOSED GAIL EX WORKS'!$D$2:$AE$90,4,0)) -> 107980 | H51: 1000 | I51: 0 | J51: =(G51-H51-I51)*12.36% -> 13222.728 | K51: =G51-H51-I51+J51 -> 120202.728 | L51: =IF(L$8="MUMBAI/BHIWANDI/THANE",HLOOKUP($A51,'[1]PROPOSED GAIL EX WORKS'!$D$2:$AE$90,5,0)) -> 107330 | M51: 1000 | N51: 0 | O51: =(L51-M51-N51)*12.36% -> 13142.388 | P51: =L51-M51-N51+O51 -> 119472.388 | Q51: =IF(Q$8="JALGAON",HLOOKUP($A51,'[1]PROPOSED GAIL EX WORKS'!$D$2:$AE$90,6,0)) -> 108420 | R51: 1000 | S51: 0 | T51: =(Q51-R51-S51)*12.36% -> 13277.112 | U51: =Q51-R51-S51+T51 -> 120697.112 | V51: =IF(V$8="NAGPUR",HLOOKUP($A51,'[1]PROPOSED GAIL EX WORKS'!$D$2:$AE$90,7,0)) -> 109570 | W51: 1000 | X51: 0 | Y51: =(V51-W51-X51)*12.36% -> 13419.252 | Z51: =V51-W51-X51+Y51 -> 121989.252 | AA51: =IF(AA$8="AURANGABAD",HLOOKUP($A51,'[1]PROPOSED GAIL EX WORKS'!$D$2:$AE$90,8,0)) -> 108050 | AB51: 1000 | AC51: 0 | AD51: =(AA51-AB51-AC51)*12.36% -> 13231.38 | AE51: =AA51-AB51-AC51+AD51 -> 120281.38 | AF51: =IF(AF$8="SANGLI",HLOOKUP($A51,'[1]PROPOSED GAIL EX WORKS'!$D$2:$AE$90,9,0)) -> 107410 | AG51: 1000 | AH51: 0 | AI51: =(AF51-AG51-AH51)*12.36% -> 13152.276 | AJ51: =AF51-AG51-AH51+AI51 -> 119562.276
A52: E20AN009OG
A53: E36A060A | B53: =IF(B$8="Daman",HLOOKUP($A53,'[1]PROPOSED GAIL EX WORKS'!$D$2:$AE$90,3,0)) -> 111020 | C53: 1000 | D53: 0 | E53: =(B53-C53-D53)*12.36% -> 13598.472 | F53: =B53-C53-D53+E53 -> 123618.472 | G53: =IF(G$8="SILVASSA",HLOOKUP($A53,'[1]PROPOSED GAIL EX WORKS'!$D$2:$AE$90,4,0)) -> 111020 | H53: 1000 | I53: 0 | J53: =(G53-H53-I53)*12.36% -> 13598.472 | K53: =G53-H53-I53+J53 -> 123618.472 | L53: =IF(L$8="MUMBAI/BHIWANDI/THANE",HLOOKUP($A53,'[1]PROPOSED GAIL EX WORKS'!$D$2:$AE$90,5,0)) -> 110370 | M53: 1000 | N53: 0 | O53: =(L53-M53-N53)*12.36% -> 13518.132 | P53: =L53-M53-N53+O53 -> 122888.132 | Q53: =IF(Q$8="JALGAON",HLOOKUP($A53,'[1]PROPOSED GAIL EX WORKS'!$D$2:$AE$90,6,0)) -> 111470 | R53: 1000 | S53: 0 | T53: =(Q53-R53-S53)*12.36% -> 13654.092 | U53: =Q53-R53-S53+T53 -> 124124.092 | V53: =IF(V$8="NAGPUR",HLOOKUP($A53,'[1]PROPOSED GAIL EX WORKS'!$D$2:$AE$90,7,0)) -> 112610 | W53: 1000 | X53: 0 | Y53: =(V53-W53-X53)*12.36% -> 13794.996 | Z53: =V53-W53-X53+Y53 -> 125404.996 | AA53: =IF(AA$8="AURANGABAD",HLOOKUP($A53,'[1]PROPOSED GAIL EX WORKS'!$D$2:$AE$90,8,0)) -> 111090 | AB53: 1000 | AC53: 0 | AD53: =(AA53-AB53-AC53)*12.36% -> 13607.124 | AE53: =AA53-AB53-AC53+AD53 -> 123697.124 | AF53: =IF(AF$8="SANGLI",HLOOKUP($A53,'[1]PROPOSED GAIL EX WORKS'!$D$2:$AE$90,9,0)) -> 110450 | AG53: 1000 | AH53: 0 | AI53: =(AF53-AG53-AH53)*12.36% -> 13528.02 | AJ53: =AF53-AG53-AH53+AI53 -> 122978.02
A54: E36A060OG
A55: FILM
A56: F20S009A | B56: =IF(B$8="Daman",HLOOKUP($A56,'[1]PROPOSED GAIL EX WORKS'!$D$2:$AE$90,3,0)) -> 109480 | C56: 1000 | D56: 0 | E56: =(B56-C56-D56)*12.36% -> 13408.128 | F56: =B56-C56-D56+E56 -> 121888.128 | G56: =IF(G$8="SILVASSA",HLOOKUP($A56,'[1]PROPOSED GAIL EX WORKS'!$D$2:$AE$90,4,0)) -> 109480 | H56: 1000 | I56: 0 | J56: =(G56-H56-I56)*12.36% -> 13408.128 | K56: =G56-H56-I56+J56 -> 121888.128 | L56: =IF(L$8="MUMBAI/BHIWANDI/THANE",HLOOKUP($A56,'[1]PROPOSED GAIL EX WORKS'!$D$2:$AE$90,5,0)) -> 108830 | M56: 1000 | N56: 0 | O56: =(L56-M56-N56)*12.36% -> 13327.788 | P56: =L56-M56-N56+O56 -> 121157.788 | Q56: =IF(Q$8="JALGAON",HLOOKUP($A56,'[1]PROPOSED GAIL EX WORKS'!$D$2:$AE$90,6,0)) -> 109920 | R56: 1000 | S56: 0 | T56: =(Q56-R56-S56)*12.36% -> 13462.512 | U56: =Q56-R56-S56+T56 -> 122382.512 | V56: =IF(V$8="NAGPUR",HLOOKUP($A56,'[1]PROPOSED GAIL EX WORKS'!$D$2:$AE$90,7,0)) -> 111070 | W56: 1000 | X56: 0 | Y56: =(V56-W56-X56)*12.36% -> 13604.652 | Z56: =V56-W56-X56+Y56 -> 123674.652 | AA56: =IF(AA$8="AURANGABAD",HLOOKUP($A56,'[1]PROPOSED GAIL EX WORKS'!$D$2:$AE$90,8,0)) -> 109550 | AB56: 1000 | AC56: 0 | AD56: =(AA56-AB56-AC56)*12.36% -> 13416.78 | AE56: =AA56-AB56-AC56+AD56 -> 121966.78 | AF56: =IF(AF$8="SANGLI",HLOOKUP($A56,'[1]PROPOSED GAIL EX WORKS'!$D$2:$AE$90,9,0)) -> 108910 | AG56: 1000 | AH56: 0 | AI56: =(AF56-AG56-AH56)*12.36% -> 13337.676 | AJ56: =AF56-AG56-AH56+AI56 -> 121247.676
A57: F20S009OG
A58: D22S010A | B58: =IF(B$8="Daman",HLOOKUP($A58,'[1]PROPOSED GAIL EX WORKS'!$D$2:$AE$90,3,0)) -> 108480 | C58: 1000 | D58: 0 | E58: =(B58-C58-D58)*12.36% -> 13284.528 | F58: =B58-C58-D58+E58 -> 120764.528 | G58: =IF(G$8="SILVASSA",HLOOKUP($A58,'[1]PROPOSED GAIL EX WORKS'!$D$2:$AE$90,4,0)) -> 108480 | H58: 1000 | I58: 0 | J58: =(G58-H58-I58)*12.36% -> 13284.528 | K58: =G58-H58-I58+J58 -> 120764.528 | L58: =IF(L$8="MUMBAI/BHIWANDI/THANE",HLOOKUP($A58,'[1]PROPOSED GAIL EX WORKS'!$D$2:$AE$90,5,0)) -> 107830 | M58: 1000 | N58: 0 | O58: =(L58-M58-N58)*12.36% -> 13204.188 | P58: =L58-M58-N58+O58 -> 120034.188 | Q58: =IF(Q$8="JALGAON",HLOOKUP($A58,'[1]PROPOSED GAIL EX WORKS'!$D$2:$AE$90,6,0)) -> 108920 | R58: 1000 | S58: 0 | T58: =(Q58-R58-S58)*12.36% -> 13338.912 | U58: =Q58-R58-S58+T58 -> 121258.912 | V58: =IF(V$8="NAGPUR",HLOOKUP($A58,'[1]PROPOSED GAIL EX WORKS'!$D$2:$AE$90,7,0)) -> 110070 | W58: 1000 | X58: 0 | Y58: =(V58-W58-X58)*12.36% -> 13481.052 | Z58: =V58-W58-X58+Y58 -> 122551.052 | AA58: =IF(AA$8="AURANGABAD",HLOOKUP($A58,'[1]PROPOSED GAIL EX WORKS'!$D$2:$AE$90,8,0)) -> 108550 | AB58: 1000 | AC58: 0 | AD58: =(AA58-AB58-AC58)*12.36% -> 13293.18 | AE58: =AA58-AB58-AC58+AD58 -> 120843.18 | AF58: =IF(AF$8="SANGLI",HLOOKUP($A58,'[1]PROPOSED GAIL EX WORKS'!$D$2:$AE$90,9,0)) -> 107910 | AG58: 1000 | AH58: 0 | AI58: =(AF58-AG58-AH58)*12.36% -> 13214.076 | AJ58: =AF58-AG58-AH58+AI58 -> 120124.076
A59: ROTO
A60: R35A042A | B60: =IF(B$8="Daman",HLOOKUP($A60,'[1]PROPOSED GAIL EX WORKS'!$D$2:$AE$90,3,0)) -> 108000 | C60: 1000 | D60: 0 | E60: =(B60-C60-D60)*12.36% -> 13225.2 | F60: =B60-C60-D60+E60 -> 120225.2 | G60: =IF(G$8="SILVASSA",HLOOKUP($A60,'[1]PROPOSED GAIL EX WORKS'!$D$2:$AE$90,4,0)) -> 108010 | H60: 1000 | I60: 0 | J60: =(G60-H60-I60)*12.36% -> 13226.436 | K60: =G60-H60-I60+J60 -> 120236.436 | L60: =IF(L$8="MUMBAI/BHIWANDI/THANE",HLOOKUP($A60,'[1]PROPOSED GAIL EX WORKS'!$D$2:$AE$90,5,0)) -> 107420 | M60: 1000 | N60: 0 | O60: =(L60-M60-N60)*12.36% -> 13153.512 | P60: =L60-M60-N60+O60 -> 119573.512 | Q60: =IF(Q$8="JALGAON",HLOOKUP($A60,'[1]PROPOSED GAIL EX WORKS'!$D$2:$AE$90,6,0)) -> 108450 | R60: 1000 | S60: 0 | T60: =(Q60-R60-S60)*12.36% -> 13280.82 | U60: =Q60-R60-S60+T60 -> 120730.82 | V60: =IF(V$8="NAGPUR",HLOOKUP($A60,'[1]PROPOSED GAIL EX WORKS'!$D$2:$AE$90,7,0)) -> 109590 | W60: 1000 | X60: 0 | Y60: =(V60-W60-X60)*12.36% -> 13421.724 | Z60: =V60-W60-X60+Y60 -> 122011.724 | AA60: =IF(AA$8="AURANGABAD",HLOOKUP($A60,'[1]PROPOSED GAIL EX WORKS'!$D$2:$AE$90,8,0)) -> 108060 | AB60: 1000 | AC60: 0 | AD60: =(AA60-AB60-AC60)*12.36% -> 13232.616 | AE60: =AA60-AB60-AC60+AD60 -> 120292.616 | AF60: =IF(AF$8="SANGLI",HLOOKUP($A60,'[1]PROPOSED GAIL EX WORKS'!$D$2:$AE$90,9,0)) -> 107540 | AG60: 1000 | AH60: 0 | AI60: =(AF60-AG60-AH60)*12.36% -> 13168.344 | AJ60: =AF60-AG60-AH60+AI60 -> 119708.344
A61: R35U042A | B61: =IF(B$8="Daman",HLOOKUP($A61,'[1]PROPOSED GAIL EX WORKS'!$D$2:$AE$90,3,0)) -> 108860 | C61: 1000 | D61: 0 | E61: =(B61-C61-D61)*12.36% -> 13331.496 | F61: =B61-C61-D61+E61 -> 121191.496 | G61: =IF(G$8="SILVASSA",HLOOKUP($A61,'[1]PROPOSED GAIL EX WORKS'!$D$2:$AE$90,4,0)) -> 108870 | H61: 1000 | I61: 0 | J61: =(G61-H61-I61)*12.36% -> 13332.732 | K61: =G61-H61-I61+J61 -> 121202.732 | L61: =IF(L$8="MUMBAI/BHIWANDI/THANE",HLOOKUP($A61,'[1]PROPOSED GAIL EX WORKS'!$D$2:$AE$90,5,0)) -> 108280 | M61: 1000 | N61: 0 | O61: =(L61-M61-N61)*12.36% -> 13259.808 | P61: =L61-M61-N61+O61 -> 120539.808 | Q61: =IF(Q$8="JALGAON",HLOOKUP($A61,'[1]PROPOSED GAIL EX WORKS'!$D$2:$AE$90,6,0)) -> 109310 | R61: 1000 | S61: 0 | T61: =(Q61-R61-S61)*12.36% -> 13387.116 | U61: =Q61-R61-S61+T61 -> 121697.116 | V61: =IF(V$8="NAGPUR",HLOOKUP($A61,'[1]PROPOSED GAIL EX WORKS'!$D$2:$AE$90,7,0)) -> 110450 | W61: 1000 | X61: 0 | Y61: =(V61-W61-X61)*12.36% -> 13528.02 | Z61: =V61-W61-X61+Y61 -> 122978.02 | AA61: =IF(AA$8="AURANGABAD",HLOOKUP($A61,'[1]PROPOSED GAIL EX WORKS'!$D$2:$AE$90,8,0)) -> 108920 | AB61: 1000 | AC61: 0 | AD61: =(AA61-AB61-AC61)*12.36% -> 13338.912 | AE61: =AA61-AB61-AC61+AD61 -> 121258.912 | AF61: =IF(AF$8="SANGLI",HLOOKUP($A61,'[1]PROPOSED GAIL EX WORKS'!$D$2:$AE$90,9,0)) -> 108400 | AG61: 1000 | AH61: 0 | AI61: =(AF61-AG61-AH61)*12.36% -> 13274.64 | AJ61: =AF61-AG61-AH61+AI61 -> 120674.64
Z62: .
A63: NOTE: | B63: LOCATION DISCOUNT HAS BEEN DISCONTINUED
B65: THE PRICES OF OLD PLANT & NEW PLANT ARE SAME FROM DIRECT SALE

Sheet Sheet2
A2: UNITED BROTHERS
A3: CONSIGNMENT STOCKIST OF GAIL (INDIA) LTD
A4: 301,HERITAGE PLAZA, R.S.MAHARAJ MARG,( TELI GALLI CROSS LANE), ANDHERI (E), MUMBAI - 400 069
A5: EL: 26844612(4 LINES) FAX: 26822914 E-MAIL: info@unibrothers.com, prashant@unibrothers.com,jyoti@unibrotehers.com
A6: EX-WORKS PRICE OF HDPE "G-LEX / G-LENE " W.E.F. 1ST MAY 2014
A7: CASH / ADVANCE PAYMENT FOR MAHARASHTRA & DAMAN
B8: Freight | D8: 2833.73 | G8: Freight | I8: 2016.35 | L8: Freight | N8: 2640.33 | Q8: Freight | S8: 2825.33 | V8: Freight | X8: 2282.96 | AA8: Freight | AC8: 3163.78 | AF8: Freight 1986.51 | AG8: 2446.93 | AK8: FREIGHT | AL8: 2814.81
B9: SOLAPUR | G9: UMBERGAON | L9: PUNE | Q9: WAI | V9: NASIK | AA9: KOLHAPUR | AF9: AHMEDNAGAR | AK9: ROHA
B10: BASIC | C10: DISC | D10: LOC | E10: EXCISE | F10: EX-WKS | G10: BASIC | H10: DISC | I10: LOC | J10: EXCISE | K10: EX-WKS | L10: BASIC | M10: DISC | N10: LOC | O10: EXCISE | P10: EX-WKS | Q10: BASIC | R10: DISC | S10: LOC | T10: EXCISE | U10: EX-WKS | V10: BASIC | W10: DISC | X10: LOC | Y10: EXCISE | Z10: EX-WKS | AB10: DISC | AC10: LOC | AD10: EXCISE | AE10: EX-WKS | AF10: BASIC | AG10: DISC | AH10: LOC | AI10: EXCISE | AJ10: EX-WKS | AL10: DISC | AM10: LOC | AN10: EXCISE | AO10: EX-WKS
A11: BM
A12: B52A003A | B12: =IF(B$9="SOLAPUR",HLOOKUP($A12,'[2]PROPOSED GAIL EX WORKS'!$D$2:$AE$90,10,0)) -> 105780 | C12: 1000 | D12: 0 | E12: =(B12-C12-D12)*12.36% -> 12950.808 | F12: =B12-C12-D12+E12 -> 117730.808 | G12: =IF(G$9="UMBERGAON",HLOOKUP($A12,'[2]PROPOSED GAIL EX WORKS'!$D$2:$AE$90,11,0)) -> 106720 | H12: 1000 | I12: 0 | J12: =(G12-H12-I12)*12.36% -> 13066.992 | K12: =G12-H12-I12+J12 -> 118786.992 | L12: =IF(L$9="PUNE",HLOOKUP($A12,'[2]PROPOSED GAIL EX WORKS'!$D$2:$AE$90,12,0)) -> 105760 | M12: 1000 | N12: 0 | O12: =(L12-M12-N12)*12.36% -> 12948.336 | P12: =L12-M12-N12+O12 -> 117708.336 | Q12: =IF(Q$9="WAI",HLOOKUP($A12,'[2]PROPOSED GAIL EX WORKS'!$D$2:$AE$90,13,0)) -> 105760 | R12: 1000 | S12: 0 | T12: =(Q12-R12-S12)*12.36% -> 12948.336 | U12: =Q12-R12-S12+T12 -> 117708.336 | V12: =IF(V$9="NASIK",HLOOKUP($A12,'[2]PROPOSED GAIL EX WORKS'!$D$2:$AE$90,14,0)) -> 106190 | W12: 1000 | X12: 0 | Y12: =(V12-W12-X12)*12.36% -> 13001.484 | Z12: =V12-W12-X12+Y12 -> 118191.484 | AA12: =IF(AA$9="KOLHAPUR",HLOOKUP($A12,'[2]PROPOSED GAIL EX WORKS'!$D$2:$AE$90,15,0)) -> 105610 | AB12: 1000 | AC12: 0 | AD12: =(AA12-AB12-AC12)*12.36% -> 12929.796 | AE12: =AA12-AB12-AC12+AD12 -> 117539.796 | AF12: =IF(AF$9="AHMEDNAGAR",HLOOKUP($A12,'[2]PROPOSED GAIL EX WORKS'!$D$2:$AE$90,16,0)) -> 106410 | AG12: 1000 | AH12: 0 | AI12: =(AF13-AG12-AH12)*12.36% -> 13028.676 | AJ12: =AF13-AG12-AH12+AI12 -> 118438.676 | AK12: =IF(AK$9="ROHA",HLOOKUP($A12,'[2]PROPOSED GAIL EX WORKS'!$D$2:$AE$90,17,0)) -> 106190 | AL12: 1000 | AM12: 0 | AN12: =(AK12-AL12-AM12)*12.36% -> 13001.484 | AO12: =AK12-AL12-AM12+AN12 -> 118191.484
A13: B63A003A | B13: =IF(B$9="SOLAPUR",HLOOKUP($A13,'[2]PROPOSED GAIL EX WORKS'!$D$2:$AE$90,10,0)) -> 105780 | C13: 1000 | D13: 0 | E13: =(B13-C13-D13)*12.36% -> 12950.808 | F13: =B13-C13-D13+E13 -> 117730.808 | G13: =IF(G$9="UMBERGAON",HLOOKUP($A13,'[2]PROPOSED GAIL EX WORKS'!$D$2:$AE$90,11,0)) -> 106720 | H13: 1000 | I13: 0 | J13: =(G13-H13-I13)*12.36% -> 13066.992 | K13: =G13-H13-I13+J13 -> 118786.992 | L13: =IF(L$9="PUNE",HLOOKUP($A13,'[2]PROPOSED GAIL EX WORKS'!$D$2:$AE$90,12,0)) -> 105760 | M13: 1000 | N13: 0 | O13: =(L13-M13-N13)*12.36% -> 12948.336 | P13: =L13-M13-N13+O13 -> 117708.336 | Q13: =IF(Q$9="WAI",HLOOKUP($A13,'[2]PROPOSED GAIL EX WORKS'!$D$2:$AE$90,13,0)) -> 105760 | R13: 1000 | S13: 0 | T13: =(Q13-R13-S13)*12.36% -> 12948.336 | U13: =Q13-R13-S13+T13 -> 117708.336 | V13: =IF(V$9="NASIK",HLOOKUP($A13,'[2]PROPOSED GAIL EX WORKS'!$D$2:$AE$90,14,0)) -> 106190 | W13: 1000 | X13: 0 | Y13: =(V13-W13-X13)*12.36% -> 13001.484 | Z13: =V13-W13-X13+Y13 -> 118191.484 | AA13: =IF(AA$9="KOLHAPUR",HLOOKUP($A13,'[2]PROPOSED GAIL EX WORKS'!$D$2:$AE$90,15,0)) -> 105610 | AB13: 1000 | AC13: 0 | AD13: =(AA13-AB13-AC13)*12.36% -> 12929.796 | AE13: =AA13-AB13-AC13+AD13 -> 117539.796 | AF13: =IF(AF$9="AHMEDNAGAR",HLOOKUP($A13,'[2]PROPOSED GAIL EX WORKS'!$D$2:$AE$90,16,0)) -> 106410 | AG13: 1000 | AH13: 0 | AI13: =(AF14-AG13-AH13)*12.36% -> 13523.076 | AJ13: =AF14-AG13-AH13+AI13 -> 122933.076 | AK13: =IF(AK$9="ROHA",HLOOKUP($A13,'[2]PROPOSED GAIL EX WORKS'!$D$2:$AE$90,17,0)) -> 106190 | AL13: 1000 | AM13: 0 | AN13: =(AK13-AL13-AM13)*12.36% -> 13001.484 | AO13: =AK13-AL13-AM13+AN13 -> 118191.484
A14: B55HM0003A | B14: =IF(B$9="SOLAPUR",HLOOKUP($A14,'[2]PROPOSED GAIL EX WORKS'!$D$2:$AE$90,10,0)) -> 109890 | C14: 1000 | D14: 0 | E14: =(B14-C14-D14)*12.36% -> 13458.804 | F14: =B14-C14-D14+E14 -> 122348.804 | G14: =IF(G$9="UMBERGAON",HLOOKUP($A14,'[2]PROPOSED GAIL EX WORKS'!$D$2:$AE$90,11,0)) -> 111090 | H14: 1000 | I14: 0 | J14: =(G14-H14-I14)*12.36% -> 13607.124 | K14: =G14-H14-I14+J14 -> 123697.124 | L14: =IF(L$9="PUNE",HLOOKUP($A14,'[2]PROPOSED GAIL EX WORKS'!$D$2:$AE$90,12,0)) -> 109790 | M14: 1000 | N14: 0 | O14: =(L14-M14-N14)*12.36% -> 13446.444 | P14: =L14-M14-N14+O14 -> 122236.444 | Q14: =IF(Q$9="WAI",HLOOKUP($A14,'[2]PROPOSED GAIL EX WORKS'!$D$2:$AE$90,13,0)) -> 109790 | R14: 1000 | S14: 0 | T14: =(Q14-R14-S14)*12.36% -> 13446.444 | U14: =Q14-R14-S14+T14 -> 122236.444 | V14: =IF(V$9="NASIK",HLOOKUP($A14,'[2]PROPOSED GAIL EX WORKS'!$D$2:$AE$90,14,0)) -> 110140 | W14: 1000 | X14: 0 | Y14: =(V14-W14-X14)*12.36% -> 13489.704 | Z14: =V14-W14-X14+Y14 -> 122629.704 | AA14: =IF(AA$9="KOLHAPUR",HLOOKUP($A14,'[2]PROPOSED GAIL EX WORKS'!$D$2:$AE$90,15,0)) -> 109580 | AB14: 1000 | AC14: 0 | AD14: =(AA14-AB14-AC14)*12.36% -> 13420.488 | AE14: =AA14-AB14-AC14+AD14 -> 122000.488 | AF14: =IF(AF$9="AHMEDNAGAR",HLOOKUP($A14,'[2]PROPOSED GAIL EX WORKS'!$D$2:$AE$90,16,0)) -> 110410 | AG14: 1000 | AH14: 0 | AI14: =(AF14-AG14-AH14)*12.36% -> 13523.076 | AJ14: =AF14-AG14-AH14+AI14 -> 122933.076 | AK14: =IF(AK$9="ROHA",HLOOKUP($A14,'[2]PROPOSED GAIL EX WORKS'!$D$2:$AE$90,17,0)) -> 110140 | AL14: 1000 | AM14: 0 | AN14: =(AK14-AL14-AM14)*12.36% -> 13489.704 | AO14: =AK14-AL14-AM14+AN14 -> 122629.704
A15: B53EA0035A | G15: =IF(G$9="UMBERGAON",HLOOKUP($A15,'[2]PROPOSED GAIL EX WORKS'!$D$2:$AE$90,11,0)) -> 107220 | H15: 1000 | I15: 0 | J15: =(G15-H15-I15)*12.36% -> 13128.792 | K15: =G15-H15-I15+J15 -> 119348.792
A16: CABLE-INSUL
A17: C43D006A | B17: =IF(B$9="SOLAPUR",HLOOKUP($A17,'[2]PROPOSED GAIL EX WORKS'!$D$2:$AE$90,10,0)) -> 103363.5 | C17: 1000 | D17: 0 | E17: =(B17-C17-D17)*12.36% -> 12652.1286 | F17: =B17-C17-D17+E17 -> 115015.6286 | G17: =IF(G$9="UMBERGAON",HLOOKUP($A17,'[2]PROPOSED GAIL EX WORKS'!$D$2:$AE$90,11,0)) -> 103886 | H17: 1000 | I17: 0 | J17: =(G17-H17-I17)*12.36% -> 12716.7096 | K17: =G17-H17-I17+J17 -> 115602.7096 | L17: =IF(L$9="PUNE",HLOOKUP($A17,'[2]PROPOSED GAIL EX WORKS'!$D$2:$AE$90,12,0)) -> 103335 | M17: 1000 | N17: 0 | O17: =(L17-M17-N17)*12.36% -> 12648.606 | P17: =L17-M17-N17+O17 -> 114983.606 | Q17: =IF(Q$9="WAI",HLOOKUP($A17,'[2]PROPOSED GAIL EX WORKS'!$D$2:$AE$90,13,0)) -> 103335 | R17: 1000 | S17: 0 | T17: =(Q17-R17-S17)*12.36% -> 12648.606 | U17: =Q17-R17-S17+T17 -> 114983.606 | V17: =IF(V$9="NASIK",HLOOKUP($A17,'[2]PROPOSED GAIL EX WORKS'!$D$2:$AE$90,14,0)) -> 103724.5 | W17: 1000 | X17: 0 | Y17: =(V17-W17-X17)*12.36% -> 12696.7482 | Z17: =V17-W17-X17+Y17 -> 115421.2482 | AA17: =IF(AA$9="KOLHAPUR",HLOOKUP($A17,'[2]PROPOSED GAIL EX WORKS'!$D$2:$AE$90,15,0)) -> 103173.5 | AB17: 1000 | AC17: 0 | AD17: =(AA17-AB17-AC17)*12.36% -> 12628.6446 | AE17: =AA17-AB17-AC17+AD17 -> 114802.1446 | AF17: =IF(AF$9="AHMEDNAGAR",HLOOKUP($A17,'[2]PROPOSED GAIL EX WORKS'!$D$2:$AE$90,16,0)) -> 103971.5 | AG17: 1000 | AH17: 0 | AI17: =(AF17-AG17-AH17)*12.36% -> 12727.2774 | AJ17: =AF17-AG17-AH17+AI17 -> 115698.7774 | AK17: =IF(AK$9="ROHA",HLOOKUP($A17,'[2]PROPOSED GAIL EX WORKS'!$D$2:$AE$90,17,0)) -> 103724.5 | AL17: 1000 | AM17: 0 | AN17: =(AK17-AL17-AM17)*12.36% -> 12696.7482 | AO17: =AK17-AL17-AM17+AN17 -> 115421.2482
A19: SHETG
A20: E45A003A | B20: =IF(B$9="SOLAPUR",HLOOKUP($A20,'[2]PROPOSED GAIL EX WORKS'!$D$2:$AE$90,10,0)) -> 104380 | C20: 1000 | D20: 0 | E20: =(B20-C20-D20)*12.36% -> 12777.768 | F20: =B20-C20-D20+E20 -> 116157.768 | G20: =IF(G$9="UMBERGAON",HLOOKUP($A20,'[2]PROPOSED GAIL EX WORKS'!$D$2:$AE$90,11,0)) -> 105080 | H20: 1000 | I20: 0 | J20: =(G20-H20-I20)*12.36% -> 12864.288 | K20: =G20-H20-I20+J20 -> 116944.288 | L20: =IF(L$9="PUNE",HLOOKUP($A20,'[2]PROPOSED GAIL EX WORKS'!$D$2:$AE$90,12,0)) -> 104350 | M20: 1000 | N20: 0 | O20: =(L20-M20-N20)*12.36% -> 12774.06 | P20: =L20-M20-N20+O20 -> 116124.06 | Q20: =IF(Q$9="WAI",HLOOKUP($A20,'[2]PROPOSED GAIL EX WORKS'!$D$2:$AE$90,13,0)) -> 104350 | R20: 1000 | S20: 0 | T20: =(Q20-R20-S20)*12.36% -> 12774.06 | U20: =Q20-R20-S20+T20 -> 116124.06 | V20: =IF(V$9="NASIK",HLOOKUP($A20,'[2]PROPOSED GAIL EX WORKS'!$D$2:$AE$90,14,0)) -> 104750 | W20: 1000 | X20: 0 | Y20: =(V20-W20-X20)*12.36% -> 12823.5 | Z20: =V20-W20-X20+Y20 -> 116573.5 | AA20: =IF(AA$9="KOLHAPUR",HLOOKUP($A20,'[2]PROPOSED GAIL EX WORKS'!$D$2:$AE$90,15,0)) -> 104180 | AB20: 1000 | AC20: 0 | AD20: =(AA20-AB20-AC20)*12.36% -> 12753.048 | AE20: =AA20-AB20-AC20+AD20 -> 115933.048 | AF20: =IF(AF$9="AHMEDNAGAR",HLOOKUP($A20,'[2]PROPOSED GAIL EX WORKS'!$D$2:$AE$90,16,0)) -> 105020 | AG20: 1000 | AH20: 0 | AI20: =(AF20-AG20-AH20)*12.36% -> 12856.872 | AJ20: =AF20-AG20-AH20+AI20 -> 116876.872 | AK20: =IF(AK$9="ROHA",HLOOKUP($A20,'[2]PROPOSED GAIL EX WORKS'!$D$2:$AE$90,17,0)) -> 104750 | AL20: 1000 | AM20: 0 | AN20: =(AK20-AL20-AM20)*12.36% -> 12823.5 | AO20: =AK20-AL20-AM20+AN20 -> 116573.5
A21: E45A003OG
A22: EXTR
A23: E52A003A | B23: =IF(B$9="SOLAPUR",HLOOKUP($A23,'[2]PROPOSED GAIL EX WORKS'!$D$2:$AE$90,10,0)) -> 107050 | C23: 1000 | D23: 0 | E23: =(B23-C23-D23)*12.36% -> 13107.78 | F23: =B23-C23-D23+E23 -> 119157.78 | G23: =IF(G$9="UMBERGAON",HLOOKUP($A23,'[2]PROPOSED GAIL EX WORKS'!$D$2:$AE$90,11,0)) -> 107680 | H23: 1000 | I23: 0 | J23: =(G23-H23-I23)*12.36% -> 13185.648 | K23: =G23-H23-I23+J23 -> 119865.648 | L23: =IF(L$9="PUNE",HLOOKUP($A23,'[2]PROPOSED GAIL EX WORKS'!$D$2:$AE$90,12,0)) -> 107020 | M23: 1000 | N23: 0 | O23: =(L23-M23-N23)*12.36% -> 13104.072 | P23: =L23-M23-N23+O23 -> 119124.072 | Q23: =IF(Q$9="WAI",HLOOKUP($A23,'[2]PROPOSED GAIL EX WORKS'!$D$2:$AE$90,13,0)) -> 107020 | R23: 1000 | S23: 0 | T23: =(Q23-R23-S23)*12.36% -> 13104.072 | U23: =Q23-R23-S23+T23 -> 119124.072 | V23: =IF(V$9="NASIK",HLOOKUP($A23,'[2]PROPOSED GAIL EX WORKS'!$D$2:$AE$90,14,0)) -> 107420 | W23: 1000 | X23: 0 | Y23: =(V23-W23-X23)*12.36% -> 13153.512 | Z23: =V23-W23-X23+Y23 -> 119573.512 | AA23: =IF(AA$9="KOLHAPUR",HLOOKUP($A23,'[2]PROPOSED GAIL EX WORKS'!$D$2:$AE$90,15,0)) -> 106850 | AB23: 1000 | AC23: 0 | AD23: =(AA23-AB23-AC23)*12.36% -> 13083.06 | AE23: =AA23-AB23-AC23+AD23 -> 118933.06 | AF23: =IF(AF$9="AHMEDNAGAR",HLOOKUP($A23,'[2]PROPOSED GAIL EX WORKS'!$D$2:$AE$90,16,0)) -> 107680 | AG23: 1000 | AH23: 0 | AI23: =(AF23-AG23-AH23)*12.36% -> 13185.648 | AJ23: =AF23-AG23-AH23+AI23 -> 119865.648 | AK23: =IF(AK$9="ROHA",HLOOKUP($A23,'[2]PROPOSED GAIL EX WORKS'!$D$2:$AE$90,17,0)) -> 107420 | AL23: 1000 | AM23: 0 | AN23: =(AK23-AL23-AM23)*12.36% -> 13153.512 | AO23: =AK23-AL23-AM23+AN23 -> 119573.512
A24: E52A003OG
A25: E52U003A | B25: =IF(B$9="SOLAPUR",HLOOKUP($A25,'[2]PROPOSED GAIL EX WORKS'!$D$2:$AE$90,10,0)) -> 110830 | C25: 1000 | D25: 0 | E25: =(B25-C25-D25)*12.36% -> 13574.988 | F25: =B25-C25-D25+E25 -> 123404.988 | G25: =IF(G$9="UMBERGAON",HLOOKUP($A25,'[2]PROPOSED GAIL EX WORKS'!$D$2:$AE$90,11,0)) -> 111460 | H25: 1000 | I25: 0 | J25: =(G25-H25-I25)*12.36% -> 13652.856 | K25: =G25-H25-I25+J25 -> 124112.856 | L25: =IF(L$9="PUNE",HLOOKUP($A25,'[2]PROPOSED GAIL EX WORKS'!$D$2:$AE$90,12,0)) -> 110800 | M25: 1000 | N25: 0 | O25: =(L25-M25-N25)*12.36% -> 13571.28 | P25: =L25-M25-N25+O25 -> 123371.28 | Q25: =IF(Q$9="WAI",HLOOKUP($A25,'[2]PROPOSED GAIL EX WORKS'!$D$2:$AE$90,13,0)) -> 110800 | R25: 1000 | S25: 0 | T25: =(Q25-R25-S25)*12.36% -> 13571.28 | U25: =Q25-R25-S25+T25 -> 123371.28 | V25: =IF(V$9="NASIK",HLOOKUP($A25,'[2]PROPOSED GAIL EX WORKS'!$D$2:$AE$90,14,0)) -> 111200 | W25: 1000 | X25: 0 | Y25: =(V25-W25-X25)*12.36% -> 13620.72 | Z25: =V25-W25-X25+Y25 -> 123820.72 | AA25: =IF(AA$9="KOLHAPUR",HLOOKUP($A25,'[2]PROPOSED GAIL EX WORKS'!$D$2:$AE$90,15,0)) -> 110630 | AB25: 1000 | AC25: 0 | AD25: =(AA25-AB25-AC25)*12.36% -> 13550.268 | AE25: =AA25-AB25-AC25+AD25 -> 123180.268 | AF25: =IF(AF$9="AHMEDNAGAR",HLOOKUP($A25,'[2]PROPOSED GAIL EX WORKS'!$D$2:$AE$90,16,0)) -> 111460 | AG25: 1000 | AH25: 0 | AI25: =(AF25-AG25-AH25)*12.36% -> 13652.856 | AJ25: =AF25-AG25-AH25+AI25 -> 124112.856 | AK25: =IF(AK$9="ROHA",HLOOKUP($A25,'[2]PROPOSED GAIL EX WORKS'!$D$2:$AE$90,17,0)) -> 111200 | AL25: 1000 | AM25: 0 | AN25: =(AK25-AL25-AM25)*12.36% -> 13620.72 | AO25: =AK25-AL25-AM25+AN25 -> 123820.72
A26: E52U003OG
A27: HM FILM
A28: F55HM0003A | B28: =IF(B$9="SOLAPUR",HLOOKUP($A28,'[2]PROPOSED GAIL EX WORKS'!$D$2:$AE$90,10,0)) -> 105440 | C28: 1000 | D28: 0 | E28: =(B28-C28-D28)*12.36% -> 12908.784 | F28: =B28-C28-D28+E28 -> 117348.784 | G28: =IF(G$9="UMBERGAON",HLOOKUP($A28,'[2]PROPOSED GAIL EX WORKS'!$D$2:$AE$90,11,0)) -> 106140 | H28: 1000 | I28: 0 | J28: =(G28-H28-I28)*12.36% -> 12995.304 | K28: =G28-H28-I28+J28 -> 118135.304 | L28: =IF(L$9="PUNE",HLOOKUP($A28,'[2]PROPOSED GAIL EX WORKS'!$D$2:$AE$90,12,0)) -> 105340 | M28: 1000 | N28: 0 | O28: =(L28-M28-N28)*12.36% -> 12896.424 | P28: =L28-M28-N28+O28 -> 117236.424 | Q28: =IF(Q$9="WAI",HLOOKUP($A28,'[2]PROPOSED GAIL EX WORKS'!$D$2:$AE$90,13,0)) -> 105340 | R28: 1000 | S28: 0 | T28: =(Q28-R28-S28)*12.36% -> 12896.424 | U28: =Q28-R28-S28+T28 -> 117236.424 | V28: =IF(V$9="NASIK",HLOOKUP($A28,'[2]PROPOSED GAIL EX WORKS'!$D$2:$AE$90,14,0)) -> 105690 | W28: 1000 | X28: 0 | Y28: =(V28-W28-X28)*12.36% -> 12939.684 | Z28: =V28-W28-X28+Y28 -> 117629.684 | AA28: =IF(AA$9="KOLHAPUR",HLOOKUP($A28,'[2]PROPOSED GAIL EX WORKS'!$D$2:$AE$90,15,0)) -> 105130 | AB28: 1000 | AC28: 0 | AD28: =(AA28-AB28-AC28)*12.36% -> 12870.468 | AE28: =AA28-AB28-AC28+AD28 -> 117000.468 | AF28: =IF(AF$9="AHMEDNAGAR",HLOOKUP($A28,'[2]PROPOSED GAIL EX WORKS'!$D$2:$AE$90,16,0)) -> 105960 | AG28: 1000 | AH28: 0 | AI28: =(AF28-AG28-AH28)*12.36% -> 12973.056 | AJ28: =AF28-AG28-AH28+AI28 -> 117933.056 | AK28: =IF(AK$9="ROHA",HLOOKUP($A28,'[2]PROPOSED GAIL EX WORKS'!$D$2:$AE$90,17,0)) -> 105690 | AL28: 1000 | AM28: 0 | AN28: =(AK28-AL28-AM28)*12.36% -> 12939.684 | AO28: =AK28-AL28-AM28+AN28 -> 117629.684
A29: F55HM0003OG
A30: IM HIGH
A31: I50A180A | B31: =IF(B$9="SOLAPUR",HLOOKUP($A31,'[2]PROPOSED GAIL EX WORKS'!$D$2:$AE$90,10,0)) -> 101840 | C31: 1000 | D31: 0 | E31: =(B31-C31-D31)*12.36% -> 12463.824 | F31: =B31-C31-D31+E31 -> 113303.824 | G31: =IF(G$9="UMBERGAON",HLOOKUP($A31,'[2]PROPOSED GAIL EX WORKS'!$D$2:$AE$90,11,0)) -> 102440 | H31: 1000 | I31: 0 | J31: =(G31-H31-I31)*12.36% -> 12537.984 | K31: =G31-H31-I31+J31 -> 113977.984 | L31: =IF(L$9="PUNE",HLOOKUP($A31,'[2]PROPOSED GAIL EX WORKS'!$D$2:$AE$90,12,0)) -> 101720 | M31: 1000 | N31: 0 | O31: =(L31-M31-N31)*12.36% -> 12448.992 | P31: =L31-M31-N31+O31 -> 113168.992 | Q31: =IF(Q$9="WAI",HLOOKUP($A31,'[2]PROPOSED GAIL EX WORKS'!$D$2:$AE$90,13,0)) -> 101720 | R31: 1000 | S31: 0 | T31: =(Q31-R31-S31)*12.36% -> 12448.992 | U31: =Q31-R31-S31+T31 -> 113168.992 | V31: =IF(V$9="NASIK",HLOOKUP($A31,'[2]PROPOSED GAIL EX WORKS'!$D$2:$AE$90,14,0)) -> 102040 | W31: 1000 | X31: 0 | Y31: =(V31-W31-X31)*12.36% -> 12488.544 | Z31: =V31-W31-X31+Y31 -> 113528.544 | AA31: =IF(AA$9="KOLHAPUR",HLOOKUP($A31,'[2]PROPOSED GAIL EX WORKS'!$D$2:$AE$90,15,0)) -> 101560 | AB31: 1000 | AC31: 0 | AD31: =(AA31-AB31-AC31)*12.36% -> 12429.216 | AE31: =AA31-AB31-AC31+AD31 -> 112989.216 | AF31: =IF(AF$9="AHMEDNAGAR",HLOOKUP($A31,'[2]PROPOSED GAIL EX WORKS'!$D$2:$AE$90,16,0)) -> 102300 | AG31: 1000 | AH31: 0 | AI31: =(AF31-AG31-AH31)*12.36% -> 12520.68 | AJ31: =AF31-AG31-AH31+AI31 -> 113820.68 | AK31: =IF(AK$9="ROHA",HLOOKUP($A31,'[2]PROPOSED GAIL EX WORKS'!$D$2:$AE$90,17,0)) -> 102040 | AL31: 1000 | AM31: 0 | AN31: =(AK31-AL31-AM31)*12.36% -> 12488.544 | AO31: =AK31-AL31-AM31+AN31 -> 113528.544
A32: I50A180OG
A33: IM LOW
A34: I60A080A | B34: =IF(B$9="SOLAPUR",HLOOKUP($A34,'[2]PROPOSED GAIL EX WORKS'!$D$2:$AE$90,10,0)) -> 103020 | C34: 1000 | D34: 0 | E34: =(B34-C34-D34)*12.36% -> 12609.672 | F34: =B34-C34-D34+E34 -> 114629.672 | G34: =IF(G$9="UMBERGAON",HLOOKUP($A34,'[2]PROPOSED GAIL EX WORKS'!$D$2:$AE$90,11,0)) -> 103680 | H34: 1000 | I34: 0 | J34: =(G34-H34-I34)*12.36% -> 12691.248 | K34: =G34-H34-I34+J34 -> 115371.248 | L34: =IF(L$9="PUNE",HLOOKUP($A34,'[2]PROPOSED GAIL EX WORKS'!$D$2:$AE$90,12,0)) -> 103000 | M34: 1000 | N34: 0 | O34: =(L34-M34-N34)*12.36% -> 12607.2 | P34: =L34-M34-N34+O34 -> 114607.2 | Q34: =IF(Q$9="WAI",HLOOKUP($A34,'[2]PROPOSED GAIL EX WORKS'!$D$2:$AE$90,13,0)) -> 103000 | R34: 1000 | S34: 0 | T34: =(Q34-R34-S34)*12.36% -> 12607.2 | U34: =Q34-R34-S34+T34 -> 114607.2 | V34: =IF(V$9="NASIK",HLOOKUP($A34,'[2]PROPOSED GAIL EX WORKS'!$D$2:$AE$90,14,0)) -> 103400 | W34: 1000 | X34: 0 | Y34: =(V34-W34-X34)*12.36% -> 12656.64 | Z34: =V34-W34-X34+Y34 -> 115056.64 | AA34: =IF(AA$9="KOLHAPUR",HLOOKUP($A34,'[2]PROPOSED GAIL EX WORKS'!$D$2:$AE$90,15,0)) -> 102830 | AB34: 1000 | AC34: 0 | AD34: =(AA34-AB34-AC34)*12.36% -> 12586.188 | AE34: =AA34-AB34-AC34+AD34 -> 114416.188 | AF34: =IF(AF$9="AHMEDNAGAR",HLOOKUP($A34,'[2]PROPOSED GAIL EX WORKS'!$D$2:$AE$90,16,0)) -> 103660 | AG34: 1000 | AH34: 0 | AI34: =(AF34-AG34-AH34)*12.36% -> 12688.776 | AJ34: =AF34-AG34-AH34+AI34 -> 115348.776 | AK34: =IF(AK$9="ROHA",HLOOKUP($A34,'[2]PROPOSED GAIL EX WORKS'!$D$2:$AE$90,17,0)) -> 103400 | AL34: 1000 | AM34: 0 | AN34: =(AK34-AL34-AM34)*12.36% -> 12656.64 | AO34: =AK34-AL34-AM34+AN34 -> 115056.64
A35: I60A080OG
A36: IM-L-UV
A37: I60U080A | B37: =IF(B$9="SOLAPUR",HLOOKUP($A37,'[2]PROPOSED GAIL EX WORKS'!$D$2:$AE$90,10,0)) -> 104560 | C37: 1000 | D37: 0 | E37: =(B37-C37-D37)*12.36% -> 12800.016 | F37: =B37-C37-D37+E37 -> 116360.016 | G37: =IF(G$9="UMBERGAON",HLOOKUP($A37,'[2]PROPOSED GAIL EX WORKS'!$D$2:$AE$90,11,0)) -> 105180 | H37: 1000 | I37: 0 | J37: =(G37-H37-I37)*12.36% -> 12876.648 | K37: =G37-H37-I37+J37 -> 117056.648 | L37: =IF(L$9="PUNE",HLOOKUP($A37,'[2]PROPOSED GAIL EX WORKS'!$D$2:$AE$90,12,0)) -> 104530 | M37: 1000 | N37: 0 | O37: =(L37-M37-N37)*12.36% -> 12796.308 | P37: =L37-M37-N37+O37 -> 116326.308 | Q37: =IF(Q$9="WAI",HLOOKUP($A37,'[2]PROPOSED GAIL EX WORKS'!$D$2:$AE$90,13,0)) -> 104530 | R37: 1000 | S37: 0 | T37: =(Q37-R37-S37)*12.36% -> 12796.308 | U37: =Q37-R37-S37+T37 -> 116326.308 | V37: =IF(V$9="NASIK",HLOOKUP($A37,'[2]PROPOSED GAIL EX WORKS'!$D$2:$AE$90,14,0)) -> 104930 | W37: 1000 | X37: 0 | Y37: =(V37-W37-X37)*12.36% -> 12845.748 | Z37: =V37-W37-X37+Y37 -> 116775.748 | AA37: =IF(AA$9="KOLHAPUR",HLOOKUP($A37,'[2]PROPOSED GAIL EX WORKS'!$D$2:$AE$90,15,0)) -> 104360 | AB37: 1000 | AC37: 0 | AD37: =(AA37-AB37-AC37)*12.36% -> 12775.296 | AE37: =AA37-AB37-AC37+AD37 -> 116135.296 | AF37: =IF(AF$9="AHMEDNAGAR",HLOOKUP($A37,'[2]PROPOSED GAIL EX WORKS'!$D$2:$AE$90,16,0)) -> 105200 | AG37: 1000 | AH37: 0 | AI37: =(AF37-AG37-AH37)*12.36% -> 12879.12 | AJ37: =AF37-AG37-AH37+AI37 -> 117079.12 | AK37: =IF(AK$9="ROHA",HLOOKUP($A37,'[2]PROPOSED GAIL EX WORKS'!$D$2:$AE$90,17,0)) -> 104930 | AL37: 1000 | AM37: 0 | AN37: =(AK37-AL37-AM37)*12.36% -> 12845.748 | AO37: =AK37-AL37-AM37+AN37 -> 116775.748
A38: I60U080OG
A39: PIPE (PE80)
A40: P54A001A | B40: =IF(B$9="SOLAPUR",HLOOKUP($A40,'[2]PROPOSED GAIL EX WORKS'!$D$2:$AE$90,10,0)) -> 112150 | C40: 1000 | D40: 0 | E40: =(B40-C40-D40)*12.36% -> 13738.14 | F40: =B40-C40-D40+E40 -> 124888.14 | G40: =IF(G$9="UMBERGAON",HLOOKUP($A40,'[2]PROPOSED GAIL EX WORKS'!$D$2:$AE$90,11,0)) -> 112850 | H40: 1000 | I40: 0 | J40: =(G40-H40-I40)*12.36% -> 13824.66 | K40: =G40-H40-I40+J40 -> 125674.66 | L40: =IF(L$9="PUNE",HLOOKUP($A40,'[2]PROPOSED GAIL EX WORKS'!$D$2:$AE$90,12,0)) -> 112050 | M40: 1000 | N40: 0 | O40: =(L40-M40-N40)*12.36% -> 13725.78 | P40: =L40-M40-N40+O40 -> 124775.78 | Q40: =IF(Q$9="WAI",HLOOKUP($A40,'[2]PROPOSED GAIL EX WORKS'!$D$2:$AE$90,13,0)) -> 112050 | R40: 1000 | S40: 0 | T40: =(Q40-R40-S40)*12.36% -> 13725.78 | U40: =Q40-R40-S40+T40 -> 124775.78 | V40: =IF(V$9="NASIK",HLOOKUP($A40,'[2]PROPOSED GAIL EX WORKS'!$D$2:$AE$90,14,0)) -> 112400 | W40: 1000 | X40: 0 | Y40: =(V40-W40-X40)*12.36% -> 13769.04 | Z40: =V40-W40-X40+Y40 -> 125169.04 | AA40: =IF(AA$9="KOLHAPUR",HLOOKUP($A40,'[2]PROPOSED GAIL EX WORKS'!$D$2:$AE$90,15,0)) -> 111840 | AB40: 1000 | AC40: 0 | AD40: =(AA40-AB40-AC40)*12.36% -> 13699.824 | AE40: =AA40-AB40-AC40+AD40 -> 124539.824 | AF40: =IF(AF$9="AHMEDNAGAR",HLOOKUP($A40,'[2]PROPOSED GAIL EX WORKS'!$D$2:$AE$90,16,0)) -> 112670 | AG40: 1000 | AH40: 0 | AI40: =(AF40-AG40-AH40)*12.36% -> 13802.412 | AJ40: =AF40-AG40-AH40+AI40 -> 125472.412 | AK40: =IF(AK$9="ROHA",HLOOKUP($A40,'[2]PROPOSED GAIL EX WORKS'!$D$2:$AE$90,17,0)) -> 112400 | AL40: 1000 | AM40: 0 | AN40: =(AK40-AL40-AM40)*12.36% -> 13769.04 | AO40: =AK40-AL40-AM40+AN40 -> 125169.04
A41: PIPE (PE100)
A42: P52A003A | B42: =IF(B$9="SOLAPUR",HLOOKUP($A42,'[2]PROPOSED GAIL EX WORKS'!$D$2:$AE$90,10,0)) -> 114150 | C42: 1000 | D42: 0 | E42: =(B42-C42-D42)*12.36% -> 13985.34 | F42: =B42-C42-D42+E42 -> 127135.34 | G42: =IF(G$9="UMBERGAON",HLOOKUP($A42,'[2]PROPOSED GAIL EX WORKS'!$D$2:$AE$90,11,0)) -> 114850 | H42: 1000 | I42: 0 | J42: =(G42-H42-I42)*12.36% -> 14071.86 | K42: =G42-H42-I42+J42 -> 127921.86 | L42: =IF(L$9="PUNE",HLOOKUP($A42,'[2]PROPOSED GAIL EX WORKS'!$D$2:$AE$90,12,0)) -> 114050 | M42: 1000 | N42: 0 | O42: =(L42-M42-N42)*12.36% -> 13972.98 | P42: =L42-M42-N42+O42 -> 127022.98 | Q42: =IF(Q$9="WAI",HLOOKUP($A42,'[2]PROPOSED GAIL EX WORKS'!$D$2:$AE$90,13,0)) -> 114050 | R42: 1000 | S42: 0 | T42: =(Q42-R42-S42)*12.36% -> 13972.98 | U42: =Q42-R42-S42+T42 -> 127022.98 | V42: =IF(V$9="NASIK",HLOOKUP($A42,'[2]PROPOSED GAIL EX WORKS'!$D$2:$AE$90,14,0)) -> 114400 | W42: 1000 | X42: 0 | Y42: =(V42-W42-X42)*12.36% -> 14016.24 | Z42: =V42-W42-X42+Y42 -> 127416.24 | AA42: =IF(AA$9="KOLHAPUR",HLOOKUP($A42,'[2]PROPOSED GAIL EX WORKS'!$D$2:$AE$90,15,0)) -> 113840 | AB42: 1000 | AC42: 0 | AD42: =(AA42-AB42-AC42)*12.36% -> 13947.024 | AE42: =AA42-AB42-AC42+AD42 -> 126787.024 | AF42: =IF(AF$9="AHMEDNAGAR",HLOOKUP($A42,'[2]PROPOSED GAIL EX WORKS'!$D$2:$AE$90,16,0)) -> 114670 | AG42: 1000 | AH42: 0 | AI42: =(AF42-AG42-AH42)*12.36% -> 14049.612 | AJ42: =AF42-AG42-AH42+AI42 -> 127719.612 | AK42: =IF(AK$9="ROHA",HLOOKUP($A42,'[2]PROPOSED GAIL EX WORKS'!$D$2:$AE$90,17,0)) -> 114400 | AL42: 1000 | AM42: 0 | AN42: =(AK42-AL42-AM42)*12.36% -> 14016.24 | AO42: =AK42-AL42-AM42+AN42 -> 127416.24
A43: RAFFIA
A44: W50A009A | B44: =IF(B$9="SOLAPUR",HLOOKUP($A44,'[2]PROPOSED GAIL EX WORKS'!$D$2:$AE$90,10,0)) -> 106150 | C44: 1000 | D44: 0 | E44: =(B44-C44-D44)*12.36% -> 12996.54 | F44: =B44-C44-D44+E44 -> 118146.54 | G44: =IF(G$9="UMBERGAON",HLOOKUP($A44,'[2]PROPOSED GAIL EX WORKS'!$D$2:$AE$90,11,0)) -> 106680 | H44: 1000 | I44: 0 | J44: =(G44-H44-I44)*12.36% -> 13062.048 | K44: =G44-H44-I44+J44 -> 118742.048 | L44: =IF(L$9="PUNE",HLOOKUP($A44,'[2]PROPOSED GAIL EX WORKS'!$D$2:$AE$90,12,0)) -> 106120 | M44: 1000 | N44: 0 | O44: =(L44-M44-N44)*12.36% -> 12992.832 | P44: =L44-M44-N44+O44 -> 118112.832 | Q44: =IF(Q$9="WAI",HLOOKUP($A44,'[2]PROPOSED GAIL EX WORKS'!$D$2:$AE$90,13,0)) -> 106120 | R44: 1000 | S44: 0 | T44: =(Q44-R44-S44)*12.36% -> 12992.832 | U44: =Q44-R44-S44+T44 -> 118112.832 | V44: =IF(V$9="NASIK",HLOOKUP($A44,'[2]PROPOSED GAIL EX WORKS'!$D$2:$AE$90,14,0)) -> 106520 | W44: 1000 | X44: 0 | Y44: =(V44-W44-X44)*12.36% -> 13042.272 | Z44: =V44-W44-X44+Y44 -> 118562.272 | AA44: =IF(AA$9="KOLHAPUR",HLOOKUP($A44,'[2]PROPOSED GAIL EX WORKS'!$D$2:$AE$90,15,0)) -> 105950 | AB44: 1000 | AC44: 0 | AD44: =(AA44-AB44-AC44)*12.36% -> 12971.82 | AE44: =AA44-AB44-AC44+AD44 -> 117921.82 | AF44: =IF(AF$9="AHMEDNAGAR",HLOOKUP($A44,'[2]PROPOSED GAIL EX WORKS'!$D$2:$AE$90,16,0)) -> 106790 | AG44: 1000 | AH44: 0 | AI44: =(AF44-AG44-AH44)*12.36% -> 13075.644 | AJ44: =AF44-AG44-AH44+AI44 -> 118865.644 | AK44: =IF(AK$9="ROHA",HLOOKUP($A44,'[2]PROPOSED GAIL EX WORKS'!$D$2:$AE$90,17,0)) -> 106520 | AL44: 1000 | AM44: 0 | AN44: =(AK44-AL44-AM44)*12.36% -> 13042.272 | AO44: =AK44-AL44-AM44+AN44 -> 118562.272
A45: T50A010A | B45: =IF(B$9="SOLAPUR",HLOOKUP($A45,'[2]PROPOSED GAIL EX WORKS'!$D$2:$AE$90,10,0)) -> 106150 | C45: 1000 | D45: 0 | E45: =(B45-C45-D45)*12.36% -> 12996.54 | F45: =B45-C45-D45+E45 -> 118146.54 | G45: =IF(G$9="UMBERGAON",HLOOKUP($A45,'[2]PROPOSED GAIL EX WORKS'!$D$2:$AE$90,11,0)) -> 106680 | H45: 1000 | I45: 0 | J45: =(G45-H45-I45)*12.36% -> 13062.048 | K45: =G45-H45-I45+J45 -> 118742.048 | L45: =IF(L$9="PUNE",HLOOKUP($A45,'[2]PROPOSED GAIL EX WORKS'!$D$2:$AE$90,12,0)) -> 106120 | M45: 1000 | N45: 0 | O45: =(L45-M45-N45)*12.36% -> 12992.832 | P45: =L45-M45-N45+O45 -> 118112.832 | Q45: =IF(Q$9="WAI",HLOOKUP($A45,'[2]PROPOSED GAIL EX WORKS'!$D$2:$AE$90,13,0)) -> 106120 | R45: 1000 | S45: 0 | T45: =(Q45-R45-S45)*12.36% -> 12992.832 | U45: =Q45-R45-S45+T45 -> 118112.832 | V45: =IF(V$9="NASIK",HLOOKUP($A45,'[2]PROPOSED GAIL EX WORKS'!$D$2:$AE$90,14,0)) -> 106520 | W45: 1000 | X45: 0 | Y45: =(V45-W45-X45)*12.36% -> 13042.272 | Z45: =V45-W45-X45+Y45 -> 118562.272 | AA45: =IF(AA$9="KOLHAPUR",HLOOKUP($A45,'[2]PROPOSED GAIL EX WORKS'!$D$2:$AE$90,15,0)) -> 105950 | AB45: 1000 | AC45: 0 | AD45: =(AA45-AB45-AC45)*12.36% -> 12971.82 | AE45: =AA45-AB45-AC45+AD45 -> 117921.82 | AF45: =IF(AF$9="AHMEDNAGAR",HLOOKUP($A45,'[2]PROPOSED GAIL EX WORKS'!$D$2:$AE$90,16,0)) -> 106790 | AG45: 1000 | AH45: 0 | AI45: =(AF45-AG45-AH45)*12.36% -> 13075.644 | AJ45: =AF45-AG45-AH45+AI45 -> 118865.644 | AK45: =IF(AK$9="ROHA",HLOOKUP($A45,'[2]PROPOSED GAIL EX WORKS'!$D$2:$AE$90,17,0)) -> 106520 | AL45: 1000 | AM45: 0 | AN45: =(AK45-AL45-AM45)*12.36% -> 13042.272 | AO45: =AK45-AL45-AM45+AN45 -> 118562.272
A46: MF
A47: W52A009A | B47: =IF(B$9="SOLAPUR",HLOOKUP($A47,'[2]PROPOSED GAIL EX WORKS'!$D$2:$AE$90,10,0)) -> 102650 | C47: 1000 | D47: 0 | E47: =(B47-C47-D47)*12.36% -> 12563.94 | F47: =B47-C47-D47+E47 -> 114213.94 | G47: =IF(G$9="UMBERGAON",HLOOKUP($A47,'[2]PROPOSED GAIL EX WORKS'!$D$2:$AE$90,11,0)) -> 103180 | H47: 1000 | I47: 0 | J47: =(G47-H47-I47)*12.36% -> 12629.448 | K47: =G47-H47-I47+J47 -> 114809.448 | L47: =IF(L$9="PUNE",HLOOKUP($A47,'[2]PROPOSED GAIL EX WORKS'!$D$2:$AE$90,12,0)) -> 102620 | M47: 1000 | N47: 0 | O47: =(L47-M47-N47)*12.36% -> 12560.232 | P47: =L47-M47-N47+O47 -> 114180.232 | Q47: =IF(Q$9="WAI",HLOOKUP($A47,'[2]PROPOSED GAIL EX WORKS'!$D$2:$AE$90,13,0)) -> 102620 | R47: 1000 | S47: 0 | T47: =(Q47-R47-S47)*12.36% -> 12560.232 | U47: =Q47-R47-S47+T47 -> 114180.232 | V47: =IF(V$9="NASIK",HLOOKUP($A47,'[2]PROPOSED GAIL EX WORKS'!$D$2:$AE$90,14,0)) -> 103020 | W47: 1000 | X47: 0 | Y47: =(V47-W47-X47)*12.36% -> 12609.672 | Z47: =V47-W47-X47+Y47 -> 114629.672 | AA47: =IF(AA$9="KOLHAPUR",HLOOKUP($A47,'[2]PROPOSED GAIL EX WORKS'!$D$2:$AE$90,15,0)) -> 102450 | AB47: 1000 | AC47: 0 | AD47: =(AA47-AB47-AC47)*12.36% -> 12539.22 | AE47: =AA47-AB47-AC47+AD47 -> 113989.22 | AF47: =IF(AF$9="AHMEDNAGAR",HLOOKUP($A47,'[2]PROPOSED GAIL EX WORKS'!$D$2:$AE$90,16,0)) -> 103290 | AG47: 1000 | AH47: 0 | AI47: =(AF47-AG47-AH47)*12.36% -> 12643.044 | AJ47: =AF47-AG47-AH47+AI47 -> 114933.044 | AK47: =IF(AK$9="ROHA",HLOOKUP($A47,'[2]PROPOSED GAIL EX WORKS'!$D$2:$AE$90,17,0)) -> 103020 | AL47: 1000 | AM47: 0 | AN47: =(AK47-AL47-AM47)*12.36% -> 12609.672 | AO47: =AK47-AL47-AM47+AN47 -> 114629.672
A48: W52A009OG
A49: W52ASR009A | B49: =IF(B$9="SOLAPUR",HLOOKUP($A49,'[2]PROPOSED GAIL EX WORKS'!$D$2:$AE$90,10,0)) -> 102650 | C49: 1000 | D49: 0 | E49: =(B49-C49-D49)*12.36% -> 12563.94 | F49: =B49-C49-D49+E49 -> 114213.94 | G49: =IF(G$9="UMBERGAON",HLOOKUP($A49,'[2]PROPOSED GAIL EX WORKS'!$D$2:$AE$90,11,0)) -> 103180 | H49: 1000 | I49: 0 | J49: =(G49-H49-I49)*12.36% -> 12629.448 | K49: =G49-H49-I49+J49 -> 114809.448 | L49: =IF(L$9="PUNE",HLOOKUP($A49,'[2]PROPOSED GAIL EX WORKS'!$D$2:$AE$90,12,0)) -> 102620 | M49: 1000 | N49: 0 | O49: =(L49-M49-N49)*12.36% -> 12560.232 | P49: =L49-M49-N49+O49 -> 114180.232 | Q49: =IF(Q$9="WAI",HLOOKUP($A49,'[2]PROPOSED GAIL EX WORKS'!$D$2:$AE$90,13,0)) -> 102620 | R49: 1000 | S49: 0 | T49: =(Q49-R49-S49)*12.36% -> 12560.232 | U49: =Q49-R49-S49+T49 -> 114180.232 | V49: =IF(V$9="NASIK",HLOOKUP($A49,'[2]PROPOSED GAIL EX WORKS'!$D$2:$AE$90,14,0)) -> 103020 | W49: 1000 | X49: 0 | Y49: =(V49-W49-X49)*12.36% -> 12609.672 | Z49: =V49-W49-X49+Y49 -> 114629.672 | AA49: =IF(AA$9="KOLHAPUR",HLOOKUP($A49,'[2]PROPOSED GAIL EX WORKS'!$D$2:$AE$90,15,0)) -> 102450 | AB49: 1000 | AC49: 0 | AD49: =(AA49-AB49-AC49)*12.36% -> 12539.22 | AE49: =AA49-AB49-AC49+AD49 -> 113989.22 | AF49: =IF(AF$9="AHMEDNAGAR",HLOOKUP($A49,'[2]PROPOSED GAIL EX WORKS'!$D$2:$AE$90,16,0)) -> 103290 | AG49: 1000 | AH49: 0 | AI49: =(AF49-AG49-AH49)*12.36% -> 12643.044 | AJ49: =AF49-AG49-AH49+AI49 -> 114933.044 | AK49: =IF(AK$9="ROHA",HLOOKUP($A49,'[2]PROPOSED GAIL EX WORKS'!$D$2:$AE$90,17,0)) -> 103020 | AL49: 1000 | AM49: 0 | AN49: =(AK49-AL49-AM49)*12.36% -> 12609.672 | AO49: =AK49-AL49-AM49+AN49 -> 114629.672
A50: W55A004A | B50: =IF(B$9="SOLAPUR",HLOOKUP($A50,'[2]PROPOSED GAIL EX WORKS'!$D$2:$AE$90,10,0)) -> 105650 | C50: 1000 | D50: 0 | E50: =(B50-C50-D50)*12.36% -> 12934.74 | F50: =B50-C50-D50+E50 -> 117584.74 | G50: =IF(G$9="UMBERGAON",HLOOKUP($A50,'[2]PROPOSED GAIL EX WORKS'!$D$2:$AE$90,11,0)) -> 106180 | H50: 1000 | I50: 0 | J50: =(G50-H50-I50)*12.36% -> 13000.248 | K50: =G50-H50-I50+J50 -> 118180.248 | L50: =IF(L$9="PUNE",HLOOKUP($A50,'[2]PROPOSED GAIL EX WORKS'!$D$2:$AE$90,12,0)) -> 105620 | M50: 1000 | N50: 0 | O50: =(L50-M50-N50)*12.36% -> 12931.032 | P50: =L50-M50-N50+O50 -> 117551.032 | Q50: =IF(Q$9="WAI",HLOOKUP($A50,'[2]PROPOSED GAIL EX WORKS'!$D$2:$AE$90,13,0)) -> 105620 | R50: 1000 | S50: 0 | T50: =(Q50-R50-S50)*12.36% -> 12931.032 | U50: =Q50-R50-S50+T50 -> 117551.032 | V50: =IF(V$9="NASIK",HLOOKUP($A50,'[2]PROPOSED GAIL EX WORKS'!$D$2:$AE$90,14,0)) -> 106020 | W50: 1000 | X50: 0 | Y50: =(V50-W50-X50)*12.36% -> 12980.472 | Z50: =V50-W50-X50+Y50 -> 118000.472 | AA50: =IF(AA$9="KOLHAPUR",HLOOKUP($A50,'[2]PROPOSED GAIL EX WORKS'!$D$2:$AE$90,15,0)) -> 105450 | AB50: 1000 | AC50: 0 | AD50: =(AA50-AB50-AC50)*12.36% -> 12910.02 | AE50: =AA50-AB50-AC50+AD50 -> 117360.02 | AF50: =IF(AF$9="AHMEDNAGAR",HLOOKUP($A50,'[2]PROPOSED GAIL EX WORKS'!$D$2:$AE$90,16,0)) -> 106290 | AG50: 1000 | AH50: 0 | AI50: =(AF50-AG50-AH50)*12.36% -> 13013.844 | AJ50: =AF50-AG50-AH50+AI50 -> 118303.844 | AK50: =IF(AK$9="ROHA",HLOOKUP($A50,'[2]PROPOSED GAIL EX WORKS'!$D$2:$AE$90,17,0)) -> 106020 | AL50: 1000 | AM50: 0 | AN50: =(AK50-AL50-AM50)*12.36% -> 12980.472 | AO50: =AK50-AL50-AM50+AN50 -> 118000.472
A51: LLDPE
A52: E20AN009A | B52: =IF(B$9="SOLAPUR",HLOOKUP($A52,'[2]PROPOSED GAIL EX WORKS'!$D$2:$AE$90,10,0)) -> 107410 | C52: 1000 | D52: 0 | E52: =(B52-C52-D52)*12.36% -> 13152.276 | F52: =B52-C52-D52+E52 -> 119562.276 | G52: =IF(G$9="UMBERGAON",HLOOKUP($A52,'[2]PROPOSED GAIL EX WORKS'!$D$2:$AE$90,11,0)) -> 108080 | H52: 1000 | I52: 0 | J52: =(G52-H52-I52)*12.36% -> 13235.088 | K52: =G52-H52-I52+J52 -> 120315.088 | L52: =IF(L$9="PUNE",HLOOKUP($A52,'[2]PROPOSED GAIL EX WORKS'!$D$2:$AE$90,12,0)) -> 107380 | M52: 1000 | N52: 0 | O52: =(L52-M52-N52)*12.36% -> 13148.568 | P52: =L52-M52-N52+O52 -> 119528.568 | Q52: =IF(Q$9="WAI",HLOOKUP($A52,'[2]PROPOSED GAIL EX WORKS'!$D$2:$AE$90,13,0)) -> 107380 | R52: 1000 | S52: 0 | T52: =(Q52-R52-S52)*12.36% -> 13148.568 | U52: =Q52-R52-S52+T52 -> 119528.568 | V52: =IF(V$9="NASIK",HLOOKUP($A52,'[2]PROPOSED GAIL EX WORKS'!$D$2:$AE$90,14,0)) -> 107790 | W52: 1000 | X52: 0 | Y52: =(V52-W52-X52)*12.36% -> 13199.244 | Z52: =V52-W52-X52+Y52 -> 119989.244 | AA52: =IF(AA$9="KOLHAPUR",HLOOKUP($A52,'[2]PROPOSED GAIL EX WORKS'!$D$2:$AE$90,15,0)) -> 107210 | AB52: 1000 | AC52: 0 | AD52: =(AA52-AB52-AC52)*12.36% -> 13127.556 | AE52: =AA52-AB52-AC52+AD52 -> 119337.556 | AF52: =IF(AF$9="AHMEDNAGAR",HLOOKUP($A52,'[2]PROPOSED GAIL EX WORKS'!$D$2:$AE$90,16,0)) -> 108050 | AG52: 1000 | AH52: 0 | AI52: =(AF52-AG52-AH52)*12.36% -> 13231.38 | AJ52: =AF52-AG52-AH52+AI52 -> 120281.38 | AK52: =IF(AK$9="ROHA",HLOOKUP($A52,'[2]PROPOSED GAIL EX WORKS'!$D$2:$AE$90,17,0)) -> 107790 | AL52: 1000 | AM52: 0 | AN52: =(AK52-AL52-AM52)*12.36% -> 13199.244 | AO52: =AK52-AL52-AM52+AN52 -> 119989.244
A53: E20AN009OG
A54: E36A060A | B54: =IF(B$9="SOLAPUR",HLOOKUP($A54,'[2]PROPOSED GAIL EX WORKS'!$D$2:$AE$90,10,0)) -> 110450 | C54: 1000 | D54: 0 | E54: =(B54-C54-D54)*12.36% -> 13528.02 | F54: =B54-C54-D54+E54 -> 122978.02 | G54: =IF(G$9="UMBERGAON",HLOOKUP($A54,'[2]PROPOSED GAIL EX WORKS'!$D$2:$AE$90,11,0)) -> 111080 | H54: 1000 | I54: 0 | J54: =(G54-H54-I54)*12.36% -> 13605.888 | K54: =G54-H54-I54+J54 -> 123685.888 | L54: =IF(L$9="PUNE",HLOOKUP($A54,'[2]PROPOSED GAIL EX WORKS'!$D$2:$AE$90,12,0)) -> 110430 | M54: 1000 | N54: 0 | O54: =(L54-M54-N54)*12.36% -> 13525.548 | P54: =L54-M54-N54+O54 -> 122955.548 | Q54: =IF(Q$9="WAI",HLOOKUP($A54,'[2]PROPOSED GAIL EX WORKS'!$D$2:$AE$90,13,0)) -> 110430 | R54: 1000 | S54: 0 | T54: =(Q54-R54-S54)*12.36% -> 13525.548 | U54: =Q54-R54-S54+T54 -> 122955.548 | V54: =IF(V$9="NASIK",HLOOKUP($A54,'[2]PROPOSED GAIL EX WORKS'!$D$2:$AE$90,14,0)) -> 110830 | W54: 1000 | X54: 0 | Y54: =(V54-W54-X54)*12.36% -> 13574.988 | Z54: =V54-W54-X54+Y54 -> 123404.988 | AA54: =IF(AA$9="KOLHAPUR",HLOOKUP($A54,'[2]PROPOSED GAIL EX WORKS'!$D$2:$AE$90,15,0)) -> 110260 | AB54: 1000 | AC54: 0 | AD54: =(AA54-AB54-AC54)*12.36% -> 13504.536 | AE54: =AA54-AB54-AC54+AD54 -> 122764.536 | AF54: =IF(AF$9="AHMEDNAGAR",HLOOKUP($A54,'[2]PROPOSED GAIL EX WORKS'!$D$2:$AE$90,16,0)) -> 111090 | AG54: 1000 | AH54: 0 | AI54: =(AF54-AG54-AH54)*12.36% -> 13607.124 | AJ54: =AF54-AG54-AH54+AI54 -> 123697.124 | AK54: =IF(AK$9="ROHA",HLOOKUP($A54,'[2]PROPOSED GAIL EX WORKS'!$D$2:$AE$90,17,0)) -> 110830 | AL54: 1000 | AM54: 0 | AN54: =(AK54-AL54-AM54)*12.36% -> 13574.988 | AO54: =AK54-AL54-AM54+AN54 -> 123404.988
A55: E36A060OG
A56: FILM
A57: F20S009A | B57: =IF(B$9="SOLAPUR",HLOOKUP($A57,'[2]PROPOSED GAIL EX WORKS'!$D$2:$AE$90,10,0)) -> 108910 | C57: 1000 | D57: 0 | E57: =(B57-C57-D57)*12.36% -> 13337.676 | F57: =B57-C57-D57+E57 -> 121247.676 | G57: =IF(G$9="UMBERGAON",HLOOKUP($A57,'[2]PROPOSED GAIL EX WORKS'!$D$2:$AE$90,11,0)) -> 109580 | H57: 1000 | I57: 0 | J57: =(G57-H57-I57)*12.36% -> 13420.488 | K57: =G57-H57-I57+J57 -> 122000.488 | L57: =IF(L$9="PUNE",HLOOKUP($A57,'[2]PROPOSED GAIL EX WORKS'!$D$2:$AE$90,12,0)) -> 108880 | M57: 1000 | N57: 0 | O57: =(L57-M57-N57)*12.36% -> 13333.968 | P57: =L57-M57-N57+O57 -> 121213.968 | Q57: =IF(Q$9="WAI",HLOOKUP($A57,'[2]PROPOSED GAIL EX WORKS'!$D$2:$AE$90,13,0)) -> 108880 | R57: 1000 | S57: 0 | T57: =(Q57-R57-S57)*12.36% -> 13333.968 | U57: =Q57-R57-S57+T57 -> 121213.968 | V57: =IF(V$9="NASIK",HLOOKUP($A57,'[2]PROPOSED GAIL EX WORKS'!$D$2:$AE$90,14,0)) -> 109290 | W57: 1000 | X57: 0 | Y57: =(V57-W57-X57)*12.36% -> 13384.644 | Z57: =V57-W57-X57+Y57 -> 121674.644 | AA57: =IF(AA$9="KOLHAPUR",HLOOKUP($A57,'[2]PROPOSED GAIL EX WORKS'!$D$2:$AE$90,15,0)) -> 108710 | AB57: 1000 | AC57: 0 | AD57: =(AA57-AB57-AC57)*12.36% -> 13312.956 | AE57: =AA57-AB57-AC57+AD57 -> 121022.956 | AF57: =IF(AF$9="AHMEDNAGAR",HLOOKUP($A57,'[2]PROPOSED GAIL EX WORKS'!$D$2:$AE$90,16,0)) -> 109550 | AG57: 1000 | AH57: 0 | AI57: =(AF57-AG57-AH57)*12.36% -> 13416.78 | AJ57: =AF57-AG57-AH57+AI57 -> 121966.78 | AK57: =IF(AK$9="ROHA",HLOOKUP($A57,'[2]PROPOSED GAIL EX WORKS'!$D$2:$AE$90,17,0)) -> 109290 | AL57: 1000 | AM57: 0 | AN57: =(AK57-AL57-AM57)*12.36% -> 13384.644 | AO57: =AK57-AL57-AM57+AN57 -> 121674.644
A58: F20S009OG
A59: D22S010A | B59: =IF(B$9="SOLAPUR",HLOOKUP($A59,'[2]PROPOSED GAIL EX WORKS'!$D$2:$AE$90,10,0)) -> 107910 | C59: 1000 | D59: 0 | E59: =(B59-C59-D59)*12.36% -> 13214.076 | F59: =B59-C59-D59+E59 -> 120124.076 | G59: =IF(G$9="UMBERGAON",HLOOKUP($A59,'[2]PROPOSED GAIL EX WORKS'!$D$2:$AE$90,11,0)) -> 108580 | H59: 1000 | I59: 0 | J59: =(G59-H59-I59)*12.36% -> 13296.888 | K59: =G59-H59-I59+J59 -> 120876.888 | L59: =IF(L$9="PUNE",HLOOKUP($A59,'[2]PROPOSED GAIL EX WORKS'!$D$2:$AE$90,12,0)) -> 107880 | M59: 1000 | N59: 0 | O59: =(L59-M59-N59)*12.36% -> 13210.368 | P59: =L59-M59-N59+O59 -> 120090.368 | Q59: =IF(Q$9="WAI",HLOOKUP($A59,'[2]PROPOSED GAIL EX WORKS'!$D$2:$AE$90,13,0)) -> 107880 | R59: 1000 | S59: 0 | T59: =(Q59-R59-S59)*12.36% -> 13210.368 | U59: =Q59-R59-S59+T59 -> 120090.368 | V59: =IF(V$9="NASIK",HLOOKUP($A59,'[2]PROPOSED GAIL EX WORKS'!$D$2:$AE$90,14,0)) -> 108290 | W59: 1000 | X59: 0 | Y59: =(V59-W59-X59)*12.36% -> 13261.044 | Z59: =V59-W59-X59+Y59 -> 120551.044 | AA59: =IF(AA$9="KOLHAPUR",HLOOKUP($A59,'[2]PROPOSED GAIL EX WORKS'!$D$2:$AE$90,15,0)) -> 107710 | AB59: 1000 | AC59: 0 | AD59: =(AA59-AB59-AC59)*12.36% -> 13189.356 | AE59: =AA59-AB59-AC59+AD59 -> 119899.356 | AF59: =IF(AF$9="AHMEDNAGAR",HLOOKUP($A59,'[2]PROPOSED GAIL EX WORKS'!$D$2:$AE$90,16,0)) -> 108550 | AG59: 1000 | AH59: 0 | AI59: =(AF59-AG59-AH59)*12.36% -> 13293.18 | AJ59: =AF59-AG59-AH59+AI59 -> 120843.18 | AK59: =IF(AK$9="ROHA",HLOOKUP($A59,'[2]PROPOSED GAIL EX WORKS'!$D$2:$AE$90,17,0)) -> 108290 | AL59: 1000 | AM59: 0 | AN59: =(AK59-AL59-AM59)*12.36% -> 13261.044 | AO59: =AK59-AL59-AM59+AN59 -> 120551.044
A60: ROTO
A61: R35A042A | B61: =IF(B$9="SOLAPUR",HLOOKUP($A61,'[2]PROPOSED GAIL EX WORKS'!$D$2:$AE$90,10,0)) -> 107540 | C61: 1000 | D61: 0 | E61: =(B61-C61-D61)*12.36% -> 13168.344 | F61: =B61-C61-D61+E61 -> 119708.344 | G61: =IF(G$9="UMBERGAON",HLOOKUP($A61,'[2]PROPOSED GAIL EX WORKS'!$D$2:$AE$90,11,0)) -> 108240 | H61: 1000 | I61: 0 | J61: =(G61-H61-I61)*12.36% -> 13254.864 | K61: =G61-H61-I61+J61 -> 120494.864 | L61: =IF(L$9="PUNE",HLOOKUP($A61,'[2]PROPOSED GAIL EX WORKS'!$D$2:$AE$90,12,0)) -> 107440 | M61: 1000 | N61: 0 | O61: =(L61-M61-N61)*12.36% -> 13155.984 | P61: =L61-M61-N61+O61 -> 119595.984 | Q61: =IF(Q$9="WAI",HLOOKUP($A61,'[2]PROPOSED GAIL EX WORKS'!$D$2:$AE$90,13,0)) -> 107440 | R61: 1000 | S61: 0 | T61: =(Q61-R61-S61)*12.36% -> 13155.984 | U61: =Q61-R61-S61+T61 -> 119595.984 | V61: =IF(V$9="NASIK",HLOOKUP($A61,'[2]PROPOSED GAIL EX WORKS'!$D$2:$AE$90,14,0)) -> 107790 | W61: 1000 | X61: 0 | Y61: =(V61-W61-X61)*12.36% -> 13199.244 | Z61: =V61-W61-X61+Y61 -> 119989.244 | AA61: =IF(AA$9="KOLHAPUR",HLOOKUP($A61,'[2]PROPOSED GAIL EX WORKS'!$D$2:$AE$90,15,0)) -> 107230 | AB61: 1000 | AC61: 0 | AD61: =(AA61-AB61-AC61)*12.36% -> 13130.028 | AE61: =AA61-AB61-AC61+AD61 -> 119360.028 | AF61: =IF(AF$9="AHMEDNAGAR",HLOOKUP($A61,'[2]PROPOSED GAIL EX WORKS'!$D$2:$AE$90,16,0)) -> 108060 | AG61: 1000 | AH61: 0 | AI61: =(AF61-AG61-AH61)*12.36% -> 13232.616 | AJ61: =AF61-AG61-AH61+AI61 -> 120292.616 | AK61: =IF(AK$9="ROHA",HLOOKUP($A61,'[2]PROPOSED GAIL EX WORKS'!$D$2:$AE$90,17,0)) -> 107790 | AL61: 1000 | AM61: 0 | AN61: =(AK61-AL61-AM61)*12.36% -> 13199.244 | AO61: =AK61-AL61-AM61+AN61 -> 119989.244
A62: R35U042A | B62: =IF(B$9="SOLAPUR",HLOOKUP($A62,'[2]PROPOSED GAIL EX WORKS'!$D$2:$AE$90,10,0)) -> 108400 | C62: 1000 | D62: 0 | E62: =(B62-C62-D62)*12.36% -> 13274.64 | F62: =B62-C62-D62+E62 -> 120674.64 | G62: =IF(G$9="UMBERGAON",HLOOKUP($A62,'[2]PROPOSED GAIL EX WORKS'!$D$2:$AE$90,11,0)) -> 109100 | H62: 1000 | I62: 0 | J62: =(G62-H62-I62)*12.36% -> 13361.16 | K62: =G62-H62-I62+J62 -> 121461.16 | L62: =IF(L$9="PUNE",HLOOKUP($A62,'[2]PROPOSED GAIL EX WORKS'!$D$2:$AE$90,12,0)) -> 108300 | M62: 1000 | N62: 0 | O62: =(L62-M62-N62)*12.36% -> 13262.28 | P62: =L62-M62-N62+O62 -> 120562.28 | Q62: =IF(Q$9="WAI",HLOOKUP($A62,'[2]PROPOSED GAIL EX WORKS'!$D$2:$AE$90,13,0)) -> 108300 | R62: 1000 | S62: 0 | T62: =(Q62-R62-S62)*12.36% -> 13262.28 | U62: =Q62-R62-S62+T62 -> 120562.28 | V62: =IF(V$9="NASIK",HLOOKUP($A62,'[2]PROPOSED GAIL EX WORKS'!$D$2:$AE$90,14,0)) -> 108650 | W62: 1000 | X62: 0 | Y62: =(V62-W62-X62)*12.36% -> 13305.54 | Z62: =V62-W62-X62+Y62 -> 120955.54 | AA62: =IF(AA$9="KOLHAPUR",HLOOKUP($A62,'[2]PROPOSED GAIL EX WORKS'!$D$2:$AE$90,15,0)) -> 108090 | AB62: 1000 | AC62: 0 | AD62: =(AA62-AB62-AC62)*12.36% -> 13236.324 | AE62: =AA62-AB62-AC62+AD62 -> 120326.324 | AF62: =IF(AF$9="AHMEDNAGAR",HLOOKUP($A62,'[2]PROPOSED GAIL EX WORKS'!$D$2:$AE$90,16,0)) -> 108920 | AG62: 1000 | AH62: 0 | AI62: =(AF62-AG62-AH62)*12.36% -> 13338.912 | AJ62: =AF62-AG62-AH62+AI62 -> 121258.912 | AK62: =IF(AK$9="ROHA",HLOOKUP($A62,'[2]PROPOSED GAIL EX WORKS'!$D$2:$AE$90,17,0)) -> 108650 | AL62: 1000 | AM62: 0 | AN62: =(AK62-AL62-AM62)*12.36% -> 13305.54 | AO62: =AK62-AL62-AM62+AN62 -> 120955.54
A64: NOTE: | B64: LOCATION DISCOUNT HAS BEEN DISCONTINUED
B66: THE PRICES OF OLD PLANT & NEW PLANT ARE SAME FROM DIRECT SALE

Sheet Sheet3
A2: UNITED BROTHERS
A4: 301,HERITAGE PLAZA, R.S.MAHARAJ MARG,( TELI GALLI CROSS LANE), ANDHERI (E), MUMBAI - 400 069
A5: EL: 26844612(4 LINES) FAX: 26822914 E-MAIL: info@unibrothers.com , prashant@unibrothers.com, jyoti@unibrothers.com
A6: EX-WORKS PRICE OF HDPE "G-LEX / G-LENE " W.E.F. 1ST MAY 2014
A7: CASH / ADVANCE PAYMENT FOR MAHARASHTRA & DAMAN
B8: Freight | D8: 2507.05 | G8: Freight | I8: 4749.82 | L8: Freight | N8: 2573.77 | Q8: Freight 1210.75 | V8: Freight | X8: 5162.96 | AA8: Freight
D9: BARJORA | G9: HOSUR | L9: JAMMU | Q9: NOIDA | V9: PONDICHERRY | AA9: BARODA
B10: BASIC | C10: DISC | D10: LOC | E10: EXCISE | F10: EX-WKS | G10: BASIC | H10: DISC | I10: LOC | J10: EXCISE | K10: EX-WKS | L10: BASIC | M10: DISC | N10: LOC | O10: EXCISE | P10: EX-WKS | Q10: BASIC | R10: DISC | S10: LOC | T10: EXCISE | U10: EX-WKS | W10: DISC | X10: LOC | Y10: EXCISE | Z10: EX-WKS | AB10: DISC | AC10: LOC | AD10: EXCISE | AE10: EX-WKS
A11: BM
A12: B52A003A | B12: =IF(D$9="BARJORA",HLOOKUP($A12,'[2]PROPOSED GAIL EX WORKS'!$D$2:$AE$90,18,0)) -> 105380 | C12: 1000 | D12: 0 | E12: =(B12-C12-D12)*12.36% -> 12901.368 | F12: =B12-C12-D12+E12 -> 117281.368 | G12: =IF(G$9="HOSUR",HLOOKUP($A12,'[2]PROPOSED GAIL EX WORKS'!$D$2:$AE$90,19,0)) -> 103660 | H12: 1000 | I12: 0 | J12: =(G12-H12-I12)*12.36% -> 12688.776 | K12: =G12-H12-I12+J12 -> 115348.776 | L12: =IF(L$9="JAMMU",HLOOKUP($A12,'[2]PROPOSED GAIL EX WORKS'!$D$2:$AE$90,20,0)) -> 108780 | M12: 1000 | N12: 0 | O12: =(L12-M12-N12)*12.36% -> 13321.608 | P12: =L12-M12-N12+O12 -> 121101.608 | Q12: =IF(Q$9="NOIDA",HLOOKUP($A12,'[2]PROPOSED GAIL EX WORKS'!$D$2:$AE$90,21,0)) -> 108740 | R12: 1000 | S12: 0 | T12: =(Q12-R12-S12)*12.36% -> 13316.664 | U12: =Q12-R12-S12+T12 -> 121056.664 | V12: =IF(V$9="PONDICHERRY",HLOOKUP($A12,'[2]PROPOSED GAIL EX WORKS'!$D$2:$AE$90,22,0)) -> 103790 | W12: 1000 | X12: 0 | Y12: =(V12-W12-X12)*12.36% -> 12704.844 | Z12: =V12-W12-X12+Y12 -> 115494.844 | AA12: =IF(AA$9="BARODA",HLOOKUP($A12,'[2]PROPOSED GAIL EX WORKS'!$D$2:$AE$90,23,0)) -> 107200 | AB12: 1000 | AC12: 0 | AD12: =(AA12-AB12-AC12)*12.36% -> 13126.32 | AE12: =AA12-AB12-AC12+AD12 -> 119326.32
A13: B63A003A | B13: =IF(D$9="BARJORA",HLOOKUP($A13,'[2]PROPOSED GAIL EX WORKS'!$D$2:$AE$90,18,0)) -> 105380 | C13: 1000 | D13: 0 | E13: =(B13-C13-D13)*12.36% -> 12901.368 | F13: =B13-C13-D13+E13 -> 117281.368 | G13: =IF(G$9="HOSUR",HLOOKUP($A13,'[2]PROPOSED GAIL EX WORKS'!$D$2:$AE$90,19,0)) -> 103660 | H13: 1000 | I13: 0 | J13: =(G13-H13-I13)*12.36% -> 12688.776 | K13: =G13-H13-I13+J13 -> 115348.776 | L13: =IF(L$9="JAMMU",HLOOKUP($A13,'[2]PROPOSED GAIL EX WORKS'!$D$2:$AE$90,20,0)) -> 108780 | M13: 1000 | N13: 0 | O13: =(L13-M13-N13)*12.36% -> 13321.608 | P13: =L13-M13-N13+O13 -> 121101.608 | Q13: =IF(Q$9="NOIDA",HLOOKUP($A13,'[2]PROPOSED GAIL EX WORKS'!$D$2:$AE$90,21,0)) -> 108740 | R13: 1000 | S13: 0 | T13: =(Q13-R13-S13)*12.36% -> 13316.664 | U13: =Q13-R13-S13+T13 -> 121056.664 | V13: =IF(V$9="PONDICHERRY",HLOOKUP($A13,'[2]PROPOSED GAIL EX WORKS'!$D$2:$AE$90,22,0)) -> 103790 | W13: 1000 | X13: 0 | Y13: =(V13-W13-X13)*12.36% -> 12704.844 | Z13: =V13-W13-X13+Y13 -> 115494.844 | AA13: =IF(AA$9="BARODA",HLOOKUP($A13,'[2]PROPOSED GAIL EX WORKS'!$D$2:$AE$90,23,0)) -> 107200 | AB13: 1000 | AC13: 0 | AD13: =(AA13-AB13-AC13)*12.36% -> 13126.32 | AE13: =AA13-AB13-AC13+AD13 -> 119326.32
A14: B55HM0003A | B14: =IF(D$9="BARJORA",HLOOKUP($A14,'[2]PROPOSED GAIL EX WORKS'!$D$2:$AE$90,18,0)) -> 111670 | C14: 1000 | D14: 0 | E14: =(B14-C14-D14)*12.36% -> 13678.812 | F14: =B14-C14-D14+E14 -> 124348.812 | G14: =IF(G$9="HOSUR",HLOOKUP($A14,'[2]PROPOSED GAIL EX WORKS'!$D$2:$AE$90,19,0)) -> 107900 | H14: 1000 | I14: 0 | J14: =(G14-H14-I14)*12.36% -> 13212.84 | K14: =G14-H14-I14+J14 -> 120112.84 | L14: =IF(L$9="JAMMU",HLOOKUP($A14,'[2]PROPOSED GAIL EX WORKS'!$D$2:$AE$90,20,0)) -> 112920 | M14: 1000 | N14: 0 | O14: =(L14-M14-N14)*12.36% -> 13833.312 | P14: =L14-M14-N14+O14 -> 125753.312 | Q14: =IF(Q$9="NOIDA",HLOOKUP($A14,'[2]PROPOSED GAIL EX WORKS'!$D$2:$AE$90,21,0)) -> 112970 | R14: 1000 | S14: 0 | T14: =(Q14-R14-S14)*12.36% -> 13839.492 | U14: =Q14-R14-S14+T14 -> 125809.492 | V14: =IF(V$9="PONDICHERRY",HLOOKUP($A14,'[2]PROPOSED GAIL EX WORKS'!$D$2:$AE$90,22,0)) -> 108930 | W14: 1000 | X14: 0 | Y14: =(V14-W14-X14)*12.36% -> 13340.148 | Z14: =V14-W14-X14+Y14 -> 121270.148 | AA14: =IF(AA$9="BARODA",HLOOKUP($A14,'[2]PROPOSED GAIL EX WORKS'!$D$2:$AE$90,23,0)) -> 111060 | AB14: 1000 | AC14: 0 | AD14: =(AA14-AB14-AC14)*12.36% -> 13603.416 | AE14: =AA14-AB14-AC14+AD14 -> 123663.416
A15: CABLE-INSUL
A16: C43D006A | B16: =IF(D$9="BARJORA",HLOOKUP($A16,'[2]PROPOSED GAIL EX WORKS'!$D$2:$AE$90,18,0)) -> 104009.5 | C16: 1000 | D16: 0 | E16: =(B16-C16-D16)*12.36% -> 12731.9742 | F16: =B16-C16-D16+E16 -> 115741.4742 | G16: =IF(G$9="HOSUR",HLOOKUP($A16,'[2]PROPOSED GAIL EX WORKS'!$D$2:$AE$90,19,0)) -> 101273.5 | H16: 1000 | I16: 0 | J16: =(G16-H16-I16)*12.36% -> 12393.8046 | K16: =G16-H16-I16+J16 -> 112667.3046 | L16: =IF(L$9="JAMMU",HLOOKUP($A16,'[2]PROPOSED GAIL EX WORKS'!$D$2:$AE$90,20,0)) -> 106356 | M16: 1000 | N16: 0 | O16: =(L16-M16-N16)*12.36% -> 13022.0016 | P16: =L16-M16-N16+O16 -> 118378.0016 | Q16: =IF(Q$9="NOIDA",HLOOKUP($A16,'[2]PROPOSED GAIL EX WORKS'!$D$2:$AE$90,21,0)) -> 106394 | R16: 1000 | S16: 0 | T16: =(Q16-R16-S16)*12.36% -> 13026.6984 | U16: =Q16-R16-S16+T16 -> 118420.6984 | V16: =IF(V$9="PONDICHERRY",HLOOKUP($A16,'[2]PROPOSED GAIL EX WORKS'!$D$2:$AE$90,22,0)) -> 101416 | W16: 1000 | X16: 0 | Y16: =(V16-W16-X16)*12.36% -> 12411.4176 | Z16: =V16-W16-X16+Y16 -> 112827.4176 | AA16: =IF(AA$9="BARODA",HLOOKUP($A16,'[2]PROPOSED GAIL EX WORKS'!$D$2:$AE$90,23,0)) -> 104370.5 | AB16: 1000 | AC16: 0 | AD16: =(AA16-AB16-AC16)*12.36% -> 12776.5938 | AE16: =AA16-AB16-AC16+AD16 -> 116147.0938
A18: SHETG
A19: E45A003A | B19: =IF(D$9="BARJORA",HLOOKUP($A19,'[2]PROPOSED GAIL EX WORKS'!$D$2:$AE$90,18,0)) -> 105060 | C19: 1000 | D19: 0 | E19: =(B19-C19-D19)*12.36% -> 12861.816 | F19: =B19-C19-D19+E19 -> 116921.816 | G19: =IF(G$9="HOSUR",HLOOKUP($A19,'[2]PROPOSED GAIL EX WORKS'!$D$2:$AE$90,19,0)) -> 102170 | H19: 1000 | I19: 0 | J19: =(G19-H19-I19)*12.36% -> 12504.612 | K19: =G19-H19-I19+J19 -> 113674.612 | L19: =IF(L$9="JAMMU",HLOOKUP($A19,'[2]PROPOSED GAIL EX WORKS'!$D$2:$AE$90,20,0)) -> 107520 | M19: 1000 | N19: 0 | O19: =(L19-M19-N19)*12.36% -> 13165.872 | P19: =L19-M19-N19+O19 -> 119685.872 | Q19: =IF(Q$9="NOIDA",HLOOKUP($A19,'[2]PROPOSED GAIL EX WORKS'!$D$2:$AE$90,21,0)) -> 107560 | R19: 1000 | S19: 0 | T19: =(Q19-R19-S19)*12.36% -> 13170.816 | U19: =Q19-R19-S19+T19 -> 119730.816 | V19: =IF(V$9="PONDICHERRY",HLOOKUP($A19,'[2]PROPOSED GAIL EX WORKS'!$D$2:$AE$90,22,0)) -> 102320 | W19: 1000 | X19: 0 | Y19: =(V19-W19-X19)*12.36% -> 12523.152 | Z19: =V19-W19-X19+Y19 -> 113843.152 | AA19: =IF(AA$9="BARODA",HLOOKUP($A19,'[2]PROPOSED GAIL EX WORKS'!$D$2:$AE$90,23,0)) -> 105590 | AB19: 1000 | AC19: 0 | AD19: =(AA19-AB19-AC19)*12.36% -> 12927.324 | AE19: =AA19-AB19-AC19+AD19 -> 117517.324
A20: E45A003OG
A21: EXTR
A22: E52A003A | B22: =IF(D$9="BARJORA",HLOOKUP($A22,'[2]PROPOSED GAIL EX WORKS'!$D$2:$AE$90,18,0)) -> 106580 | C22: 1000 | D22: 0 | E22: =(B22-C22-D22)*12.36% -> 13049.688 | F22: =B22-C22-D22+E22 -> 118629.688 | G22: =IF(G$9="HOSUR",HLOOKUP($A22,'[2]PROPOSED GAIL EX WORKS'!$D$2:$AE$90,19,0)) -> 104840 | H22: 1000 | I22: 0 | J22: =(G22-H22-I22)*12.36% -> 12834.624 | K22: =G22-H22-I22+J22 -> 116674.624 | L22: =IF(L$9="JAMMU",HLOOKUP($A22,'[2]PROPOSED GAIL EX WORKS'!$D$2:$AE$90,20,0)) -> 110190 | M22: 1000 | N22: 0 | O22: =(L22-M22-N22)*12.36% -> 13495.884 | P22: =L22-M22-N22+O22 -> 122685.884 | Q22: =IF(Q$9="NOIDA",HLOOKUP($A22,'[2]PROPOSED GAIL EX WORKS'!$D$2:$AE$90,21,0)) -> 110230 | R22: 1000 | S22: 0 | T22: =(Q22-R22-S22)*12.36% -> 13500.828 | U22: =Q22-R22-S22+T22 -> 122730.828 | V22: =IF(V$9="PONDICHERRY",HLOOKUP($A22,'[2]PROPOSED GAIL EX WORKS'!$D$2:$AE$90,22,0)) -> 104990 | W22: 1000 | X22: 0 | Y22: =(V22-W22-X22)*12.36% -> 12853.164 | Z22: =V22-W22-X22+Y22 -> 116843.164 | AA22: =IF(AA$9="BARODA",HLOOKUP($A22,'[2]PROPOSED GAIL EX WORKS'!$D$2:$AE$90,23,0)) -> 108190 | AB22: 1000 | AC22: 0 | AD22: =(AA22-AB22-AC22)*12.36% -> 13248.684 | AE22: =AA22-AB22-AC22+AD22 -> 120438.684
A23: E52A003OG
A24: E52U003A | B24: =IF(D$9="BARJORA",HLOOKUP($A24,'[2]PROPOSED GAIL EX WORKS'!$D$2:$AE$90,18,0)) -> 110360 | C24: 1000 | D24: 0 | E24: =(B24-C24-D24)*12.36% -> 13516.896 | F24: =B24-C24-D24+E24 -> 122876.896 | G24: =IF(G$9="HOSUR",HLOOKUP($A24,'[2]PROPOSED GAIL EX WORKS'!$D$2:$AE$90,19,0)) -> 108620 | H24: 1000 | I24: 0 | J24: =(G24-H24-I24)*12.36% -> 13301.832 | K24: =G24-H24-I24+J24 -> 120921.832 | L24: =IF(L$9="JAMMU",HLOOKUP($A24,'[2]PROPOSED GAIL EX WORKS'!$D$2:$AE$90,20,0)) -> 113970 | M24: 1000 | N24: 0 | O24: =(L24-M24-N24)*12.36% -> 13963.092 | P24: =L24-M24-N24+O24 -> 126933.092 | Q24: =IF(Q$9="NOIDA",HLOOKUP($A24,'[2]PROPOSED GAIL EX WORKS'!$D$2:$AE$90,21,0)) -> 114010 | R24: 1000 | S24: 0 | T24: =(Q24-R24-S24)*12.36% -> 13968.036 | U24: =Q24-R24-S24+T24 -> 126978.036 | V24: =IF(V$9="PONDICHERRY",HLOOKUP($A24,'[2]PROPOSED GAIL EX WORKS'!$D$2:$AE$90,22,0)) -> 108770 | W24: 1000 | X24: 0 | Y24: =(V24-W24-X24)*12.36% -> 13320.372 | Z24: =V24-W24-X24+Y24 -> 121090.372 | AA24: =IF(AA$9="BARODA",HLOOKUP($A24,'[2]PROPOSED GAIL EX WORKS'!$D$2:$AE$90,23,0)) -> 111970 | AB24: 1000 | AC24: 0 | AD24: =(AA24-AB24-AC24)*12.36% -> 13715.892 | AE24: =AA24-AB24-AC24+AD24 -> 124685.892
A25: E52U003OG
A26: HM FILM
A27: F55HM0003A | B27: =IF(D$9="BARJORA",HLOOKUP($A27,'[2]PROPOSED GAIL EX WORKS'!$D$2:$AE$90,18,0)) -> 104850 | C27: 1000 | D27: 0 | E27: =(B27-C27-D27)*12.36% -> 12835.86 | F27: =B27-C27-D27+E27 -> 116685.86 | G27: =IF(G$9="HOSUR",HLOOKUP($A27,'[2]PROPOSED GAIL EX WORKS'!$D$2:$AE$90,19,0)) -> 103450 | H27: 1000 | I27: 0 | J27: =(G27-H27-I27)*12.36% -> 12662.82 | K27: =G27-H27-I27+J27 -> 115112.82 | L27: =IF(L$9="JAMMU",HLOOKUP($A27,'[2]PROPOSED GAIL EX WORKS'!$D$2:$AE$90,20,0)) -> 108470 | M27: 1000 | N27: 0 | O27: =(L27-M27-N27)*12.36% -> 13283.292 | P27: =L27-M27-N27+O27 -> 120753.292 | Q27: =IF(Q$9="NOIDA",HLOOKUP($A27,'[2]PROPOSED GAIL EX WORKS'!$D$2:$AE$90,21,0)) -> 108520 | R27: 1000 | S27: 0 | T27: =(Q27-R27-S27)*12.36% -> 13289.472 | U27: =Q27-R27-S27+T27 -> 120809.472 | V27: =IF(V$9="PONDICHERRY",HLOOKUP($A27,'[2]PROPOSED GAIL EX WORKS'!$D$2:$AE$90,22,0)) -> 104460 | W27: 1000 | X27: 0 | Y27: =(V27-W27-X27)*12.36% -> 12787.656 | Z27: =V27-W27-X27+Y27 -> 116247.656 | AA27: =IF(AA$9="BARODA",HLOOKUP($A27,'[2]PROPOSED GAIL EX WORKS'!$D$2:$AE$90,23,0)) -> 106610 | AB27: 1000 | AC27: 0 | AD27: =(AA27-AB27-AC27)*12.36% -> 13053.396 | AE27: =AA27-AB27-AC27+AD27 -> 118663.396
A28: F55HM0003OG
A29: IM HIGH
A30: I50A180A | B30: =IF(D$9="BARJORA",HLOOKUP($A30,'[2]PROPOSED GAIL EX WORKS'!$D$2:$AE$90,18,0)) -> 101660 | C30: 1000 | D30: 0 | E30: =(B30-C30-D30)*12.36% -> 12441.576 | F30: =B30-C30-D30+E30 -> 113101.576 | G30: =IF(G$9="HOSUR",HLOOKUP($A30,'[2]PROPOSED GAIL EX WORKS'!$D$2:$AE$90,19,0)) -> 99760 | H30: 1000 | I30: 0 | J30: =(G30-H30-I30)*12.36% -> 12206.736 | K30: =G30-H30-I30+J30 -> 110966.736 | L30: =IF(L$9="JAMMU",HLOOKUP($A30,'[2]PROPOSED GAIL EX WORKS'!$D$2:$AE$90,20,0)) -> 104840 | M30: 1000 | N30: 0 | O30: =(L30-M30-N30)*12.36% -> 12834.624 | P30: =L30-M30-N30+O30 -> 116674.624 | Q30: =IF(Q$9="NOIDA",HLOOKUP($A30,'[2]PROPOSED GAIL EX WORKS'!$D$2:$AE$90,21,0)) -> 104760 | R30: 1000 | S30: 0 | T30: =(Q30-R30-S30)*12.36% -> 12824.736 | U30: =Q30-R30-S30+T30 -> 116584.736 | V30: =IF(V$9="PONDICHERRY",HLOOKUP($A30,'[2]PROPOSED GAIL EX WORKS'!$D$2:$AE$90,22,0)) -> 100280 | W30: 1000 | X30: 0 | Y30: =(V30-W30-X30)*12.36% -> 12271.008 | Z30: =V30-W30-X30+Y30 -> 111551.008 | AA30: =IF(AA$9="BARODA",HLOOKUP($A30,'[2]PROPOSED GAIL EX WORKS'!$D$2:$AE$90,23,0)) -> 102890 | AB30: 1000 | AC30: 0 | AD30: =(AA30-AB30-AC30)*12.36% -> 12593.604 | AE30: =AA30-AB30-AC30+AD30 -> 114483.604
A31: I50A180OG
A32: IM LOW
A33: I60A080A | B33: =IF(D$9="BARJORA",HLOOKUP($A33,'[2]PROPOSED GAIL EX WORKS'!$D$2:$AE$90,18,0)) -> 103710 | C33: 1000 | D33: 0 | E33: =(B33-C33-D33)*12.36% -> 12694.956 | F33: =B33-C33-D33+E33 -> 115404.956 | G33: =IF(G$9="HOSUR",HLOOKUP($A33,'[2]PROPOSED GAIL EX WORKS'!$D$2:$AE$90,19,0)) -> 100820 | H33: 1000 | I33: 0 | J33: =(G33-H33-I33)*12.36% -> 12337.752 | K33: =G33-H33-I33+J33 -> 112157.752 | L33: =IF(L$9="JAMMU",HLOOKUP($A33,'[2]PROPOSED GAIL EX WORKS'!$D$2:$AE$90,20,0)) -> 106170 | M33: 1000 | N33: 0 | O33: =(L33-M33-N33)*12.36% -> 12999.012 | P33: =L33-M33-N33+O33 -> 118169.012 | Q33: =IF(Q$9="NOIDA",HLOOKUP($A33,'[2]PROPOSED GAIL EX WORKS'!$D$2:$AE$90,21,0)) -> 106210 | R33: 1000 | S33: 0 | T33: =(Q33-R33-S33)*12.36% -> 13003.956 | U33: =Q33-R33-S33+T33 -> 118213.956 | V33: =IF(V$9="PONDICHERRY",HLOOKUP($A33,'[2]PROPOSED GAIL EX WORKS'!$D$2:$AE$90,22,0)) -> 100970 | W33: 1000 | X33: 0 | Y33: =(V33-W33-X33)*12.36% -> 12356.292 | Z33: =V33-W33-X33+Y33 -> 112326.292 | AA33: =IF(AA$9="BARODA",HLOOKUP($A33,'[2]PROPOSED GAIL EX WORKS'!$D$2:$AE$90,23,0)) -> 104190 | AB33: 1000 | AC33: 0 | AD33: =(AA33-AB33-AC33)*12.36% -> 12754.284 | AE33: =AA33-AB33-AC33+AD33 -> 115944.284
A34: I60A080OG
A35: IM-L-UV
A36: I60U080A | B36: =IF(D$9="BARJORA",HLOOKUP($A36,'[2]PROPOSED GAIL EX WORKS'!$D$2:$AE$90,18,0)) -> 105240 | C36: 1000 | D36: 0 | E36: =(B36-C36-D36)*12.36% -> 12884.064 | F36: =B36-C36-D36+E36 -> 117124.064 | G36: =IF(G$9="HOSUR",HLOOKUP($A36,'[2]PROPOSED GAIL EX WORKS'!$D$2:$AE$90,19,0)) -> 102350 | H36: 1000 | I36: 0 | J36: =(G36-H36-I36)*12.36% -> 12526.86 | K36: =G36-H36-I36+J36 -> 113876.86 | L36: =IF(L$9="JAMMU",HLOOKUP($A36,'[2]PROPOSED GAIL EX WORKS'!$D$2:$AE$90,20,0)) -> 107700 | M36: 1000 | N36: 0 | O36: =(L36-M36-N36)*12.36% -> 13188.12 | P36: =L36-M36-N36+O36 -> 119888.12 | Q36: =IF(Q$9="NOIDA",HLOOKUP($A36,'[2]PROPOSED GAIL EX WORKS'!$D$2:$AE$90,21,0)) -> 107740 | R36: 1000 | S36: 0 | T36: =(Q36-R36-S36)*12.36% -> 13193.064 | U36: =Q36-R36-S36+T36 -> 119933.064 | V36: =IF(V$9="PONDICHERRY",HLOOKUP($A36,'[2]PROPOSED GAIL EX WORKS'!$D$2:$AE$90,22,0)) -> 102500 | W36: 1000 | X36: 0 | Y36: =(V36-W36-X36)*12.36% -> 12545.4 | Z36: =V36-W36-X36+Y36 -> 114045.4 | AA36: =IF(AA$9="BARODA",HLOOKUP($A36,'[2]PROPOSED GAIL EX WORKS'!$D$2:$AE$90,23,0)) -> 105690 | AB36: 1000 | AC36: 0 | AD36: =(AA36-AB36-AC36)*12.36% -> 12939.684 | AE36: =AA36-AB36-AC36+AD36 -> 117629.684
A37: I60U080OG
A38: PIPE (PE80)
A39: P54A001A | B39: =IF(D$9="BARJORA",HLOOKUP($A39,'[2]PROPOSED GAIL EX WORKS'!$D$2:$AE$90,18,0)) -> 113570 | C39: 1000 | D39: 0 | E39: =(B39-C39-D39)*12.36% -> 13913.652 | F39: =B39-C39-D39+E39 -> 126483.652 | G39: =IF(G$9="HOSUR",HLOOKUP($A39,'[2]PROPOSED GAIL EX WORKS'!$D$2:$AE$90,19,0)) -> 110160 | H39: 1000 | I39: 0 | J39: =(G39-H39-I39)*12.36% -> 13492.176 | K39: =G39-H39-I39+J39 -> 122652.176 | L39: =IF(L$9="JAMMU",HLOOKUP($A39,'[2]PROPOSED GAIL EX WORKS'!$D$2:$AE$90,20,0)) -> 115180 | M39: 1000 | N39: 0 | O39: =(L39-M39-N39)*12.36% -> 14112.648 | P39: =L39-M39-N39+O39 -> 128292.648 | Q39: =IF(Q$9="NOIDA",HLOOKUP($A39,'[2]PROPOSED GAIL EX WORKS'!$D$2:$AE$90,21,0)) -> 115230 | R39: 1000 | S39: 0 | T39: =(Q39-R39-S39)*12.36% -> 14118.828 | U39: =Q39-R39-S39+T39 -> 128348.828 | V39: =IF(V$9="PONDICHERRY",HLOOKUP($A39,'[2]PROPOSED GAIL EX WORKS'!$D$2:$AE$90,22,0)) -> 111230 | W39: 1000 | X39: 0 | Y39: =(V39-W39-X39)*12.36% -> 13624.428 | Z39: =V39-W39-X39+Y39 -> 123854.428 | AA39: =IF(AA$9="BARODA",HLOOKUP($A39,'[2]PROPOSED GAIL EX WORKS'!$D$2:$AE$90,23,0)) -> 113320 | AB39: 1000 | AC39: 0 | AD39: =(AA39-AB39-AC39)*12.36% -> 13882.752 | AE39: =AA39-AB39-AC39+AD39 -> 126202.752
A40: P54A001OG
A41: PIPE (PE100)
A42: P52A003A | B42: =IF(D$9="BARJORA",HLOOKUP($A42,'[2]PROPOSED GAIL EX WORKS'!$D$2:$AE$90,18,0)) -> 115580 | C42: 1000 | D42: 0 | E42: =(B42-C42-D42)*12.36% -> 14162.088 | F42: =B42-C42-D42+E42 -> 128742.088 | G42: =IF(G$9="HOSUR",HLOOKUP($A42,'[2]PROPOSED GAIL EX WORKS'!$D$2:$AE$90,19,0)) -> 112160 | H42: 1000 | I42: 0 | J42: =(G42-H42-I42)*12.36% -> 13739.376 | K42: =G42-H42-I42+J42 -> 124899.376 | L42: =IF(L$9="JAMMU",HLOOKUP($A42,'[2]PROPOSED GAIL EX WORKS'!$D$2:$AE$90,20,0)) -> 117180 | M42: 1000 | N42: 0 | O42: =(L42-M42-N42)*12.36% -> 14359.848 | P42: =L42-M42-N42+O42 -> 130539.848 | Q42: =IF(Q$9="NOIDA",HLOOKUP($A42,'[2]PROPOSED GAIL EX WORKS'!$D$2:$AE$90,21,0)) -> 117230 | R42: 1000 | S42: 0 | T42: =(Q42-R42-S42)*12.36% -> 14366.028 | U42: =Q42-R42-S42+T42 -> 130596.028 | V42: =IF(V$9="PONDICHERRY",HLOOKUP($A42,'[2]PROPOSED GAIL EX WORKS'!$D$2:$AE$90,22,0)) -> 113240 | W42: 1000 | X42: 0 | Y42: =(V42-W42-X42)*12.36% -> 13872.864 | Z42: =V42-W42-X42+Y42 -> 126112.864 | AA42: =IF(AA$9="BARODA",HLOOKUP($A42,'[2]PROPOSED GAIL EX WORKS'!$D$2:$AE$90,23,0)) -> 115320 | AB42: 1000 | AC42: 0 | AD42: =(AA42-AB42-AC42)*12.36% -> 14129.952 | AE42: =AA42-AB42-AC42+AD42 -> 128449.952
A43: RAFFIA
A44: W50A009A | B44: =IF(D$9="BARJORA",HLOOKUP($A44,'[2]PROPOSED GAIL EX WORKS'!$D$2:$AE$90,18,0)) -> 106430 | C44: 1000 | D44: 0 | E44: =(B44-C44-D44)*12.36% -> 13031.148 | F44: =B44-C44-D44+E44 -> 118461.148 | G44: =IF(G$9="HOSUR",HLOOKUP($A44,'[2]PROPOSED GAIL EX WORKS'!$D$2:$AE$90,19,0)) -> 103940 | H44: 1000 | I44: 0 | J44: =(G44-H44-I44)*12.36% -> 12723.384 | K44: =G44-H44-I44+J44 -> 115663.384 | L44: =IF(L$9="JAMMU",HLOOKUP($A44,'[2]PROPOSED GAIL EX WORKS'!$D$2:$AE$90,20,0)) -> 109290 | M44: 1000 | N44: 0 | O44: =(L44-M44-N44)*12.36% -> 13384.644 | P44: =L44-M44-N44+O44 -> 121674.644 | Q44: =IF(Q$9="NOIDA",HLOOKUP($A44,'[2]PROPOSED GAIL EX WORKS'!$D$2:$AE$90,21,0)) -> 109330 | R44: 1000 | S44: 0 | T44: =(Q44-R44-S44)*12.36% -> 13389.588 | U44: =Q44-R44-S44+T44 -> 121719.588 | V44: =IF(V$9="PONDICHERRY",HLOOKUP($A44,'[2]PROPOSED GAIL EX WORKS'!$D$2:$AE$90,22,0)) -> 104090 | W44: 1000 | X44: 0 | Y44: =(V44-W44-X44)*12.36% -> 12741.924 | Z44: =V44-W44-X44+Y44 -> 115831.924 | AA44: =IF(AA$9="BARODA",HLOOKUP($A44,'[2]PROPOSED GAIL EX WORKS'!$D$2:$AE$90,23,0)) -> 107190 | AB44: 1000 | AC44: 0 | AD44: =(AA44-AB44-AC44)*12.36% -> 13125.084 | AE44: =AA44-AB44-AC44+AD44 -> 119315.084
A45: T50A010A | B45: =IF(D$9="BARJORA",HLOOKUP($A45,'[2]PROPOSED GAIL EX WORKS'!$D$2:$AE$90,18,0)) -> 106430 | C45: 1000 | D45: 0 | E45: =(B45-C45-D45)*12.36% -> 13031.148 | F45: =B45-C45-D45+E45 -> 118461.148 | G45: =IF(G$9="HOSUR",HLOOKUP($A45,'[2]PROPOSED GAIL EX WORKS'!$D$2:$AE$90,19,0)) -> 103940 | H45: 1000 | I45: 0 | J45: =(G45-H45-I45)*12.36% -> 12723.384 | K45: =G45-H45-I45+J45 -> 115663.384 | L45: =IF(L$9="JAMMU",HLOOKUP($A45,'[2]PROPOSED GAIL EX WORKS'!$D$2:$AE$90,20,0)) -> 109290 | M45: 1000 | N45: 0 | O45: =(L45-M45-N45)*12.36% -> 13384.644 | P45: =L45-M45-N45+O45 -> 121674.644 | Q45: =IF(Q$9="NOIDA",HLOOKUP($A45,'[2]PROPOSED GAIL EX WORKS'!$D$2:$AE$90,21,0)) -> 109330 | R45: 1000 | S45: 0 | T45: =(Q45-R45-S45)*12.36% -> 13389.588 | U45: =Q45-R45-S45+T45 -> 121719.588 | V45: =IF(V$9="PONDICHERRY",HLOOKUP($A45,'[2]PROPOSED GAIL EX WORKS'!$D$2:$AE$90,22,0)) -> 104590 | W45: 1000 | X45: 0 | Y45: =(V45-W45-X45)*12.36% -> 12803.724 | Z45: =V45-W45-X45+Y45 -> 116393.724 | AA45: =IF(AA$9="BARODA",HLOOKUP($A45,'[2]PROPOSED GAIL EX WORKS'!$D$2:$AE$90,23,0)) -> 107190 | AB45: 1000 | AC45: 0 | AD45: =(AA45-AB45-AC45)*12.36% -> 13125.084 | AE45: =AA45-AB45-AC45+AD45 -> 119315.084
A46: MF
A47: W52A009A | B47: =IF(D$9="BARJORA",HLOOKUP($A47,'[2]PROPOSED GAIL EX WORKS'!$D$2:$AE$90,18,0)) -> 103330 | C47: 1000 | D47: 0 | E47: =(B47-C47-D47)*12.36% -> 12647.988 | F47: =B47-C47-D47+E47 -> 114977.988 | G47: =IF(G$9="HOSUR",HLOOKUP($A47,'[2]PROPOSED GAIL EX WORKS'!$D$2:$AE$90,19,0)) -> 100440 | H47: 1000 | I47: 0 | J47: =(G47-H47-I47)*12.36% -> 12290.784 | K47: =G47-H47-I47+J47 -> 111730.784 | L47: =IF(L$9="JAMMU",HLOOKUP($A47,'[2]PROPOSED GAIL EX WORKS'!$D$2:$AE$90,20,0)) -> 105790 | M47: 1000 | N47: 0 | O47: =(L47-M47-N47)*12.36% -> 12952.044 | P47: =L47-M47-N47+O47 -> 117742.044 | Q47: =IF(Q$9="NOIDA",HLOOKUP($A47,'[2]PROPOSED GAIL EX WORKS'!$D$2:$AE$90,21,0)) -> 105830 | R47: 1000 | S47: 0 | T47: =(Q47-R47-S47)*12.36% -> 12956.988 | U47: =Q47-R47-S47+T47 -> 117786.988 | V47: =IF(V$9="PONDICHERRY",HLOOKUP($A47,'[2]PROPOSED GAIL EX WORKS'!$D$2:$AE$90,22,0)) -> 100590 | W47: 1000 | X47: 0 | Y47: =(V47-W47-X47)*12.36% -> 12309.324 | Z47: =V47-W47-X47+Y47 -> 111899.324 | AA47: =IF(AA$9="BARODA",HLOOKUP($A47,'[2]PROPOSED GAIL EX WORKS'!$D$2:$AE$90,23,0)) -> 103690 | AB47: 1000 | AC47: 0 | AD47: =(AA47-AB47-AC47)*12.36% -> 12692.484 | AE47: =AA47-AB47-AC47+AD47 -> 115382.484
A48: W52A009OG
A49: W52ASR009A | B49: =IF(D$9="BARJORA",HLOOKUP($A49,'[2]PROPOSED GAIL EX WORKS'!$D$2:$AE$90,18,0)) -> 103330 | C49: 1000 | D49: 0 | E49: =(B49-C49-D49)*12.36% -> 12647.988 | F49: =B49-C49-D49+E49 -> 114977.988 | G49: =IF(G$9="HOSUR",HLOOKUP($A49,'[2]PROPOSED GAIL EX WORKS'!$D$2:$AE$90,19,0)) -> 100440 | H49: 1000 | I49: 0 | J49: =(G49-H49-I49)*12.36% -> 12290.784 | K49: =G49-H49-I49+J49 -> 111730.784 | L49: =IF(L$9="JAMMU",HLOOKUP($A49,'[2]PROPOSED GAIL EX WORKS'!$D$2:$AE$90,20,0)) -> 105790 | M49: 1000 | N49: 0 | O49: =(L49-M49-N49)*12.36% -> 12952.044 | P49: =L49-M49-N49+O49 -> 117742.044 | Q49: =IF(Q$9="NOIDA",HLOOKUP($A49,'[2]PROPOSED GAIL EX WORKS'!$D$2:$AE$90,21,0)) -> 105830 | R49: 1000 | S49: 0 | T49: =(Q49-R49-S49)*12.36% -> 12956.988 | U49: =Q49-R49-S49+T49 -> 117786.988 | V49: =IF(V$9="PONDICHERRY",HLOOKUP($A49,'[2]PROPOSED GAIL EX WORKS'!$D$2:$AE$90,22,0)) -> 100590 | W49: 1000 | X49: 0 | Y49: =(V49-W49-X49)*12.36% -> 12309.324 | Z49: =V49-W49-X49+Y49 -> 111899.324 | AA49: =IF(AA$9="BARODA",HLOOKUP($A49,'[2]PROPOSED GAIL EX WORKS'!$D$2:$AE$90,23,0)) -> 103690 | AB49: 1000 | AC49: 0 | AD49: =(AA49-AB49-AC49)*12.36% -> 12692.484 | AE49: =AA49-AB49-AC49+AD49 -> 115382.484
A50: W55A004A | B50: =IF(D$9="BARJORA",HLOOKUP($A50,'[2]PROPOSED GAIL EX WORKS'!$D$2:$AE$90,18,0)) -> 106330 | C50: 1000 | D50: 0 | E50: =(B50-C50-D50)*12.36% -> 13018.788 | F50: =B50-C50-D50+E50 -> 118348.788 | G50: =IF(G$9="HOSUR",HLOOKUP($A50,'[2]PROPOSED GAIL EX WORKS'!$D$2:$AE$90,19,0)) -> 103440 | H50: 1000 | I50: 0 | J50: =(G50-H50-I50)*12.36% -> 12661.584 | K50: =G50-H50-I50+J50 -> 115101.584 | L50: =IF(L$9="JAMMU",HLOOKUP($A50,'[2]PROPOSED GAIL EX WORKS'!$D$2:$AE$90,20,0)) -> 108790 | M50: 1000 | N50: 0 | O50: =(L50-M50-N50)*12.36% -> 13322.844 | P50: =L50-M50-N50+O50 -> 121112.844 | Q50: =IF(Q$9="NOIDA",HLOOKUP($A50,'[2]PROPOSED GAIL EX WORKS'!$D$2:$AE$90,21,0)) -> 108830 | R50: 1000 | S50: 0 | T50: =(Q50-R50-S50)*12.36% -> 13327.788 | U50: =Q50-R50-S50+T50 -> 121157.788 | V50: =IF(V$9="PONDICHERRY",HLOOKUP($A50,'[2]PROPOSED GAIL EX WORKS'!$D$2:$AE$90,22,0)) -> 103590 | W50: 1000 | X50: 0 | Y50: =(V50-W50-X50)*12.36% -> 12680.124 | Z50: =V50-W50-X50+Y50 -> 115270.124 | AA50: =IF(AA$9="BARODA",HLOOKUP($A50,'[2]PROPOSED GAIL EX WORKS'!$D$2:$AE$90,23,0)) -> 106690 | AB50: 1000 | AC50: 0 | AD50: =(AA50-AB50-AC50)*12.36% -> 13063.284 | AE50: =AA50-AB50-AC50+AD50 -> 118753.284
A51: LLDPE
A52: E20AN009A | B52: =IF(D$9="BARJORA",HLOOKUP($A52,'[2]PROPOSED GAIL EX WORKS'!$D$2:$AE$90,18,0)) -> 106800 | C52: 1000 | D52: 0 | E52: =(B52-C52-D52)*12.36% -> 13076.88 | F52: =B52-C52-D52+E52 -> 118876.88 | G52: =IF(G$9="HOSUR",HLOOKUP($A52,'[2]PROPOSED GAIL EX WORKS'!$D$2:$AE$90,19,0)) -> 105210 | H52: 1000 | I52: 0 | J52: =(G52-H52-I52)*12.36% -> 12880.356 | K52: =G52-H52-I52+J52 -> 117090.356 | L52: =IF(L$9="JAMMU",HLOOKUP($A52,'[2]PROPOSED GAIL EX WORKS'!$D$2:$AE$90,20,0)) -> 110560 | M52: 1000 | N52: 0 | O52: =(L52-M52-N52)*12.36% -> 13541.616 | P52: =L52-M52-N52+O52 -> 123101.616 | Q52: =IF(Q$9="NOIDA",HLOOKUP($A52,'[2]PROPOSED GAIL EX WORKS'!$D$2:$AE$90,21,0)) -> 110600 | R52: 1000 | S52: 0 | T52: =(Q52-R52-S52)*12.36% -> 13546.56 | U52: =Q52-R52-S52+T52 -> 123146.56 | V52: =IF(V$9="PONDICHERRY",HLOOKUP($A52,'[2]PROPOSED GAIL EX WORKS'!$D$2:$AE$90,22,0)) -> 105360 | W52: 1000 | X52: 0 | Y52: =(V52-W52-X52)*12.36% -> 12898.896 | Z52: =V52-W52-X52+Y52 -> 117258.896 | AA52: =IF(AA$9="BARODA",HLOOKUP($A52,'[2]PROPOSED GAIL EX WORKS'!$D$2:$AE$90,23,0)) -> 108590 | AB52: 1000 | AC52: 0 | AD52: =(AA52-AB52-AC52)*12.36% -> 13298.124 | AE52: =AA52-AB52-AC52+AD52 -> 120888.124
A53: E20AN009OG
A54: E36A060A | B54: =IF(D$9="BARJORA",HLOOKUP($A54,'[2]PROPOSED GAIL EX WORKS'!$D$2:$AE$90,18,0)) -> 111440 | C54: 1000 | D54: 0 | E54: =(B54-C54-D54)*12.36% -> 13650.384 | F54: =B54-C54-D54+E54 -> 124090.384 | G54: =IF(G$9="HOSUR",HLOOKUP($A54,'[2]PROPOSED GAIL EX WORKS'!$D$2:$AE$90,19,0)) -> 108250 | H54: 1000 | I54: 0 | J54: =(G54-H54-I54)*12.36% -> 13256.1 | K54: =G54-H54-I54+J54 -> 120506.1 | L54: =IF(L$9="JAMMU",HLOOKUP($A54,'[2]PROPOSED GAIL EX WORKS'!$D$2:$AE$90,20,0)) -> 113600 | M54: 1000 | N54: 0 | O54: =(L54-M54-N54)*12.36% -> 13917.36 | P54: =L54-M54-N54+O54 -> 126517.36 | Q54: =IF(Q$9="NOIDA",HLOOKUP($A54,'[2]PROPOSED GAIL EX WORKS'!$D$2:$AE$90,21,0)) -> 113640 | R54: 1000 | S54: 0 | T54: =(Q54-R54-S54)*12.36% -> 13922.304 | U54: =Q54-R54-S54+T54 -> 126562.304 | V54: =IF(V$9="PONDICHERRY",HLOOKUP($A54,'[2]PROPOSED GAIL EX WORKS'!$D$2:$AE$90,22,0)) -> 108400 | W54: 1000 | X54: 0 | Y54: =(V54-W54-X54)*12.36% -> 13274.64 | Z54: =V54-W54-X54+Y54 -> 120674.64 | AA54: =IF(AA$9="BARODA",HLOOKUP($A54,'[2]PROPOSED GAIL EX WORKS'!$D$2:$AE$90,23,0)) -> 111590 | AB54: 1000 | AC54: 0 | AD54: =(AA54-AB54-AC54)*12.36% -> 13668.924 | AE54: =AA54-AB54-AC54+AD54 -> 124258.924
A55: E36A060OG
A56: FILM
A57: F20S009A | B57: =IF(D$9="BARJORA",HLOOKUP($A57,'[2]PROPOSED GAIL EX WORKS'!$D$2:$AE$90,18,0)) -> 108300 | C57: 1000 | D57: 0 | E57: =(B57-C57-D57)*12.36% -> 13262.28 | F57: =B57-C57-D57+E57 -> 120562.28 | G57: =IF(G$9="HOSUR",HLOOKUP($A57,'[2]PROPOSED GAIL EX WORKS'!$D$2:$AE$90,19,0)) -> 106710 | H57: 1000 | I57: 0 | J57: =(G57-H57-I57)*12.36% -> 13065.756 | K57: =G57-H57-I57+J57 -> 118775.756 | L57: =IF(L$9="JAMMU",HLOOKUP($A57,'[2]PROPOSED GAIL EX WORKS'!$D$2:$AE$90,20,0)) -> 112060 | M57: 1000 | N57: 0 | O57: =(L57-M57-N57)*12.36% -> 13727.016 | P57: =L57-M57-N57+O57 -> 124787.016 | Q57: =IF(Q$9="NOIDA",HLOOKUP($A57,'[2]PROPOSED GAIL EX WORKS'!$D$2:$AE$90,21,0)) -> 112100 | R57: 1000 | S57: 0 | T57: =(Q57-R57-S57)*12.36% -> 13731.96 | U57: =Q57-R57-S57+T57 -> 124831.96 | V57: =IF(V$9="PONDICHERRY",HLOOKUP($A57,'[2]PROPOSED GAIL EX WORKS'!$D$2:$AE$90,22,0)) -> 106860 | W57: 1000 | X57: 0 | Y57: =(V57-W57-X57)*12.36% -> 13084.296 | Z57: =V57-W57-X57+Y57 -> 118944.296 | AA57: =IF(AA$9="BARODA",HLOOKUP($A57,'[2]PROPOSED GAIL EX WORKS'!$D$2:$AE$90,23,0)) -> 110090 | AB57: 1000 | AC57: 0 | AD57: =(AA57-AB57-AC57)*12.36% -> 13483.524 | AE57: =AA57-AB57-AC57+AD57 -> 122573.524
A58: F20S009OG
A59: D22S010A | B59: =IF(D$9="BARJORA",HLOOKUP($A59,'[2]PROPOSED GAIL EX WORKS'!$D$2:$AE$90,18,0)) -> 107300 | C59: 1000 | D59: 0 | E59: =(B59-C59-D59)*12.36% -> 13138.68 | F59: =B59-C59-D59+E59 -> 119438.68 | G59: =IF(G$9="HOSUR",HLOOKUP($A59,'[2]PROPOSED GAIL EX WORKS'!$D$2:$AE$90,19,0)) -> 105710 | H59: 1000 | I59: 0 | J59: =(G59-H59-I59)*12.36% -> 12942.156 | K59: =G59-H59-I59+J59 -> 117652.156 | L59: =IF(L$9="JAMMU",HLOOKUP($A59,'[2]PROPOSED GAIL EX WORKS'!$D$2:$AE$90,20,0)) -> 111060 | M59: 1000 | N59: 0 | O59: =(L59-M59-N59)*12.36% -> 13603.416 | P59: =L59-M59-N59+O59 -> 123663.416 | Q59: =IF(Q$9="NOIDA",HLOOKUP($A59,'[2]PROPOSED GAIL EX WORKS'!$D$2:$AE$90,21,0)) -> 111100 | R59: 1000 | S59: 0 | T59: =(Q59-R59-S59)*12.36% -> 13608.36 | U59: =Q59-R59-S59+T59 -> 123708.36 | V59: =IF(V$9="PONDICHERRY",HLOOKUP($A59,'[2]PROPOSED GAIL EX WORKS'!$D$2:$AE$90,22,0)) -> 105860 | W59: 1000 | X59: 0 | Y59: =U59-V59-W59+X59 -> 16848.36 | Z59: =V59-W59-X59+Y59 -> 121708.36 | AA59: =IF(AA$9="BARODA",HLOOKUP($A59,'[2]PROPOSED GAIL EX WORKS'!$D$2:$AE$90,23,0)) -> 109090 | AB59: 1000 | AC59: 0 | AD59: =(AA59-AB59-AC59)*12.36% -> 13359.924 | AE59: =AA59-AB59-AC59+AD59 -> 121449.924
A60: ROTO
A61: R35A042A | B61: =IF(D$9="BARJORA",HLOOKUP($A61,'[2]PROPOSED GAIL EX WORKS'!$D$2:$AE$90,18,0)) -> 109220 | C61: 1000 | D61: 0 | E61: =(B61-C61-D61)*12.36% -> 13375.992 | F61: =B61-C61-D61+E61 -> 121595.992 | G61: =IF(G$9="HOSUR",HLOOKUP($A61,'[2]PROPOSED GAIL EX WORKS'!$D$2:$AE$90,19,0)) -> 105200 | H61: 1000 | I61: 0 | J61: =(G61-H61-I61)*12.36% -> 12879.12 | K61: =G61-H61-I61+J61 -> 117079.12 | L61: =IF(L$9="JAMMU",HLOOKUP($A61,'[2]PROPOSED GAIL EX WORKS'!$D$2:$AE$90,20,0)) -> 110570 | M61: 1000 | N61: 0 | O61: =(L61-M61-N61)*12.36% -> 13542.852 | P61: =L61-M61-N61+O61 -> 123112.852 | Q61: =IF(Q$9="NOIDA",HLOOKUP($A61,'[2]PROPOSED GAIL EX WORKS'!$D$2:$AE$90,21,0)) -> 110620 | R61: 1000 | S61: 0 | T61: =(Q61-R61-S61)*12.36% -> 13549.032 | U61: =Q61-R61-S61+T61 -> 123169.032 | V61: =IF(V$9="PONDICHERRY",HLOOKUP($A61,'[2]PROPOSED GAIL EX WORKS'!$D$2:$AE$90,22,0)) -> 105870 | W61: 1000 | X61: 0 | Y61: =(V61-W61-X61)*12.36% -> 12961.932 | Z61: =V61-W61-X61+Y61 -> 117831.932 | AA61: =IF(AA$9="BARODA",HLOOKUP($A61,'[2]PROPOSED GAIL EX WORKS'!$D$2:$AE$90,23,0)) -> 108710 | AB61: 1000 | AC61: 0 | AD61: =(AA61-AB61-AC61)*12.36% -> 13312.956 | AE61: =AA61-AB61-AC61+AD61 -> 121022.956
A62: R35U042A | B62: =IF(D$9="BARJORA",HLOOKUP($A62,'[2]PROPOSED GAIL EX WORKS'!$D$2:$AE$90,18,0)) -> 110500 | C62: 1000 | D62: 0 | E62: =(B62-C62-D62)*12.36% -> 13534.2 | F62: =B62-C62-D62+E62 -> 123034.2 | G62: =IF(G$9="HOSUR",HLOOKUP($A62,'[2]PROPOSED GAIL EX WORKS'!$D$2:$AE$90,19,0)) -> 106060 | H62: 1000 | I62: 0 | J62: =(G62-H62-I62)*12.36% -> 12985.416 | K62: =G62-H62-I62+J62 -> 118045.416 | L62: =IF(L$9="JAMMU",HLOOKUP($A62,'[2]PROPOSED GAIL EX WORKS'!$D$2:$AE$90,20,0)) -> 111430 | M62: 1000 | N62: 0 | O62: =(L62-M62-N62)*12.36% -> 13649.148 | P62: =L62-M62-N62+O62 -> 124079.148 | Q62: =IF(Q$9="NOIDA",HLOOKUP($A62,'[2]PROPOSED GAIL EX WORKS'!$D$2:$AE$90,21,0)) -> 111880 | R62: 1000 | T62: =(Q62-R62-S62)*12.36% -> 13704.768 | U62: =Q62-R62-S62+T62 -> 124584.768 | V62: =IF(V$9="PONDICHERRY",HLOOKUP($A62,'[2]PROPOSED GAIL EX WORKS'!$D$2:$AE$90,22,0)) -> 106750 | W62: 1000 | X62: 0 | Y62: =(V62-W62-X62)*12.36% -> 13070.7 | Z62: =V62-W62-X62+Y62 -> 118820.7 | AA62: =IF(AA$9="BARODA",HLOOKUP($A62,'[2]PROPOSED GAIL EX WORKS'!$D$2:$AE$90,23,0)) -> 109570 | AB62: 1000 | AC62: 0 | AD62: =(AA62-AB62-AC62)*12.36% -> 13419.252 | AE62: =AA62-AB62-AC62+AD62 -> 121989.252
A64: NOTE: | B64: LOCATION DISCOUNT HAS BEEN DISCONTINUED
B66: THE PRICES OF OLD PLANT & NEW PLANT ARE SAME FROM DIRECT SALE

Sheet Sheet4
A1: UNITED BROTHERS
A2: CONSIGNMENT STOCKIST OF GAIL (INDIA) LTD
A3: 301,HERITAGE PLAZA, R.S.MAHARAJ MARG,( TELI GALLI CROSS LANE), ANDHERI (E), MUMBAI - 400 069
A4: TEL: 26844612(4 LINES) FAX: 26822914 E-MAIL: info@unibrothers.com ,prashant@unibrothers.com ,jyoti@unibrothers.com
A5: EX-WORKS PRICE OF HDPE "G-LEX / G-LENE " W.E.F. 1ST MAY 2014
A6: CASH / ADVANCE PAYMENT FOR MAHARASHTRA & DAMAN
B7: Freight 985.53 | G7: Freight 3199.90 | N7: FREIGHT 1758.96 | R7: FREIGHT 5424.7 | V7: Freight 2024.85
B8: ALWAR | G8: HYDERABAD | L8: BADDI | Q8: UDMALPET | V8: BHAVNAGAR
B9: BASIC | C9: DISC | D9: LOC | E9: EXCISE | F9: EX-WKS | G9: BASIC | H9: DISC | I9: LOC | J9: EXCISE | K9: EX-WKS | L9: BASIC | M9: DISC | N9: LOC | O9: EXCISE | P9: EX-WKS | Q9: BASIC | R9: DISC | S9: LOC | T9: EXCISE | U9: EX-WKS | W9: DISC | X9: LOC | Y9: EXCISE | Z9: EX-WKS
A10: BM
A11: B52A003A | B11: =IF(B$8="ALWAR",HLOOKUP($A11,'[2]PROPOSED GAIL EX WORKS'!$D$2:$AE$90,24,0)) -> 108970 | C11: 1000 | D11: 0 | E11: =(B11-C11-D11)*12.36% -> 13345.092 | F11: =B11-C11-D11+E11 -> 121315.092 | G11: =IF(G$8="HYDERABAD",HLOOKUP($A11,'[2]PROPOSED GAIL EX WORKS'!$D$2:$AE$90,25,0)) -> 105900 | H11: 1000 | I11: 0 | J11: =(G11-H11-I11)*12.36% -> 12965.64 | K11: =G11-H11-I11+J11 -> 117865.64 | L11: =IF(L$8="BADDI",HLOOKUP($A11,'[2]PROPOSED GAIL EX WORKS'!$D$2:$AE$90,26,0)) -> 108520 | M11: 1000 | N11: 0 | O11: =(L11-M11-N11)*12.36% -> 13289.472 | P11: =L11-M11-N11+O11 -> 120809.472 | Q11: =IF(Q$8="UDMALPET",HLOOKUP($A11,'[2]PROPOSED GAIL EX WORKS'!$D$2:$AE$90,27,0)) -> 103710 | R11: 1000 | S11: 0 | T11: =(Q11-R11-S11)*12.36% -> 12694.956 | U11: =Q11-R11-S11+T11 -> 115404.956 | V11: =IF(V$8="BHAVNAGAR",HLOOKUP($A11,'[2]PROPOSED GAIL EX WORKS'!$D$2:$AE$90,28,0)) -> 107110 | W11: 1000 | X11: 0 | Y11: =(V11-W11-X11)*12.36% -> 13115.196 | Z11: =V11-W11-X11+Y11 -> 119225.196
A12: B63A003A | B12: =IF(B$8="ALWAR",HLOOKUP($A12,'[2]PROPOSED GAIL EX WORKS'!$D$2:$AE$90,24,0)) -> 108970 | C12: 1000 | D12: 0 | E12: =(B12-C12-D12)*12.36% -> 13345.092 | F12: =B12-C12-D12+E12 -> 121315.092 | G12: =IF(G$8="HYDERABAD",HLOOKUP($A12,'[2]PROPOSED GAIL EX WORKS'!$D$2:$AE$90,25,0)) -> 105900 | H12: 1000 | I12: 0 | J12: =(G12-H12-I12)*12.36% -> 12965.64 | K12: =G12-H12-I12+J12 -> 117865.64 | L12: =IF(L$8="BADDI",HLOOKUP($A12,'[2]PROPOSED GAIL EX WORKS'!$D$2:$AE$90,26,0)) -> 108520 | M12: 1000 | N12: 0 | O12: =(L12-M12-N12)*12.36% -> 13289.472 | P12: =L12-M12-N12+O12 -> 120809.472 | Q12: =IF(Q$8="UDMALPET",HLOOKUP($A12,'[2]PROPOSED GAIL EX WORKS'!$D$2:$AE$90,27,0)) -> 103710 | R12: 1000 | S12: 0 | T12: =(Q12-R12-S12)*12.36% -> 12694.956 | U12: =Q12-R12-S12+T12 -> 115404.956 | V12: =IF(V$8="BHAVNAGAR",HLOOKUP($A12,'[2]PROPOSED GAIL EX WORKS'!$D$2:$AE$90,28,0)) -> 107110 | W12: 1000 | X12: 0 | Y12: =(V12-W12-X12)*12.36% -> 13115.196 | Z12: =V12-W12-X12+Y12 -> 119225.196
A13: B55HM0003A | B13: =IF(B$8="ALWAR",HLOOKUP($A13,'[2]PROPOSED GAIL EX WORKS'!$D$2:$AE$90,24,0)) -> 113170 | C13: 1000 | D13: 0 | E13: =(B13-C13-D13)*12.36% -> 13864.212 | F13: =B13-C13-D13+E13 -> 126034.212 | G13: =IF(G$8="HYDERABAD",HLOOKUP($A13,'[2]PROPOSED GAIL EX WORKS'!$D$2:$AE$90,25,0)) -> 109940 | H13: 1000 | I13: 0 | J13: =(G13-H13-I13)*12.36% -> 13464.984 | K13: =G13-H13-I13+J13 -> 122404.984 | L13: =IF(L$8="BADDI",HLOOKUP($A13,'[2]PROPOSED GAIL EX WORKS'!$D$2:$AE$90,26,0)) -> 113180 | M13: 1000 | N13: 0 | O13: =(L13-M13-N13)*12.36% -> 13865.448 | P13: =L13-M13-N13+O13 -> 126045.448 | Q13: =IF(Q$8="UDMALPET",HLOOKUP($A13,'[2]PROPOSED GAIL EX WORKS'!$D$2:$AE$90,27,0)) -> 107860 | R13: 1000 | S13: 0 | T13: =(Q13-R13-S13)*12.36% -> 13207.896 | U13: =Q13-R13-S13+T13 -> 120067.896 | V13: =IF(V$8="BHAVNAGAR",HLOOKUP($A13,'[2]PROPOSED GAIL EX WORKS'!$D$2:$AE$90,28,0)) -> 110970 | W13: 1000 | X13: 0 | Y13: =(V13-W13-X13)*12.36% -> 13592.292 | Z13: =V13-W13-X13+Y13 -> 123562.292
A14: CABLE-INSUL
A15: C43D006A | B15: =IF(B$8="ALWAR",HLOOKUP($A15,'[2]PROPOSED GAIL EX WORKS'!$D$2:$AE$90,24,0)) -> 106593.5 | C15: 1000 | D15: 0 | E15: =(B15-C15-D15)*12.36% -> 13051.3566 | F15: =B15-C15-D15+E15 -> 118644.8566 | G15: =IF(G$8="HYDERABAD",HLOOKUP($A15,'[2]PROPOSED GAIL EX WORKS'!$D$2:$AE$90,25,0)) -> 103487 | H15: 1000 | I15: 0 | J15: =(G15-H15-I15)*12.36% -> 12667.3932 | K15: =G15-H15-I15+J15 -> 115154.3932 | L15: =IF(L$8="BADDI",HLOOKUP($A15,'[2]PROPOSED GAIL EX WORKS'!$D$2:$AE$90,26,0)) -> 106641 | M15: 1000 | N15: 0 | O15: =(L15-M15-N15)*12.36% -> 13057.2276 | P15: =L15-M15-N15+O15 -> 118698.2276 | Q15: =IF(Q$8="UDMALPET",HLOOKUP($A15,'[2]PROPOSED GAIL EX WORKS'!$D$2:$AE$90,27,0)) -> 101321 | R15: 1000 | S15: 0 | T15: =(Q15-R15-S15)*12.36% -> 12399.6756 | U15: =Q15-R15-S15+T15 -> 112720.6756 | V15: =IF(V$8="BHAVNAGAR",HLOOKUP($A15,'[2]PROPOSED GAIL EX WORKS'!$D$2:$AE$90,28,0)) -> 104285 | W15: 1000 | X15: 0 | Y15: =(V15-W15-X15)*12.36% -> 12766.026 | Z15: =V15-W15-X15+Y15 -> 116051.026
A17: SHETG
A18: E45A003A | B18: =IF(B$8="ALWAR",HLOOKUP($A18,'[2]PROPOSED GAIL EX WORKS'!$D$2:$AE$90,24,0)) -> 107780 | C18: 1000 | D18: 0 | E18: =(B18-C18-D18)*12.36% -> 13198.008 | F18: =B18-C18-D18+E18 -> 119978.008 | G18: =IF(G$8="HYDERABAD",HLOOKUP($A18,'[2]PROPOSED GAIL EX WORKS'!$D$2:$AE$90,25,0)) -> 104510 | H18: 1000 | I18: 0 | J18: =(G18-H18-I18)*12.36% -> 12793.836 | K18: =G18-H18-I18+J18 -> 116303.836 | L18: =IF(L$8="BADDI",HLOOKUP($A18,'[2]PROPOSED GAIL EX WORKS'!$D$2:$AE$90,26,0)) -> 107830 | M18: 1000 | N18: 0 | O18: =(L18-M18-N18)*12.36% -> 13204.188 | P18: =L18-M18-N18+O18 -> 120034.188 | Q18: =IF(Q$8="UDMALPET",HLOOKUP($A18,'[2]PROPOSED GAIL EX WORKS'!$D$2:$AE$90,27,0)) -> 102220 | R18: 1000 | S18: 0 | T18: =(Q18-R18-S18)*12.36% -> 12510.792 | U18: =Q18-R18-S18+T18 -> 113730.792 | V18: =IF(V$8="BHAVNAGAR",HLOOKUP($A18,'[2]PROPOSED GAIL EX WORKS'!$D$2:$AE$90,28,0)) -> 105500 | W18: 1000 | X18: 0 | Y18: =(V18-W18-X18)*12.36% -> 12916.2 | Z18: =V18-W18-X18+Y18 -> 117416.2
A19: E45A003OG
A20: EXTR
A21: E52A003A | B21: =IF(B$8="ALWAR",HLOOKUP($A21,'[2]PROPOSED GAIL EX WORKS'!$D$2:$AE$90,24,0)) -> 110450 | C21: 1000 | D21: 0 | E21: =(B21-C21-D21)*12.36% -> 13528.02 | F21: =B21-C21-D21+E21 -> 122978.02 | G21: =IF(G$8="HYDERABAD",HLOOKUP($A21,'[2]PROPOSED GAIL EX WORKS'!$D$2:$AE$90,25,0)) -> 107180 | H21: 1000 | I21: 0 | J21: =(G21-H21-I21)*12.36% -> 13123.848 | K21: =G21-H21-I21+J21 -> 119303.848 | L21: =IF(L$8="BADDI",HLOOKUP($A21,'[2]PROPOSED GAIL EX WORKS'!$D$2:$AE$90,26,0)) -> 110500 | M21: 1000 | N21: 0 | O21: =(L21-M21-N21)*12.36% -> 13534.2 | P21: =L21-M21-N21+O21 -> 123034.2 | Q21: =IF(Q$8="UDMALPET",HLOOKUP($A21,'[2]PROPOSED GAIL EX WORKS'!$D$2:$AE$90,27,0)) -> 104890 | R21: 1000 | S21: 0 | T21: =(Q21-R21-S21)*12.36% -> 12840.804 | U21: =Q21-R21-S21+T21 -> 116730.804 | V21: =IF(V$8="BHAVNAGAR",HLOOKUP($A21,'[2]PROPOSED GAIL EX WORKS'!$D$2:$AE$90,28,0)) -> 108100 | W21: 1000 | X21: 0 | Y21: =(V21-W21-X21)*12.36% -> 13237.56 | Z21: =V21-W21-X21+Y21 -> 120337.56
A22: E52A003OG
A23: E52U003A | B23: =IF(B$8="ALWAR",HLOOKUP($A23,'[2]PROPOSED GAIL EX WORKS'!$D$2:$AE$90,24,0)) -> 114230 | C23: 1000 | D23: 0 | E23: =(B23-C23-D23)*12.36% -> 13995.228 | F23: =B23-C23-D23+E23 -> 127225.228 | G23: =IF(G$8="HYDERABAD",HLOOKUP($A23,'[2]PROPOSED GAIL EX WORKS'!$D$2:$AE$90,25,0)) -> 110960 | H23: 1000 | I23: 0 | J23: =(G23-H23-I23)*12.36% -> 13591.056 | K23: =G23-H23-I23+J23 -> 123551.056 | L23: =IF(L$8="BADDI",HLOOKUP($A23,'[2]PROPOSED GAIL EX WORKS'!$D$2:$AE$90,26,0)) -> 114280 | M23: 1000 | N23: 0 | O23: =(L23-M23-N23)*12.36% -> 14001.408 | P23: =L23-M23-N23+O23 -> 127281.408 | Q23: =IF(Q$8="UDMALPET",HLOOKUP($A23,'[2]PROPOSED GAIL EX WORKS'!$D$2:$AE$90,27,0)) -> 108670 | R23: 1000 | S23: 0 | T23: =(Q23-R23-S23)*12.36% -> 13308.012 | U23: =Q23-R23-S23+T23 -> 120978.012 | V23: =IF(V$8="BHAVNAGAR",HLOOKUP($A23,'[2]PROPOSED GAIL EX WORKS'!$D$2:$AE$90,28,0)) -> 111880 | W23: 1000 | X23: 0 | Y23: =(V23-W23-X23)*12.36% -> 13704.768 | Z23: =V23-W23-X23+Y23 -> 124584.768
A24: E52U003OG
A25: HM FILM
A26: F55HM0003A | B26: =IF(B$8="ALWAR",HLOOKUP($A26,'[2]PROPOSED GAIL EX WORKS'!$D$2:$AE$90,24,0)) -> 108720 | C26: 1000 | D26: 0 | E26: =(B26-C26-D26)*12.36% -> 13314.192 | F26: =B26-C26-D26+E26 -> 121034.192 | G26: =IF(G$8="HYDERABAD",HLOOKUP($A26,'[2]PROPOSED GAIL EX WORKS'!$D$2:$AE$90,25,0)) -> 104240 | H26: 1000 | I26: 0 | J26: =(G26-H26-I26)*12.36% -> 12760.464 | K26: =G26-H26-I26+J26 -> 116000.464 | L26: =IF(L$8="BADDI",HLOOKUP($A26,'[2]PROPOSED GAIL EX WORKS'!$D$2:$AE$90,26,0)) -> 107980 | M26: 1000 | N26: 0 | O26: =(L26-M26-N26)*12.36% -> 13222.728 | P26: =L26-M26-N26+O26 -> 120202.728 | Q26: =IF(Q$8="UDMALPET",HLOOKUP($A26,'[2]PROPOSED GAIL EX WORKS'!$D$2:$AE$90,27,0)) -> 103410 | R26: 1000 | S26: 0 | T26: =(Q26-R26-S26)*12.36% -> 12657.876 | U26: =Q26-R26-S26+T26 -> 115067.876 | V26: =IF(V$8="BHAVNAGAR",HLOOKUP($A26,'[2]PROPOSED GAIL EX WORKS'!$D$2:$AE$90,28,0)) -> 106520 | W26: 1000 | X26: 0 | Y26: =(V26-W26-X26)*12.36% -> 13042.272 | Z26: =V26-W26-X26+Y26 -> 118562.272
A27: F55HM0003OG
A28: IM HIGH
A29: I50A180A | B29: =IF(B$8="ALWAR",HLOOKUP($A29,'[2]PROPOSED GAIL EX WORKS'!$D$2:$AE$90,24,0)) -> 104950 | C29: 1000 | D29: 0 | E29: =(B29-C29-D29)*12.36% -> 12848.22 | F29: =B29-C29-D29+E29 -> 116798.22 | G29: =IF(G$8="HYDERABAD",HLOOKUP($A29,'[2]PROPOSED GAIL EX WORKS'!$D$2:$AE$90,25,0)) -> 101930 | H29: 1000 | I29: 0 | J29: =(G29-H29-I29)*12.36% -> 12474.948 | K29: =G29-H29-I29+J29 -> 113404.948 | L29: =IF(L$8="BADDI",HLOOKUP($A29,'[2]PROPOSED GAIL EX WORKS'!$D$2:$AE$90,26,0)) -> 104520 | M29: 1000 | N29: 0 | O29: =(L29-M29-N29)*12.36% -> 12795.072 | P29: =L29-M29-N29+O29 -> 116315.072 | Q29: =IF(Q$8="UDMALPET",HLOOKUP($A29,'[2]PROPOSED GAIL EX WORKS'!$D$2:$AE$90,27,0)) -> 99920 | R29: 1000 | S29: 0 | T29: =(Q29-R29-S29)*12.36% -> 12226.512 | U29: =Q29-R29-S29+T29 -> 111146.512 | V29: =IF(V$8="BHAVNAGAR",HLOOKUP($A29,'[2]PROPOSED GAIL EX WORKS'!$D$2:$AE$90,28,0)) -> 102850 | W29: 1000 | X29: 0 | Y29: =(V29-W29-X29)*12.36% -> 12588.66 | Z29: =V29-W29-X29+Y29 -> 114438.66
A30: I50A180OG
A31: IM LOW
A32: I60A080A | B32: =IF(B$8="ALWAR",HLOOKUP($A32,'[2]PROPOSED GAIL EX WORKS'!$D$2:$AE$90,24,0)) -> 106420 | C32: 1000 | D32: 0 | E32: =(B32-C32-D32)*12.36% -> 13029.912 | F32: =B32-C32-D32+E32 -> 118449.912 | G32: =IF(G$8="HYDERABAD",HLOOKUP($A32,'[2]PROPOSED GAIL EX WORKS'!$D$2:$AE$90,25,0)) -> 103150 | H32: 1000 | I32: 0 | J32: =(G32-H32-I32)*12.36% -> 12625.74 | K32: =G32-H32-I32+J32 -> 114775.74 | L32: =IF(L$8="BADDI",HLOOKUP($A32,'[2]PROPOSED GAIL EX WORKS'!$D$2:$AE$90,26,0)) -> 106480 | M32: 1000 | N32: 0 | O32: =(L32-M32-N32)*12.36% -> 13037.328 | P32: =L32-M32-N32+O32 -> 118517.328 | Q32: =IF(Q$8="UDMALPET",HLOOKUP($A32,'[2]PROPOSED GAIL EX WORKS'!$D$2:$AE$90,27,0)) -> 100870 | R32: 1000 | S32: 0 | T32: =(Q32-R32-S32)*12.36% -> 12343.932 | U32: =Q32-R32-S32+T32 -> 112213.932 | V32: =IF(V$8="BHAVNAGAR",HLOOKUP($A32,'[2]PROPOSED GAIL EX WORKS'!$D$2:$AE$90,28,0)) -> 104100 | W32: 1000 | X32: 0 | Y32: =(V32-W32-X32)*12.36% -> 12743.16 | Z32: =V32-W32-X32+Y32 -> 115843.16
A33: I60A080OG
A34: IM-L-UV
A35: I60U080A | B35: =IF(B$8="ALWAR",HLOOKUP($A35,'[2]PROPOSED GAIL EX WORKS'!$D$2:$AE$90,24,0)) -> 107960 | C35: 1000 | D35: 0 | E35: =(B35-C35-D35)*12.36% -> 13220.256 | F35: =B35-C35-D35+E35 -> 120180.256 | G35: =IF(G$8="HYDERABAD",HLOOKUP($A35,'[2]PROPOSED GAIL EX WORKS'!$D$2:$AE$90,25,0)) -> 104690 | H35: 1000 | I35: 0 | J35: =(G35-H35-I35)*12.36% -> 12816.084 | K35: =G35-H35-I35+J35 -> 116506.084 | L35: =IF(L$8="BADDI",HLOOKUP($A35,'[2]PROPOSED GAIL EX WORKS'!$D$2:$AE$90,26,0)) -> 108010 | M35: 1000 | N35: 0 | O35: =(L35-M35-N35)*12.36% -> 13226.436 | P35: =L35-M35-N35+O35 -> 120236.436 | Q35: =IF(Q$8="UDMALPET",HLOOKUP($A35,'[2]PROPOSED GAIL EX WORKS'!$D$2:$AE$90,27,0)) -> 102410 | R35: 1000 | S35: 0 | T35: =(Q35-R35-S35)*12.36% -> 12534.276 | U35: =Q35-R35-S35+T35 -> 113944.276 | V35: =IF(V$8="BHAVNAGAR",HLOOKUP($A35,'[2]PROPOSED GAIL EX WORKS'!$D$2:$AE$90,28,0)) -> 105600 | W35: 1000 | X35: 0 | Y35: =(V35-W35-X35)*12.36% -> 12928.56 | Z35: =V35-W35-X35+Y35 -> 117528.56
A36: I60U080OG
A37: PIPE (PE80)
A38: P54A001A | B38: =IF(B$8="ALWAR",HLOOKUP($A38,'[2]PROPOSED GAIL EX WORKS'!$D$2:$AE$90,24,0)) -> 115430 | C38: 1000 | D38: 0 | E38: =(B38-C38-D38)*12.36% -> 14143.548 | F38: =B38-C38-D38+E38 -> 128573.548 | G38: =IF(G$8="HYDERABAD",HLOOKUP($A38,'[2]PROPOSED GAIL EX WORKS'!$D$2:$AE$90,25,0)) -> 112200 | H38: 1000 | I38: 0 | J38: =(G38-H38-I38)*12.36% -> 13744.32 | K38: =G38-H38-I38+J38 -> 124944.32 | L38: =IF(L$8="BADDI",HLOOKUP($A38,'[2]PROPOSED GAIL EX WORKS'!$D$2:$AE$90,26,0)) -> 115440 | M38: 1000 | N38: 0 | O38: =(L38-M38-N38)*12.36% -> 14144.784 | P38: =L38-M38-N38+O38 -> 128584.784 | Q38: =IF(Q$8="UDMALPET",HLOOKUP($A38,'[2]PROPOSED GAIL EX WORKS'!$D$2:$AE$90,27,0)) -> 110120 | R38: 1000 | S38: 0 | T38: =(Q38-R38-S38)*12.36% -> 13487.232 | U38: =Q38-R38-S38+T38 -> 122607.232 | V38: =IF(V$8="BHAVNAGAR",HLOOKUP($A38,'[2]PROPOSED GAIL EX WORKS'!$D$2:$AE$90,28,0)) -> 113230 | W38: 1000 | X38: 0 | Y38: =(V38-W38-X38)*12.36% -> 13871.628 | Z38: =V38-W38-X38+Y38 -> 126101.628
A39: PIPE (PE100)
A40: P52A003A | B40: =IF(B$8="ALWAR",HLOOKUP($A40,'[2]PROPOSED GAIL EX WORKS'!$D$2:$AE$90,24,0)) -> 117430 | C40: 1000 | D40: 0 | E40: =(B40-C40-D40)*12.36% -> 14390.748 | F40: =B40-C40-D40+E40 -> 130820.748 | G40: =IF(G$8="HYDERABAD",HLOOKUP($A40,'[2]PROPOSED GAIL EX WORKS'!$D$2:$AE$90,25,0)) -> 114200 | H40: 1000 | I40: 0 | J40: =(G40-H40-I40)*12.36% -> 13991.52 | K40: =G40-H40-I40+J40 -> 127191.52 | L40: =IF(L$8="BADDI",HLOOKUP($A40,'[2]PROPOSED GAIL EX WORKS'!$D$2:$AE$90,26,0)) -> 117440 | M40: 1000 | N40: 0 | O40: =(L40-M40-N40)*12.36% -> 14391.984 | P40: =L40-M40-N40+O40 -> 130831.984 | Q40: =IF(Q$8="UDMALPET",HLOOKUP($A40,'[2]PROPOSED GAIL EX WORKS'!$D$2:$AE$90,27,0)) -> 112120 | R40: 1000 | S40: 0 | T40: =(Q40-R40-S40)*12.36% -> 13734.432 | U40: =Q40-R40-S40+T40 -> 124854.432 | V40: =IF(V$8="BHAVNAGAR",HLOOKUP($A40,'[2]PROPOSED GAIL EX WORKS'!$D$2:$AE$90,28,0)) -> 115230 | W40: 1000 | X40: 0 | Y40: =(V40-W40-X40)*12.36% -> 14118.828 | Z40: =V40-W40-X40+Y40 -> 128348.828
A41: RAFFIA
A42: W50A009A | B42: =IF(B$8="ALWAR",HLOOKUP($A42,'[2]PROPOSED GAIL EX WORKS'!$D$2:$AE$90,24,0)) -> 109550 | C42: 1000 | D42: 0 | E42: =(B42-C42-D42)*12.36% -> 13416.78 | F42: =B42-C42-D42+E42 -> 121966.78 | G42: =IF(G$8="HYDERABAD",HLOOKUP($A42,'[2]PROPOSED GAIL EX WORKS'!$D$2:$AE$90,25,0)) -> 106280 | H42: 1000 | I42: 0 | J42: =(G42-H42-I42)*12.36% -> 13012.608 | K42: =G42-H42-I42+J42 -> 118292.608 | L42: =IF(L$8="BADDI",HLOOKUP($A42,'[2]PROPOSED GAIL EX WORKS'!$D$2:$AE$90,26,0)) -> 109600 | M42: 1000 | N42: 0 | O42: =(L42-M42-N42)*12.36% -> 13422.96 | P42: =L42-M42-N42+O42 -> 122022.96 | Q42: =IF(Q$8="UDMALPET",HLOOKUP($A42,'[2]PROPOSED GAIL EX WORKS'!$D$2:$AE$90,27,0)) -> 104000 | R42: 1000 | S42: 0 | T42: =(Q42-R42-S42)*12.36% -> 12730.8 | U42: =Q42-R42-S42+T42 -> 115730.8 | V42: =IF(V$8="BHAVNAGAR",HLOOKUP($A42,'[2]PROPOSED GAIL EX WORKS'!$D$2:$AE$90,28,0)) -> 107100 | W42: 1000 | X42: 0 | Y42: =(V42-W42-X42)*12.36% -> 13113.96 | Z42: =V42-W42-X42+Y42 -> 119213.96
A43: T50A010A | B43: =IF(B$8="ALWAR",HLOOKUP($A43,'[2]PROPOSED GAIL EX WORKS'!$D$2:$AE$90,24,0)) -> 110050 | C43: 1000 | D43: 0 | E43: =(B43-C43-D43)*12.36% -> 13478.58 | F43: =B43-C43-D43+E43 -> 122528.58 | G43: =IF(G$8="HYDERABAD",HLOOKUP($A43,'[2]PROPOSED GAIL EX WORKS'!$D$2:$AE$90,25,0)) -> 106280 | H43: 1000 | I43: 0 | J43: =(G43-H43-I43)*12.36% -> 13012.608 | K43: =G43-H43-I43+J43 -> 118292.608 | L43: =IF(L$8="BADDI",HLOOKUP($A43,'[2]PROPOSED GAIL EX WORKS'!$D$2:$AE$90,26,0)) -> 109600 | M43: 1000 | N43: 0 | O43: =(L43-M43-N43)*12.36% -> 13422.96 | P43: =L43-M43-N43+O43 -> 122022.96 | Q43: =IF(Q$8="UDMALPET",HLOOKUP($A43,'[2]PROPOSED GAIL EX WORKS'!$D$2:$AE$90,27,0)) -> 104500 | R43: 1000 | S43: 0 | T43: =(Q43-R43-S43)*12.36% -> 12792.6 | U43: =Q43-R43-S43+T43 -> 116292.6 | V43: =IF(V$8="BHAVNAGAR",HLOOKUP($A43,'[2]PROPOSED GAIL EX WORKS'!$D$2:$AE$90,28,0)) -> 107100 | W43: 1000 | X43: 0 | Y43: =(V43-W43-X43)*12.36% -> 13113.96 | Z43: =V43-W43-X43+Y43 -> 119213.96
A44: MF
A45: W52A009A | B45: =IF(B$8="ALWAR",HLOOKUP($A45,'[2]PROPOSED GAIL EX WORKS'!$D$2:$AE$90,24,0)) -> 106050 | C45: 1000 | D45: 0 | E45: =(B45-C45-D45)*12.36% -> 12984.18 | F45: =B45-C45-D45+E45 -> 118034.18 | G45: =IF(G$8="HYDERABAD",HLOOKUP($A45,'[2]PROPOSED GAIL EX WORKS'!$D$2:$AE$90,25,0)) -> 102780 | H45: 1000 | I45: 0 | J45: =(G45-H45-I45)*12.36% -> 12580.008 | K45: =G45-H45-I45+J45 -> 114360.008 | L45: =IF(L$8="BADDI",HLOOKUP($A45,'[2]PROPOSED GAIL EX WORKS'!$D$2:$AE$90,26,0)) -> 106100 | M45: 1000 | N45: 0 | O45: =(L45-M45-N45)*12.36% -> 12990.36 | P45: =L45-M45-N45+O45 -> 118090.36 | Q45: =IF(Q$8="UDMALPET",HLOOKUP($A45,'[2]PROPOSED GAIL EX WORKS'!$D$2:$AE$90,27,0)) -> 100500 | R45: 1000 | S45: 0 | T45: =(Q45-R45-S45)*12.36% -> 12298.2 | U45: =Q45-R45-S45+T45 -> 111798.2 | V45: =IF(V$8="BHAVNAGAR",HLOOKUP($A45,'[2]PROPOSED GAIL EX WORKS'!$D$2:$AE$90,28,0)) -> 103600 | W45: 1000 | X45: 0 | Y45: =(V45-W45-X45)*12.36% -> 12681.36 | Z45: =V45-W45-X45+Y45 -> 115281.36
A46: W52A009OG
A47: W52ASR009A | B47: =IF(B$8="ALWAR",HLOOKUP($A47,'[2]PROPOSED GAIL EX WORKS'!$D$2:$AE$90,24,0)) -> 106050 | C47: 1000 | D47: 0 | E47: =(B47-C47-D47)*12.36% -> 12984.18 | F47: =B47-C47-D47+E47 -> 118034.18 | G47: =IF(G$8="HYDERABAD",HLOOKUP($A47,'[2]PROPOSED GAIL EX WORKS'!$D$2:$AE$90,25,0)) -> 102780 | H47: 1000 | I47: 0 | J47: =(G47-H47-I47)*12.36% -> 12580.008 | K47: =G47-H47-I47+J47 -> 114360.008 | L47: =IF(L$8="BADDI",HLOOKUP($A47,'[2]PROPOSED GAIL EX WORKS'!$D$2:$AE$90,26,0)) -> 106100 | M47: 1000 | N47: 0 | O47: =(L47-M47-N47)*12.36% -> 12990.36 | P47: =L47-M47-N47+O47 -> 118090.36 | Q47: =IF(Q$8="UDMALPET",HLOOKUP($A47,'[2]PROPOSED GAIL EX WORKS'!$D$2:$AE$90,27,0)) -> 100500 | R47: 1000 | S47: 0 | T47: =(Q47-R47-S47)*12.36% -> 12298.2 | U47: =Q47-R47-S47+T47 -> 111798.2 | V47: =IF(V$8="BHAVNAGAR",HLOOKUP($A47,'[2]PROPOSED GAIL EX WORKS'!$D$2:$AE$90,28,0)) -> 103600 | W47: 1000 | X47: 0 | Y47: =(V47-W47-X47)*12.36% -> 12681.36 | Z47: =V47-W47-X47+Y47 -> 115281.36
A48: W55A004A | B48: =IF(B$8="ALWAR",HLOOKUP($A48,'[2]PROPOSED GAIL EX WORKS'!$D$2:$AE$90,24,0)) -> 109050 | C48: 1000 | D48: 0 | E48: =(B48-C48-D48)*12.36% -> 13354.98 | F48: =B48-C48-D48+E48 -> 121404.98 | G48: =IF(G$8="HYDERABAD",HLOOKUP($A48,'[2]PROPOSED GAIL EX WORKS'!$D$2:$AE$90,25,0)) -> 105780 | H48: 1000 | I48: 0 | J48: =(G48-H48-I48)*12.36% -> 12950.808 | K48: =G48-H48-I48+J48 -> 117730.808 | L48: =IF(L$8="BADDI",HLOOKUP($A48,'[2]PROPOSED GAIL EX WORKS'!$D$2:$AE$90,26,0)) -> 109100 | M48: 1000 | N48: 0 | O48: =(L48-M48-N48)*12.36% -> 13361.16 | P48: =L48-M48-N48+O48 -> 121461.16 | Q48: =IF(Q$8="UDMALPET",HLOOKUP($A48,'[2]PROPOSED GAIL EX WORKS'!$D$2:$AE$90,27,0)) -> 103500 | R48: 1000 | S48: 0 | T48: =(Q48-R48-S48)*12.36% -> 12669 | U48: =Q48-R48-S48+T48 -> 115169 | V48: =IF(V$8="BHAVNAGAR",HLOOKUP($A48,'[2]PROPOSED GAIL EX WORKS'!$D$2:$AE$90,28,0)) -> 106600 | W48: 1000 | X48: 0 | Y48: =(V48-W48-X48)*12.36% -> 13052.16 | Z48: =V48-W48-X48+Y48 -> 118652.16
A49: LLDPE
A50: E20AN009A | B50: =IF(B$8="ALWAR",HLOOKUP($A50,'[2]PROPOSED GAIL EX WORKS'!$D$2:$AE$90,24,0)) -> 110810 | C50: 1000 | D50: 0 | E50: =(B50-C50-D50)*12.36% -> 13572.516 | F50: =B50-C50-D50+E50 -> 123382.516 | G50: =IF(G$8="HYDERABAD",HLOOKUP($A50,'[2]PROPOSED GAIL EX WORKS'!$D$2:$AE$90,25,0)) -> 107540 | H50: 1000 | I50: 0 | J50: =(G50-H50-I50)*12.36% -> 13168.344 | K50: =G50-H50-I50+J50 -> 119708.344 | L50: =IF(L$8="BADDI",HLOOKUP($A50,'[2]PROPOSED GAIL EX WORKS'!$D$2:$AE$90,26,0)) -> 110860 | M50: 1000 | N50: 0 | O50: =(L50-M50-N50)*12.36% -> 13578.696 | P50: =L50-M50-N50+O50 -> 123438.696 | Q50: =IF(Q$8="UDMALPET",HLOOKUP($A50,'[2]PROPOSED GAIL EX WORKS'!$D$2:$AE$90,27,0)) -> 105260 | R50: 1000 | S50: 0 | T50: =(Q50-R50-S50)*12.36% -> 12886.536 | U50: =Q50-R50-S50+T50 -> 117146.536 | V50: =IF(V$8="BHAVNAGAR",HLOOKUP($A50,'[2]PROPOSED GAIL EX WORKS'!$D$2:$AE$90,28,0)) -> 108500 | W50: 1000 | X50: 0 | Y50: =(V50-W50-X50)*12.36% -> 13287 | Z50: =V50-W50-X50+Y50 -> 120787
A51: E20AN009OG
A52: E36A060A | B52: =IF(B$8="ALWAR",HLOOKUP($A52,'[2]PROPOSED GAIL EX WORKS'!$D$2:$AE$90,24,0)) -> 113850 | C52: 1000 | D52: 0 | E52: =(B52-C52-D52)*12.36% -> 13948.26 | F52: =B52-C52-D52+E52 -> 126798.26 | G52: =IF(G$8="HYDERABAD",HLOOKUP($A52,'[2]PROPOSED GAIL EX WORKS'!$D$2:$AE$90,25,0)) -> 110580 | H52: 1000 | I52: 0 | J52: =(G52-H52-I52)*12.36% -> 13544.088 | K52: =G52-H52-I52+J52 -> 123124.088 | L52: =IF(L$8="BADDI",HLOOKUP($A52,'[2]PROPOSED GAIL EX WORKS'!$D$2:$AE$90,26,0)) -> 113910 | M52: 1000 | N52: 0 | O52: =(L52-M52-N52)*12.36% -> 13955.676 | P52: =L52-M52-N52+O52 -> 126865.676 | Q52: =IF(Q$8="UDMALPET",HLOOKUP($A52,'[2]PROPOSED GAIL EX WORKS'!$D$2:$AE$90,27,0)) -> 108300 | R52: 1000 | S52: 0 | T52: =(Q52-R52-S52)*12.36% -> 13262.28 | U52: =Q52-R52-S52+T52 -> 120562.28 | V52: =IF(V$8="BHAVNAGAR",HLOOKUP($A52,'[2]PROPOSED GAIL EX WORKS'!$D$2:$AE$90,28,0)) -> 111500 | W52: 1000 | X52: 0 | Y52: =(V52-W52-X52)*12.36% -> 13657.8 | Z52: =V52-W52-X52+Y52 -> 124157.8
A53: E36A060OG
A54: FILM
A55: F20S009A | B55: =IF(B$8="ALWAR",HLOOKUP($A55,'[2]PROPOSED GAIL EX WORKS'!$D$2:$AE$90,24,0)) -> 112310 | C55: 1000 | D55: 0 | E55: =(B55-C55-D55)*12.36% -> 13757.916 | F55: =B55-C55-D55+E55 -> 125067.916 | G55: =IF(G$8="HYDERABAD",HLOOKUP($A55,'[2]PROPOSED GAIL EX WORKS'!$D$2:$AE$90,25,0)) -> 109040 | H55: 1000 | I55: 0 | J55: =(G55-H55-I55)*12.36% -> 13353.744 | K55: =G55-H55-I55+J55 -> 121393.744 | L55: =IF(L$8="BADDI",HLOOKUP($A55,'[2]PROPOSED GAIL EX WORKS'!$D$2:$AE$90,26,0)) -> 112360 | M55: 1000 | N55: 0 | O55: =(L55-M55-N55)*12.36% -> 13764.096 | P55: =L55-M55-N55+O55 -> 125124.096 | Q55: =IF(Q$8="UDMALPET",HLOOKUP($A55,'[2]PROPOSED GAIL EX WORKS'!$D$2:$AE$90,27,0)) -> 106760 | R55: 1000 | S55: 0 | T55: =(Q55-R55-S55)*12.36% -> 13071.936 | U55: =Q55-R55-S55+T55 -> 118831.936 | V55: =IF(V$8="BHAVNAGAR",HLOOKUP($A55,'[2]PROPOSED GAIL EX WORKS'!$D$2:$AE$90,28,0)) -> 110000 | W55: 1000 | X55: 0 | Y55: =(V55-W55-X55)*12.36% -> 13472.4 | Z55: =V55-W55-X55+Y55 -> 122472.4
A56: F20S009OG
A57: D22S010A | B57: =IF(B$8="ALWAR",HLOOKUP($A57,'[2]PROPOSED GAIL EX WORKS'!$D$2:$AE$90,24,0)) -> 111310 | C57: 1000 | D57: 0 | E57: =(B57-C57-D57)*12.36% -> 13634.316 | F57: =B57-C57-D57+E57 -> 123944.316 | G57: =IF(G$8="HYDERABAD",HLOOKUP($A57,'[2]PROPOSED GAIL EX WORKS'!$D$2:$AE$90,25,0)) -> 108040 | H57: 1000 | I57: 0 | J57: =(G57-H57-I57)*12.36% -> 13230.144 | K57: =G57-H57-I57+J57 -> 120270.144 | L57: =IF(L$8="BADDI",HLOOKUP($A57,'[2]PROPOSED GAIL EX WORKS'!$D$2:$AE$90,26,0)) -> 111360 | M57: 1000 | N57: 0 | O57: =(L57-M57-N57)*12.36% -> 13640.496 | P57: =L57-M57-N57+O57 -> 124000.496 | Q57: =IF(Q$8="UDMALPET",HLOOKUP($A57,'[2]PROPOSED GAIL EX WORKS'!$D$2:$AE$90,27,0)) -> 105760 | R57: 1000 | S57: 0 | T57: =(Q57-R57-S57)*12.36% -> 12948.336 | U57: =Q57-R57-S57+T57 -> 117708.336 | V57: =IF(V$8="BHAVNAGAR",HLOOKUP($A57,'[2]PROPOSED GAIL EX WORKS'!$D$2:$AE$90,28,0)) -> 109000 | W57: 1000 | X57: 0 | Y57: =(V57-W57-X57)*12.36% -> 13348.8 | Z57: =V57-W57-X57+Y57 -> 121348.8
A58: ROTO
A59: R35A042A | B59: =IF(B$8="ALWAR",HLOOKUP($A59,'[2]PROPOSED GAIL EX WORKS'!$D$2:$AE$90,24,0)) -> 110820 | C59: 1000 | D59: 0 | E59: =(B59-C59-D59)*12.36% -> 13573.752 | F59: =B59-C59-D59+E59 -> 123393.752 | G59: =IF(G$8="HYDERABAD",HLOOKUP($A59,'[2]PROPOSED GAIL EX WORKS'!$D$2:$AE$90,25,0)) -> 107590 | H59: 1000 | I59: 0 | J59: =(G59-H59-I59)*12.36% -> 13174.524 | K59: =G59-H59-I59+J59 -> 119764.524 | L59: =IF(L$8="BADDI",HLOOKUP($A59,'[2]PROPOSED GAIL EX WORKS'!$D$2:$AE$90,26,0)) -> 110830 | M59: 1000 | N59: 0 | O59: =(L59-M59-N59)*12.36% -> 13574.988 | P59: =L59-M59-N59+O59 -> 123404.988 | Q59: =IF(Q$8="UDMALPET",HLOOKUP($A59,'[2]PROPOSED GAIL EX WORKS'!$D$2:$AE$90,27,0)) -> 105360 | R59: 1000 | S59: 0 | T59: =(Q59-R59-S59)*12.36% -> 12898.896 | U59: =Q59-R59-S59+T59 -> 117258.896 | V59: =IF(V$8="BHAVNAGAR",HLOOKUP($A59,'[2]PROPOSED GAIL EX WORKS'!$D$2:$AE$90,28,0)) -> 108620 | W59: 1000 | X59: 0 | Y59: =(V59-W59-X59)*12.36% -> 13301.832 | Z59: =V59-W59-X59+Y59 -> 120921.832
A60: R35U042A | B60: =IF(B$8="ALWAR",HLOOKUP($A60,'[2]PROPOSED GAIL EX WORKS'!$D$2:$AE$90,24,0)) -> 111680 | C60: 1000 | D60: 0 | E60: =(B60-C60-D60)*12.36% -> 13680.048 | F60: =B60-C60-D60+E60 -> 124360.048 | G60: =IF(G$8="HYDERABAD",HLOOKUP($A60,'[2]PROPOSED GAIL EX WORKS'!$D$2:$AE$90,25,0)) -> 108450 | H60: 1000 | I60: 0 | J60: =(G60-H60-I60)*12.36% -> 13280.82 | K60: =G60-H60-I60+J60 -> 120730.82 | L60: =IF(L$8="BADDI",HLOOKUP($A60,'[2]PROPOSED GAIL EX WORKS'!$D$2:$AE$90,26,0)) -> 111690 | M60: 1000 | N60: 0 | O60: =(L60-M60-N60)*12.36% -> 13681.284 | P60: =L60-M60-N60+O60 -> 124371.284 | Q60: =IF(Q$8="UDMALPET",HLOOKUP($A60,'[2]PROPOSED GAIL EX WORKS'!$D$2:$AE$90,27,0)) -> 106220 | R60: 1000 | S60: 0 | T60: =(Q60-R60-S60)*12.36% -> 13005.192 | U60: =Q60-R60-S60+T60 -> 118225.192 | V60: =IF(V$8="BHAVNAGAR",HLOOKUP($A60,'[2]PROPOSED GAIL EX WORKS'!$D$2:$AE$90,28,0)) -> 109480 | W60: 1000 | X60: 0 | Y60: =(V60-W60-X60)*12.36% -> 13408.128 | Z60: =V60-W60-X60+Y60 -> 121888.128
A62: NOTE: | B62: LOCATION DISCOUNT HAS BEEN DISCONTINUED
B64: THE PRICES OF OLD PLANT & NEW PLANT ARE SAME FROM DIRECT SALE

Sheet STOCK POINT PRICE
A2: UNITED BROTHERS
A3: CONSIGNMENT STOCKIST OF GAIL (INDIA) LTD
A4: 301,HERITAGE PLAZA, R.S.MAHARAJ MARG,( TELI GALLI CROSS LANE), ANDHERI (E), MUMBAI - 400 069
A5: TEL: 26844612(4 LINES) FAX: 26822914 E-MAIL:info@unibrothers.com,prashant@unibrothers.com,jyoti@unibrothers.com
A6: PRICE OF HDPE "G-LEX / G-LENE " W.E.F 1ST MAY 2014
C8: DAMAN | D8: BHIWANDI | E8: PUNE
C9: ST.PT. | D9: ST.PT. | E9: ST.PT. | G9: FREIGHT
B10: BM | G10: ALWAR | H10: 985.53
B11: B52A003A | C11: 121860 | D11: 121690 | E11: 121800 | G11: BHAVNAGAR | H11: 2024.85
B12: B52A003NA | C12: 121860 | D12: 121690 | E12: 121800 | G12: BADDI | H12: 1758.96
B13: B63A003A | C13: 121860 | D13: 121690 | E13: 121800 | G13: DAMAN | H13: 2048.77
B14: B63A003NA | C14: 121860 | D14: 121690 | E14: 121800 | G14: SILVASSA | H14: 2061.17
B15: B55HM0003A | C15: 126300 | D15: 126190 | E15: 126330 | G15: BHIWANDI | H15: 2537.23
B16: B55HM0003NA | C16: 126300 | D16: 126190 | E16: 126330 | G16: JALGAON | H16: 1959.23
B17: B53EA0035A | C17: 122420 | D17: 122250 | E17: 122370 | G17: NAGPUR | H17: 1624.98
B18: SHETG | G18: SANGLI | H18: 3069.18
B19: E45A003A | C19: 120230 | D19: 120040 | E19: 120220 | G19: UMBERGAON | H19: 2016.35
G20: PUNE | H20: 2640.33
B21: EXTR | G21: WAI | H21: 2825.33
B22: E52A003A | C22: 123230 | D22: 123040 | E22: 123220 | G22: HYDERABAD | H22: 3199.9
B23: E52A003NA | C23: 123230 | D23: 123040 | E23: 123220 | G23: NASIK | H23: 2282.96
B24: E52U003A | C24: 124670 | D24: 124470 | E24: 124660 | G24: AHMEDNAGAR | H24: 2446.93
B25: E52U003NA | C25: 124670 | D25: 124470 | E25: 124660 | G25: ROHA | H25: 2814.81
B26: HM FILM | G26: AURANGABAD | H26: 2247.23
B27: F55HM0003A | C27: 120730 | D27: 121190 | E27: 121330 | G27: TARAPUR | H27: 2610.9
B28: F55HM0003NA | C28: 120730 | D28: 121190 | E28: 121330 | G28: THANE | H28: 2581.47
B29: IM HIGH | G29: SOLAPUR | H29: 2833.73
B30: I50A180A | C30: 117160 | D30: 117130 | E30: 117260 | G30: BAROJRA | H30: 2507.05
G31: HOSUR | H31: 4749.82
B32: IM LOW | G32: JAMMU | H32: 2573.77
B33: I60A080A | C33: 118700 | D33: 118520 | E33: 118700 | G33: NOIDA | H33: 1210.75
G34: PONDICHERRY | H34: 5162.96
B35: IM-L-UV | G35: UDMALPET | H35: 5424.7
B36: I60U080A | C36: 120430 | D36: 120240 | E36: 120420 | G36: KOLHAPUR | H36: 3163.78
G37: BARODA
B38: PIPE (PE80)
B39: P54A001A | C39: 126030 | D39: 125920 | E39: 126060
B40: P54A001NA | C40: 126030 | D40: 125920 | E40: 126060
B41: PIPE (PE100)
B42: P52A003A | C42: 128270 | D42: 128170 | E42: 128310
B43: P52A003NA | C43: 128270 | D43: 128170 | E43: 128310
B44: RAFFIA
B45: W50A009A | C45: 117720 | D45: 117530 | E45: 117710 | G45: QUANTITY DISCOUNT
B46: T50A010A | C46: 117720 | D46: 117530 | E46: 117710
B47: MF | G47: QTY MTS | H47: AMT
B48: W55A004A | C48: 121660 | D48: 121460 | E48: 121650 | G48: >=10 | H48: 300
B49: W55A004NA | C49: 121660 | D49: 121460 | E49: 121650 | G49: >=30 | H49: 400
B50: W52A009A | C50: 118280 | D50: 118090 | E50: 118280 | G50: >=50 | H50: 500
B51: W52A009NA | C51: 118280 | D51: 118090 | E51: 118280 | G51: >=100 | H51: 600
B52: W52ASR009A | C52: 118280 | D52: 118090 | E52: 118280 | G52: >=200 | H52: 700
B53: W52ASR009NA | C53: 118280 | D53: 118090 | E53: 118280 | G53: >=300 | H53: 750
B54: LLDPE | G54: >=400 | H54: 800
G55: >=600 | H55: 900
B56: E36A060A | C56: 127050 | D56: 126870 | E56: 127050
B58: FILM
B59: F20S009A | C59: 125320 | D59: 125140 | E59: 125310
B60: F20S009OG
B61: D22S010A | C61: 124200 | D61: 124010 | E61: 124190
B62: E20AN009A | C62: 123630 | D62: 123450 | E62: 123620
B63: ROTO
B64: R35A042A | C64: 123660 | D64: 123550 | E64: 124620
B65: R35U042A | C65: 124620 | D65: 124520 | E65: 124660
B67: * Ex Works Cash Discount (Rs.1000/-)
B68: 1. Freight & Transportation will be extra and at buyers account, on Ex-Works sale
B69: 2. The price of B Grade will be Rs.500/- PMT less than Prime Grade for Ex.Works sale and Rs.580/- P.M.T. less for Stock Point Sales.
B70: 3. The price of Old Plant & New Plant are same from Direct Sale
B71: 4. The price of Standardised Grade will be Rs.500/-PMT less than Prime Grade for Ex.Wks.sale and Rs.580/-P.M.T.less for St.Pt. Sales.
B72: 5. 14 days interest free credit is applicable in lieu of this credit a Cash Discount of Rs.800/- PMT is offered in the
B73: basic price in case of Cash Payment in Ex-Works Sale.
B74: 6. Stock point Price is net price
B75: 7. Cash/quantity Discount is not applicable for OG & PS Grade.
B76: 8. CST & Transportation will be charged extra & at buyers account on Exworks sale
B77: 9. CST / Vat & Transporation will be charged extra & at buyers account on Stock Point sale
B78: 10. The prices are subject to change without any prior notice those prevailing at the time of delivery will be applicable.
B79: 11. C-Form is mandatory for all Ex-works Sales w.e.f.1st April'2002.
B80: 12. Gas Authority Of India Ltd. changed to GAIL (India) Ltd. w.e.f. 1st January 2003.
B81: 13. CST @ 2% WILL BE APPLICABLE
B82: 14. Payment will be accepted through RTGS only.
B84: JYOTI | C84: 9930945123
B85: ASHISH | C85: 9029914092
